Workbook

Sheet <INSTRUCTIONS>
A1: White Page Template Instructions
A3: 1. [If "Security Warning: Data connections have been disabled" message appears, click on "Enable Content"] Click on "White Page Builder" sheet
A4: 2. Go to cell D1 and input desired stock ticker symbol in all caps; then fill out full name and date in cells D2 and D3, respectively
A5: 3. Click on "Refresh" button to the right of cell D1; a macro will now refresh the web queries on each of the remaining workbook sheets, updating the information in the workbook
A6: 4. Verify that the information provided in cells B2:B9 on the "White Page Builder" sheet is complete and sensible, then select appropriate stock exchange abbreviation from the drop down menu in cell B6
A7: 5. Copy and paste "Business Summary" section found on "Stock - Yahoo Profile" sheet and/or company description paragraph (underneath news headlines) found on "Stock - FinViz Profile" sheet to create a company overview paragraph in cell B10 (adjust font size or increase paragraph's conciseness, if necessary)
A8: 6. Select "5y" option from the drop down menu in cell B11 for "Historical Price Chart" (or follow directions of the comment message presented when you move your cursor over B11)
A9: 7. Click on "Stock - Price Chart" sheet and follow directions provided in the message boxes in cells G18:L18 and G19:L19; retrieve an appropriate price chart using the appropriate weblink and size the chart in the space provided
A10: 8. After sizing price chart, copy chart, click on "White Page Final" sheet, and paste chart in box below "Historical Price Chart" (and recenter it if necessary); make any additional comments in "Price Chart Comments" box in cells B12:B15, as necessary, or type "N/A" if 5y price chart used
A11: 9. Return to "White Page Builder" sheet and select "YES - COMPLETE" option from the drop down menu in cell B16 for "Key Metrics" (or follow directions of the comment message presented when you move your cursor over B16)
A12: 10. Type up a brief "Company Evaluation" paragraph in cell B17, highlighting some of the stock's potential strengths and weaknesses (adjust font size for more room, if necessary); use "Zacks Equity Research" hyperlink to access an analyst report (with reasons to buy/reasons to sell) by typing in the stock's ticker in the "Look Up Report" box
A13: 11. Select "YES - COMPLETE" option from the drop down menu in cell B18 for "Direct Competitors Comparison" (or follow directions of the comment message presented when you move your cursor over B18)
A14: 12. Follow directions of "Initial Screening Message" posted in cell B19
A15: 13. Review "Informal Valuation Screen for Stock Prospect" in cells B23:B40
A16: 14. Review all information provided on "White Page Builder" sheet (or other sheets in this workbook); then click on "White Page Final" sheet, connect to a printer, and click on "Print White Page" button on right side of the screen; the final one-page white page should begin printing
A17: 15. Click "Save As" and save a copy of the document for yourself with the stock ticker in the document's name
A19: If you want to use this same workbook for another stock, return to "White Page Builder" sheet and click on "Clear Upper Contents of White Page Builder" button just below the "Refresh" button. Then repeat this process again from step 2.
A20: If web references are required, click on "Stock Indices and References" sheet, scroll right to the "Web References" section, and replace any "[TICKER]" entries in web links with the appropriate ticker letters. Add additional references as needed, and then click on the "Print Refs" button to print out a page of references.
A21: If you want to use the "Stock Comparison (SC)" worksheet, simply type a stock's ticker symble into one (or each) of the three ticker boxes on the upper part of the page, and click the refresh macros adjacent to these boxes.

Sheet White Page Final
A4: ='White Page Builder'!B2 -> Google Inc | C4: ='White Page Builder'!B3 -> 0 | G4: Recommendation | H4: ='White Page Builder'!D5 -> 0
A5: ='White Page Builder'!B4 -> Technology | B5: | | C5: ='White Page Builder'!B5 -> Internet Information Providers | F5: | | G5: ='White Page Builder'!B6 -> NYSE | H5: Price: | I5: ='White Page Builder'!B7 -> 882.79
A7: Company Overview | B7: Order Details (Shares/Type): | F7: ='White Page Builder'!D6 -> 0 | G7: ='White Page Builder'!D7 -> 0 | H7: Class: | I7: ='White Page Builder'!B9 -> Large Cap
A8: ='White Page Builder'!B10 -> 0
A14: Histoical Price Chart | B14: ='White Page Builder'!B11 -> 0 | G14: Key Metrics
A16: Paste Price Chart Here | G16: Market Cap | H16: ='Stock - Key Metrics'!C102 -> 292.88B
G17: P/E | H17: ='Stock - Key Metrics'!C103 -> 26.28
G18: PEG | H18: ='Stock - Key Metrics'!C104 -> 1.69
G19: P/B | H19: ='Stock - Key Metrics'!C105 -> 3.87
G20: Dividend Yield | H20: ='Stock - Key Metrics'!C106 -> -
G21: Payout Ratio | H21: ='Stock - Key Metrics'!C107 -> 0
G22: EPS (ttm) | H22: ='Stock - Key Metrics'!C108 -> 33.59
G23: Return on Assets | H23: ='Stock - Key Metrics'!C109 -> 0.1291
G24: Return on Equity | H24: ='Stock - Key Metrics'!C110 -> 0.1636
G25: Return on Investment | H25: ='Stock - Key Metrics'!C111 -> 0.1488
G26: Beta | H26: ='Stock - Key Metrics'!C112 -> 0.95
G27: Operating Margin | H27: ='Stock - Key Metrics'!C113 -> 0.2402
G28: Profit Margin | H28: ='Stock - Key Metrics'!C114 -> 0.2098
G29: Current Ratio | H29: ='Stock - Key Metrics'!C115 -> 4.74
A31: Company Evaluation (Strengths/Weaknesses)
A32: ='White Page Builder'!B17 -> 0
A44: Direct Competitor Comparison
C45: ='Stock - Competitors Data'!B11 -> GOOG | D45: ='Stock - Competitors Data'!C11 -> FB | E45: ='Stock - Competitors Data'!D11 -> PVT1 | F45: ='Stock - Competitors Data'!E11 -> YHOO | G45: ='Stock - Competitors Data'!F11 -> Industry
A46: Market Cap: | C46: =VLOOKUP("Market Cap:",'Stock - Competitors Data'!A9:I110,2,FALSE) -> 292.88B | D46: =VLOOKUP("Market Cap:",'Stock - Competitors Data'!A9:I110,3,FALSE) -> 60.59B | E46: =VLOOKUP("Market Cap:",'Stock - Competitors Data'!A9:I110,4,FALSE) -> N/A | F46: =VLOOKUP("Market Cap:",'Stock - Competitors Data'!A9:I110,5,FALSE) -> 28.17B | G46: =VLOOKUP("Market Cap:",'Stock - Competitors Data'!A9:I110,6,FALSE) -> 2.07B | H46: =I7 -> Large Cap
A47: Revenue (ttm): | C47: =VLOOKUP("Revenue (ttm):",'Stock - Competitors Data'!A9:I110,2,FALSE) -> 53.50B | D47: =VLOOKUP("Revenue (ttm):",'Stock - Competitors Data'!A9:I110,3,FALSE) -> 5.49B | E47: =VLOOKUP("Revenue (ttm):",'Stock - Competitors Data'!A9:I110,4,FALSE) -> N/A | F47: =VLOOKUP("Revenue (ttm):",'Stock - Competitors Data'!A9:I110,5,FALSE) -> 4.91B | G47: =VLOOKUP("Revenue (ttm):",'Stock - Competitors Data'!A9:I110,6,FALSE) -> 420.42M | H47: =IF(C47>G47,"+","–") -> +
A48: Gross Margin (ttm): | C48: =VLOOKUP("Gross Margin (ttm):",'Stock - Competitors Data'!A9:I110,2,FALSE) -> 0.58 | D48: =VLOOKUP("Gross Margin (ttm):",'Stock - Competitors Data'!A9:I110,3,FALSE) -> 0.73 | E48: =VLOOKUP("Gross Margin (ttm):",'Stock - Competitors Data'!A9:I110,4,FALSE) -> N/A | F48: =VLOOKUP("Gross Margin (ttm):",'Stock - Competitors Data'!A9:I110,5,FALSE) -> 0.68 | G48: =VLOOKUP("Gross Margin (ttm):",'Stock - Competitors Data'!A9:I110,6,FALSE) -> 0.72 | H48: =IF(C48>G48,"+","–") -> –
A49: EBITDA (ttm): | C49: =VLOOKUP("EBITDA (ttm):",'Stock - Competitors Data'!A9:I110,2,FALSE) -> 16.81B | D49: =VLOOKUP("EBITDA (ttm):",'Stock - Competitors Data'!A9:I110,3,FALSE) -> 1.31B | E49: =VLOOKUP("EBITDA (ttm):",'Stock - Competitors Data'!A9:I110,4,FALSE) -> N/A | F49: =VLOOKUP("EBITDA (ttm):",'Stock - Competitors Data'!A9:I110,5,FALSE) -> 1.33B | G49: =VLOOKUP("EBITDA (ttm):",'Stock - Competitors Data'!A9:I110,6,FALSE) -> 32.31M | H49: =IF(C49>G49,"+","–") -> –
A50: Net Income (ttm): | C50: =VLOOKUP("Net Income (ttm):",'Stock - Competitors Data'!A9:I110,2,FALSE) -> 11.22B | D50: =VLOOKUP("Net Income (ttm):",'Stock - Competitors Data'!A9:I110,3,FALSE) -> 112.00M | E50: =VLOOKUP("Net Income (ttm):",'Stock - Competitors Data'!A9:I110,4,FALSE) -> N/A | F50: =VLOOKUP("Net Income (ttm):",'Stock - Competitors Data'!A9:I110,5,FALSE) -> 4.05B | G50: =VLOOKUP("Net Income (ttm):",'Stock - Competitors Data'!A9:I110,6,FALSE) -> N/A | H50: =IF(C50>G50,"+","–") -> –
A51: EPS (ttm): | C51: =VLOOKUP("EPS (ttm):",'Stock - Competitors Data'!A9:I110,2,FALSE) -> 33.42 | D51: =VLOOKUP("EPS (ttm):",'Stock - Competitors Data'!A9:I110,3,FALSE) -> 0.05 | E51: =VLOOKUP("EPS (ttm):",'Stock - Competitors Data'!A9:I110,4,FALSE) -> N/A | F51: =VLOOKUP("EPS (ttm):",'Stock - Competitors Data'!A9:I110,5,FALSE) -> 3.45 | G51: =VLOOKUP("EPS (ttm):",'Stock - Competitors Data'!A9:I110,6,FALSE) -> 0.37 | H51: =IF(C51>G51,"+","–") -> +
A52: P/E (ttm): | C52: =VLOOKUP("P/E (ttm):",'Stock - Competitors Data'!A9:I110,2,FALSE) -> 26.41 | D52: =VLOOKUP("P/E (ttm):",'Stock - Competitors Data'!A9:I110,3,FALSE) -> 544.78 | E52: =VLOOKUP("P/E (ttm):",'Stock - Competitors Data'!A9:I110,4,FALSE) -> N/A | F52: =VLOOKUP("P/E (ttm):",'Stock - Competitors Data'!A9:I110,5,FALSE) -> 7.55 | G52: =VLOOKUP("P/E (ttm):",'Stock - Competitors Data'!A9:I110,6,FALSE) -> 21.79 | H52: =IF(C52<G52,"+","–") -> –
A53: PEG (5 yr expected): | C53: =VLOOKUP("PEG (5 yr expected):",'Stock - Competitors Data'!A9:I110,2,FALSE) -> 1.32 | D53: =VLOOKUP("PEG (5 yr expected):",'Stock - Competitors Data'!A9:I110,3,FALSE) -> 1.57 | E53: =VLOOKUP("PEG (5 yr expected):",'Stock - Competitors Data'!A9:I110,4,FALSE) -> N/A | F53: =VLOOKUP("PEG (5 yr expected):",'Stock - Competitors Data'!A9:I110,5,FALSE) -> 1.46 | G53: =VLOOKUP("PEG (5 yr expected):",'Stock - Competitors Data'!A9:I110,6,FALSE) -> 0.68 | H53: =IF(C53<G53,"+","–") -> –
A54: P/S (ttm): | C54: =VLOOKUP("P/S (ttm):",'Stock - Competitors Data'!A9:I110,2,FALSE) -> 5.52 | D54: =VLOOKUP("P/S (ttm):",'Stock - Competitors Data'!A9:I110,3,FALSE) -> 11.08 | E54: =VLOOKUP("P/S (ttm):",'Stock - Competitors Data'!A9:I110,4,FALSE) -> N/A | F54: =VLOOKUP("P/S (ttm):",'Stock - Competitors Data'!A9:I110,5,FALSE) -> 5.86 | G54: =VLOOKUP("P/S (ttm):",'Stock - Competitors Data'!A9:I110,6,FALSE) -> 4.81 | H54: =IF(C54<G54,"+","–") -> –
A58: ='White Page Builder'!D2 -> 0 | C58: ='White Page Builder'!D3 -> 00:00:00 | G58: SPU Student Investment Fund

Sheet White Page Builder
A1: White Page Builder | C1: Stock Ticker:
A2: COMPANY NAME | B2: ='Stock - MSN Money Quote'!A4 -> Google Inc | C2: FULL NAME
A3: TICKER SYMBOL | B3: =D1 -> 0 | C3: DATE (MM/DD/YY)
A4: SECTOR | B4: =VLOOKUP("Sector:",'Stock - Sector and Industry'!A1:L79,2,FALSE) -> Technology | D4: RECOMMENDATION
A5: INDUSTRY | B5: =VLOOKUP("Industry:",'Stock - Sector and Industry'!A1:L79,2,FALSE) -> Internet Information Providers | C5: Buy/Sell Decision
A6: STOCK EXCHANGE | B6: NYSE | C6: Number of Shares
A7: CURRENT STOCK PRICE | B7: =VLOOKUP("News",'Stock - MSN Money Quote'!C3:P5,2,FALSE) -> 882.79 | C7: Type of Order
A8: MARKET CAP > $300M? | B8: =IF('Stock - MSN Money Quote'!M4>300000000,"YES","NO") -> YES
A9: MARKET CAP CLASSIFICATION | B9: =IF('Stock - MSN Money Quote'!M4<300000000,"Small Cap",IF('Stock - MSN Money Quote'!M4>10000000000,"Large Cap","Mid Cap")) -> Large Cap
A10: COMPANY OVERVIEW
A11: HISTORICAL PRICE CHART
A12: PRICE CHART COMMENTS
A16: KEY METRICS
A17: COMPANY EVALUATION (STRENGTHS/WEAKNESSES) | C17: Zacks Equity Research
A18: DIRECT COMPETITORS COMPARISON
A19: INITIAL SCREENING MESSAGE | B19: =IF(B8="NO","DO NOT PROCEED WITH WHITE PAGE - PROSPECT FALLS OUTSIDE OF REQUIRED MARKET CAP RANGE",IF(AND(B16="YES - COMPLETE",B18="YES - COMPLETE",B8="YES"),"PROCEED WITH WHITE PAGE","COLLECT MORE INFORMATION BEFORE PROCEEDING WITH WHITE PAGE")) -> COLLECT MORE INFORMATION BEFORE PROCEEDING WITH WHITE PAGE
B22: =HYPERLINK("#'Stock Indices and References'!J1","Desirability Guide Key") -> Desirability Guide Key
A23: INFORMAL VALUATION SCREEN FOR STOCK PROSPECT | B23: ='Stock - Key Metrics'!C103 -> 26.28 | C23: =_ftn1 -> 26.28 | D23: Seek low/mid
B24: P/E
B25: ='Stock - Key Metrics'!C104 -> 1.69 | C25: =B25 -> 1.69 | D25: Seek low/mid
B26: PEG
B27: ='Stock - Key Metrics'!C105 -> 3.87 | C27: =B27 -> 3.87 | D27: Seek mid
B28: P/B
B29: ='Stock - Key Metrics'!C106 -> - | C29: =B29 -> - | D29: Seek mid/high
B30: DIV YIELD
B31: ='Stock - Key Metrics'!C108 -> 33.59 | C31: =B31 -> 33.59 | D31: Seek mid/high
B32: EPS
B33: ='Stock - Key Metrics'!C109 -> 0.1291 | C33: =B33 -> 0.1291 | D33: Seek high
B34: ROA
B35: ='Stock - Key Metrics'!C110 -> 0.1636 | C35: =B35 -> 0.1636 | D35: Seek high
B36: ROE
B37: ='Stock - Key Metrics'!C111 -> 0.1488 | C37: =B37 -> 0.1488 | D37: Seek high
B38: ROI
B39: ='Stock - Key Metrics'!C112 -> 0.95 | C39: =B39 -> 0.95 | D39: Seek low/mid
B40: BETA
A42: INFORMAL VALUATION SCREEN CONCLUSION | B42: =IF(OR(AND(_ftn1<15,B27<1.5,B29>0.02,B25<1),AND(_ftn1<15,B27<1.5,B29=0,B25<1),AND(_ftn1<15,B27<1.5,B29="N/A",B25<1),AND(_ftn1<15,B25<1)),"POTENTIALLY UNDERVALUED","POTENTIALLY OVERVALUED") -> POTENTIALLY OVERVALUED

Sheet Stock Comparison (SC)
A1: Stock Ticker 1: | B1: IBM | D1: Stock Ticker 2: | E1: MSFT | G1: Stock Ticker 3: | H1: HPQ
A2: COMPANY NAME | B2: ='SC - MSN Money Quotes'!A4 -> International Business Machines Corp | D2: COMPANY NAME | E2: ='SC - MSN Money Quotes'!A33 -> Microsoft Corp | G2: COMPANY NAME | H2: ='SC - MSN Money Quotes'!A63 -> Hewlett-Packard Co
A3: TICKER SYMBOL | B3: =B1 -> IBM | D3: TICKER SYMBOL | E3: =E1 -> MSFT | G3: TICKER SYMBOL | H3: =H1 -> HPQ
A4: SECTOR | B4: =VLOOKUP("Sector:",'SC - Sector and Industry1'!A1:L79,2,FALSE) -> Technology | D4: SECTOR | E4: =VLOOKUP("Sector:",'SC - Sector and Industry2'!A1:L79,2,FALSE) -> Technology | G4: SECTOR | H4: =VLOOKUP("Sector:",'SC - Sector and Industry3'!A1:L79,2,FALSE) -> Technology
A5: INDUSTRY | B5: =VLOOKUP("Industry:",'SC - Sector and Industry1'!A1:L79,2,FALSE) -> Information Technology Services | D5: INDUSTRY | E5: =VLOOKUP("Industry:",'SC - Sector and Industry2'!A1:L79,2,FALSE) -> Application Software | G5: INDUSTRY | H5: =VLOOKUP("Industry:",'SC - Sector and Industry3'!A1:L79,2,FALSE) -> Diversified Computer Systems
A6: STOCK EXCHANGE | B6: NYSE | D6: STOCK EXCHANGE | E6: NYSE | G6: STOCK EXCHANGE | H6: NYSE
A7: CURRENT STOCK PRICE | B7: =VLOOKUP("News",'SC - MSN Money Quotes'!C4:P4,2,FALSE) -> 207.78 | D7: CURRENT STOCK PRICE | E7: =VLOOKUP("News",'SC - MSN Money Quotes'!C33:P33,2,FALSE) -> 35.02 | G7: CURRENT STOCK PRICE | H7: =VLOOKUP("News",'SC - MSN Money Quotes'!C63:P63,2,FALSE) -> 24.65
A8: MARKET CAP > $300M? | B8: =IF('SC - MSN Money Quotes'!M4>300000000,"YES","NO") -> YES | D8: MARKET CAP > $300M? | E8: =IF('SC - MSN Money Quotes'!M33>300000000,"YES","NO") -> YES | G8: MARKET CAP > $300M? | H8: =IF('SC - MSN Money Quotes'!M63>300000000,"YES","NO") -> YES
A9: MARKET CAP CLASSIFICATION | B9: =IF('SC - MSN Money Quotes'!M4<300000000,"Small Cap",IF('SC - MSN Money Quotes'!M4>10000000000,"Large Cap","Mid Cap")) -> Large Cap | D9: MARKET CAP CLASSIFICATION | E9: =IF('SC - MSN Money Quotes'!M33<300000000,"Small Cap",IF('SC - MSN Money Quotes'!M33>10000000000,"Large Cap","Mid Cap")) -> Large Cap | G9: MARKET CAP CLASSIFICATION | H9: =IF('SC - MSN Money Quotes'!M63<300000000,"Small Cap",IF('SC - MSN Money Quotes'!M63>10000000000,"Large Cap","Mid Cap")) -> Large Cap
A12: =B1 -> IBM | B12: Key Metrics | D12: =E1 -> MSFT | E12: Key Metrics | G12: =H1 -> HPQ | H12: Key Metrics
A13: Income | B13: =VLOOKUP("Income",'SC - FinViz Profile1'!A1:M30,3,FALSE) -> 16.57B | D13: Income | E13: =VLOOKUP("Income",'SC - FinViz Profile2'!A1:M30,3,FALSE) -> 16.41B | G13: Income | H13: =VLOOKUP("Income",'SC - FinViz Profile3'!A1:M30,3,FALSE) -> -12886.00M
A14: Sales | B14: =VLOOKUP("Sales",'SC - FinViz Profile1'!A1:M30,3,FALSE) -> 103.24B | D14: Sales | E14: =VLOOKUP("Sales",'SC - FinViz Profile2'!A1:M30,3,FALSE) -> 76.01B | G14: Sales | H14: =VLOOKUP("Sales",'SC - FinViz Profile3'!A1:M30,3,FALSE) -> 118.68B
A15: BV/S | B15: =VLOOKUP("Book/sh",'SC - FinViz Profile1'!A1:M30,3,FALSE) -> 17.21 | D15: BV/S | E15: =VLOOKUP("Book/sh",'SC - FinViz Profile2'!A1:M30,3,FALSE) -> 9.18 | G15: BV/S | H15: =VLOOKUP("Book/sh",'SC - FinViz Profile3'!A1:M30,3,FALSE) -> 11.72
A16: C/S | B16: =VLOOKUP("Cash/sh",'SC - FinViz Profile1'!A1:M30,3,FALSE) -> 10.82 | D16: C/S | E16: =VLOOKUP("Book/sh",'SC - FinViz Profile2'!A1:M30,3,FALSE) -> 9.18 | G16: C/S | H16: =VLOOKUP("Book/sh",'SC - FinViz Profile2'!A1:M30,3,FALSE) -> 9.18
A17: Dividend | B17: =VLOOKUP("Dividend",'SC - FinViz Profile1'!A1:M30,3,FALSE) -> 3.8 | D17: Dividend | E17: =VLOOKUP("Dividend",'SC - FinViz Profile2'!A1:M30,3,FALSE) -> 0.92 | G17: Dividend | H17: =VLOOKUP("Dividend",'SC - FinViz Profile3'!A1:M30,3,FALSE) -> 0.53
A18: Dividend Yield | B18: =VLOOKUP("Dividend %",'SC - FinViz Profile1'!A1:M30,3,FALSE) -> 0.0183 | D18: Dividend Yield | E18: =VLOOKUP("Dividend %",'SC - FinViz Profile2'!A1:M30,3,FALSE) -> 0.0263 | G18: Dividend Yield | H18: =VLOOKUP("Dividend %",'SC - FinViz Profile3'!A1:M30,3,FALSE) -> 0.0215
A19: Analyst Recom. | B19: =VLOOKUP("Recom",'SC - FinViz Profile1'!A1:M30,3,FALSE) -> 2.4 | D19: Analyst Recom. | E19: =VLOOKUP("Recom",'SC - FinViz Profile2'!A1:M30,3,FALSE) -> 2.4 | G19: Analyst Recom. | H19: =VLOOKUP("Recom",'SC - FinViz Profile3'!A1:M30,3,FALSE) -> 3.1
A20: P/E | B20: =VLOOKUP("P/E",'SC - FinViz Profile1'!D1:M30,2,FALSE) -> 14.33 | D20: P/E | E20: =VLOOKUP("P/E",'SC - FinViz Profile2'!D1:M30,2,FALSE) -> 18.05 | G20: P/E | H20: =VLOOKUP("P/E",'SC - FinViz Profile3'!D1:M30,2,FALSE) -> -
A21: FWD P/E | B21: =VLOOKUP("Forward P/E",'SC - FinViz Profile1'!D1:M30,2,FALSE) -> 11.32 | D21: FWD P/E | E21: =VLOOKUP("Forward P/E",'SC - FinViz Profile2'!D1:M30,2,FALSE) -> 11.44 | G21: FWD P/E | H21: =VLOOKUP("Forward P/E",'SC - FinViz Profile3'!D1:M30,2,FALSE) -> 6.75
A22: PEG | B22: =VLOOKUP("PEG",'SC - FinViz Profile1'!D1:M30,2,FALSE) -> 1.37 | D22: PEG | E22: =VLOOKUP("PEG",'SC - FinViz Profile2'!D1:M30,2,FALSE) -> 2.12 | G22: PEG | H22: =VLOOKUP("Forward P/E",'SC - FinViz Profile3'!D1:M30,2,FALSE) -> 6.75
A23: P/S | B23: =VLOOKUP("P/S",'SC - FinViz Profile1'!D1:M30,2,FALSE) -> 2.23 | D23: P/S | E23: =VLOOKUP("P/S",'SC - FinViz Profile2'!D1:M30,2,FALSE) -> 3.85 | G23: P/S | H23: =VLOOKUP("P/S",'SC - FinViz Profile3'!D1:M30,2,FALSE) -> 0.4
A24: P/B | B24: =VLOOKUP("P/B",'SC - FinViz Profile1'!D1:M30,2,FALSE) -> 12.07 | D24: P/B | E24: =VLOOKUP("P/B",'SC - FinViz Profile2'!D1:M30,2,FALSE) -> 3.81 | G24: P/B | H24: =VLOOKUP("P/B",'SC - FinViz Profile3'!D1:M30,2,FALSE) -> 2.1
A25: P/C | B25: =VLOOKUP("P/C",'SC - FinViz Profile1'!D1:M30,2,FALSE) -> 19.21 | D25: P/C | E25: =VLOOKUP("P/C",'SC - FinViz Profile2'!D1:M30,2,FALSE) -> 3.93 | G25: P/C | H25: =VLOOKUP("P/C",'SC - FinViz Profile3'!D1:M30,2,FALSE) -> 3.81
A26: P/FCF | B26: =VLOOKUP("P/FCF",'SC - FinViz Profile1'!D1:M30,2,FALSE) -> 20.96 | D26: P/FCF | E26: =VLOOKUP("P/FCF",'SC - FinViz Profile2'!D1:M30,2,FALSE) -> 14.4 | G26: P/FCF | H26: =VLOOKUP("P/FCF",'SC - FinViz Profile3'!D1:M30,2,FALSE) -> 6.43
A27: Quick Ratio | B27: =VLOOKUP("Quick Ratio",'SC - FinViz Profile1'!D1:M30,2,FALSE) -> 1.1 | D27: Quick Ratio | E27: =VLOOKUP("Quick Ratio",'SC - FinViz Profile2'!D1:M30,2,FALSE) -> 2.86 | G27: Quick Ratio | H27: =VLOOKUP("Quick Ratio",'SC - FinViz Profile3'!D1:M30,2,FALSE) -> 0.97
A28: Current Ratio | B28: =VLOOKUP("Current Ratio",'SC - FinViz Profile1'!D1:M30,2,FALSE) -> 1.16 | D28: Current Ratio | E28: =VLOOKUP("Current Ratio",'SC - FinViz Profile2'!D1:M30,2,FALSE) -> 2.93 | G28: Current Ratio | H28: =VLOOKUP("Current Ratio",'SC - FinViz Profile3'!D1:M30,2,FALSE) -> 1.12
A29: Debt/Equity | B29: =VLOOKUP("Debt/Eq",'SC - FinViz Profile1'!D1:M30,2,FALSE) -> 1.75 | D29: Debt/Equity | E29: =VLOOKUP("Debt/Eq",'SC - FinViz Profile2'!D1:M30,2,FALSE) -> 0.19 | G29: Debt/Equity | H29: =VLOOKUP("Debt/Eq",'SC - FinViz Profile3'!D1:M30,2,FALSE) -> 1.23
A30: LT Debt/Equity | B30: =VLOOKUP("LT Debt/Eq",'SC - FinViz Profile1'!D1:M30,2,FALSE) -> 1.29 | D30: LT Debt/Equity | E30: =VLOOKUP("LT Debt/Eq",'SC - FinViz Profile2'!D1:M30,2,FALSE) -> 0.16 | G30: LT Debt/Equity | H30: =VLOOKUP("LT Debt/Eq",'SC - FinViz Profile3'!D1:M30,2,FALSE) -> 0.95
A31: EPS (ttm) | B31: =VLOOKUP("EPS (ttm)",'SC - FinViz Profile1'!F1:M30,2,FALSE) -> 14.5 | D31: EPS (ttm) | E31: =VLOOKUP("EPS (ttm)",'SC - FinViz Profile2'!F1:M30,2,FALSE) -> 1.94 | G31: EPS (ttm) | H31: =VLOOKUP("EPS (ttm)",'SC - FinViz Profile3'!F1:M30,2,FALSE) -> -6.55
A32: EPS next Y | B32: =VLOOKUP("EPS next Y",'SC - FinViz Profile1'!F20:G20,2,FALSE) -> 18.35 | D32: EPS next Y | E32: =VLOOKUP("EPS next Y",'SC - FinViz Profile2'!F20:G20,2,FALSE) -> 3.06 | G32: EPS next Y | H32: =VLOOKUP("EPS next Y",'SC - FinViz Profile3'!F20:G20,2,FALSE) -> 3.65
A33: EPS next Q | B33: =VLOOKUP("EPS next Q",'SC - FinViz Profile1'!F1:M30,2,FALSE) -> 3.78 | D33: EPS next Q | E33: =VLOOKUP("EPS next Q",'SC - FinViz Profile2'!F1:M30,2,FALSE) -> 0.75 | G33: EPS next Q | H33: =VLOOKUP("EPS next Q",'SC - FinViz Profile3'!F1:M30,2,FALSE) -> 0.86
A34: EPS growth this Y | B34: =VLOOKUP("EPS this Y",'SC - FinViz Profile1'!F1:M30,2,FALSE) -> 0.1 | D34: EPS growth this Y | E34: =VLOOKUP("EPS this Y",'SC - FinViz Profile2'!F1:M30,2,FALSE) -> -0.2591 | G34: EPS growth this Y | H34: =VLOOKUP("EPS this Y",'SC - FinViz Profile3'!F1:M30,2,FALSE) -> -2.9277
A35: EPS growth next Y | B35: =VLOOKUP("EPS next Y",'SC - FinViz Profile1'!F23:G23,2,FALSE) -> 0.1008 | D35: EPS growth next Y | E35: =VLOOKUP("EPS next Y",'SC - FinViz Profile2'!F23:G23,2,FALSE) -> 0.1087 | G35: EPS growth next Y | H35: =VLOOKUP("EPS next Y",'SC - FinViz Profile3'!F23:G23,2,FALSE) -> 0.0253
A36: EPS growth next 5Y | B36: =VLOOKUP("EPS next 5Y",'SC - FinViz Profile1'!F1:M30,2,FALSE) -> 0.1049 | D36: EPS growth next 5Y | E36: =VLOOKUP("EPS next 5Y",'SC - FinViz Profile2'!F1:M30,2,FALSE) -> 0.0853 | G36: EPS growth next 5Y | H36: =VLOOKUP("EPS next 5Y",'SC - FinViz Profile3'!F1:M30,2,FALSE) -> 0
A37: EPS growth past 5Y | B37: =VLOOKUP("EPS past 5Y",'SC - FinViz Profile1'!F1:M30,2,FALSE) -> 0.1498 | D37: EPS growth past 5Y | E37: =VLOOKUP("EPS past 5Y",'SC - FinViz Profile2'!F1:M30,2,FALSE) -> 0.0701 | G37: EPS growth past 5Y | H37: =VLOOKUP("EPS past 5Y",'SC - FinViz Profile3'!F1:M30,2,FALSE) -> 0.0321
A38: Sales growth past 5Y | B38: =VLOOKUP("Sales past 5Y",'SC - FinViz Profile1'!F1:M30,2,FALSE) -> 0.0113 | D38: Sales growth past 5Y | E38: =VLOOKUP("Sales past 5Y",'SC - FinViz Profile2'!F1:M30,2,FALSE) -> 0.076 | G38: Sales growth past 5Y | H38: =VLOOKUP("Sales past 5Y",'SC - FinViz Profile3'!F1:M30,2,FALSE) -> 0.0291
A39: Sales growth Q/Q | B39: =VLOOKUP("Sales Q/Q",'SC - FinViz Profile1'!F1:M30,2,FALSE) -> -0.0513 | D39: Sales growth Q/Q | E39: =VLOOKUP("Sales Q/Q",'SC - FinViz Profile2'!F1:M30,2,FALSE) -> 0.1771 | G39: Sales growth Q/Q | H39: =VLOOKUP("Sales Q/Q",'SC - FinViz Profile3'!F1:M30,2,FALSE) -> -0.0558
A40: EPS growth Q/Q | B40: =VLOOKUP("EPS Q/Q",'SC - FinViz Profile1'!F1:M30,2,FALSE) -> 0.0331 | D40: EPS growth Q/Q | E40: =VLOOKUP("EPS Q/Q",'SC - FinViz Profile2'!F1:M30,2,FALSE) -> 0.1951 | G40: EPS growth Q/Q | H40: =VLOOKUP("EPS Q/Q",'SC - FinViz Profile3'!F1:M30,2,FALSE) -> -0.1427
A41: Earnings Date | B41: =VLOOKUP("Earnings",'SC - FinViz Profile1'!F1:M30,2,FALSE) -> Apr 18 AMC | D41: Earnings Date | E41: =VLOOKUP("Earnings",'SC - FinViz Profile2'!F1:M30,2,FALSE) -> Apr 18 AMC | G41: Earnings Date | H41: =VLOOKUP("Earnings",'SC - FinViz Profile3'!F1:M30,2,FALSE) -> May 22 AMC
A42: Insider Ownership | B42: =VLOOKUP("Insider Own",'SC - FinViz Profile1'!H1:M30,2,FALSE) -> 0.0006 | D42: Insider Ownership | E42: =VLOOKUP("Insider Own",'SC - FinViz Profile2'!H1:M30,2,FALSE) -> 0.0482 | G42: Insider Ownership | H42: =VLOOKUP("Insider Own",'SC - FinViz Profile3'!H1:M30,2,FALSE) -> 0.0005
A43: Insider Trans. | B43: =VLOOKUP("Insider Trans",'SC - FinViz Profile1'!H1:M30,2,FALSE) -> 0.1564 | D43: Insider Trans. | E43: =VLOOKUP("Insider Trans",'SC - FinViz Profile2'!H1:M30,2,FALSE) -> -0.0915 | G43: Insider Trans. | H43: =VLOOKUP("Insider Trans",'SC - FinViz Profile3'!H1:M30,2,FALSE) -> 0.514
A44: Institutional Ownership | B44: =VLOOKUP("Inst Own",'SC - FinViz Profile1'!H1:M30,2,FALSE) -> 0.6002 | D44: Institutional Ownership | E44: =VLOOKUP("Inst Own",'SC - FinViz Profile2'!H1:M30,2,FALSE) -> 0.6824 | G44: Institutional Ownership | H44: =VLOOKUP("Inst Own",'SC - FinViz Profile3'!H1:M30,2,FALSE) -> 0.7753
A45: Institutional Trans. | B45: =VLOOKUP("Inst Trans",'SC - FinViz Profile1'!H1:M30,2,FALSE) -> -0.0045 | D45: Institutional Trans. | E45: =VLOOKUP("Inst Trans",'SC - FinViz Profile2'!H1:M30,2,FALSE) -> 0.0111 | G45: Institutional Trans. | H45: =VLOOKUP("Inst Trans",'SC - FinViz Profile3'!H1:M30,2,FALSE) -> -0.0238
A46: ROA | B46: =VLOOKUP("ROA",'SC - FinViz Profile1'!H1:M30,2,FALSE) -> 0.1425 | D46: ROA | E46: =VLOOKUP("ROA",'SC - FinViz Profile2'!H1:M30,2,FALSE) -> 0.1301 | G46: ROA | H46: =VLOOKUP("ROA",'SC - FinViz Profile3'!H1:M30,2,FALSE) -> -0.1105
A47: ROE | B47: =VLOOKUP("ROE",'SC - FinViz Profile1'!H1:M30,2,FALSE) -> 0.8328 | D47: ROE | E47: =VLOOKUP("ROE",'SC - FinViz Profile2'!H1:M30,2,FALSE) -> 0.2257 | G47: ROE | H47: =VLOOKUP("ROE",'SC - FinViz Profile3'!H1:M30,2,FALSE) -> -0.4153
A48: ROI | B48: =VLOOKUP("ROI",'SC - FinViz Profile1'!H1:M30,2,FALSE) -> 0.2179 | D48: ROI | E48: =VLOOKUP("ROI",'SC - FinViz Profile2'!H1:M30,2,FALSE) -> 0.1691 | G48: ROI | H48: =VLOOKUP("ROI",'SC - FinViz Profile3'!H1:M30,2,FALSE) -> -0.1792
A49: Gross Margin | B49: =VLOOKUP("Gross Margin",'SC - FinViz Profile1'!H1:M30,2,FALSE) -> 0.4829 | D49: Gross Margin | E49: =VLOOKUP("Gross Margin",'SC - FinViz Profile2'!H1:M30,2,FALSE) -> 0.7525 | G49: Gross Margin | H49: =VLOOKUP("Gross Margin",'SC - FinViz Profile3'!H1:M30,2,FALSE) -> 0.2294
A50: Operating Margin | B50: =VLOOKUP("Oper. Margin",'SC - FinViz Profile1'!H1:M30,2,FALSE) -> 0.2099 | D50: Operating Margin | E50: =VLOOKUP("Oper. Margin",'SC - FinViz Profile2'!H1:M30,2,FALSE) -> 0.2727 | G50: Operating Margin | H50: =VLOOKUP("Oper. Margin",'SC - FinViz Profile3'!H1:M30,2,FALSE) -> -0.0956
A51: Profit Margin | B51: =VLOOKUP("Profit Margin",'SC - FinViz Profile1'!H1:M30,2,FALSE) -> 0.1605 | D51: Profit Margin | E51: =VLOOKUP("Profit Margin",'SC - FinViz Profile2'!H1:M30,2,FALSE) -> 0.2158 | G51: Profit Margin | H51: =VLOOKUP("Profit Margin",'SC - FinViz Profile3'!H1:M30,2,FALSE) -> -0.1086
A52: Payout Ratio | B52: =VLOOKUP("Payout",'SC - FinViz Profile1'!H1:M30,2,FALSE) -> 0.2324 | D52: Payout Ratio | E52: =VLOOKUP("Payout",'SC - FinViz Profile2'!H1:M30,2,FALSE) -> 0.4544 | G52: Payout Ratio | H52: =VLOOKUP("Payout",'SC - FinViz Profile3'!H1:M30,2,FALSE) -> -
A53: Target Price | B53: =VLOOKUP("Target Price",'SC - FinViz Profile1'!J1:M30,2,FALSE) -> 221.9 | D53: Target Price | E53: =VLOOKUP("Target Price",'SC - FinViz Profile2'!J1:M30,2,FALSE) -> 33.64 | G53: Target Price | H53: =VLOOKUP("Target Price",'SC - FinViz Profile3'!J1:M30,2,FALSE) -> 22.56
A54: RSI (14) | B54: =VLOOKUP("RSI (14)",'SC - FinViz Profile1'!J1:M30,2,FALSE) -> 56.22 | D54: RSI (14) | E54: =VLOOKUP("RSI (14)",'SC - FinViz Profile2'!J1:M30,2,FALSE) -> 70.31 | G54: RSI (14) | H54: =VLOOKUP("RSI (14)",'SC - FinViz Profile3'!J1:M30,2,FALSE) -> 70.23
A55: Performance Week | B55: =VLOOKUP("Perf Week",'SC - FinViz Profile1'!L1:M30,2,FALSE) -> 0.0009 | D55: Performance Week | E55: =VLOOKUP("Perf Week",'SC - FinViz Profile2'!L1:M30,2,FALSE) -> -0.0017 | G55: Performance Week | H55: =VLOOKUP("Perf Week",'SC - FinViz Profile3'!L1:M30,2,FALSE) -> 0.1638
A56: Performance Month | B56: =VLOOKUP("Perf Month",'SC - FinViz Profile1'!L1:M30,2,FALSE) -> 0.0744 | D56: Performance Month | E56: =VLOOKUP("Perf Month",'SC - FinViz Profile2'!L1:M30,2,FALSE) -> 0.1093 | G56: Performance Month | H56: =VLOOKUP("Perf Month",'SC - FinViz Profile3'!L1:M30,2,FALSE) -> 0.2344
A57: Performance Quarter | B57: =VLOOKUP("Perf Quarter",'SC - FinViz Profile1'!L1:M30,2,FALSE) -> 0.0483 | D57: Performance Quarter | E57: =VLOOKUP("Perf Quarter",'SC - FinViz Profile2'!L1:M30,2,FALSE) -> 0.2884 | G57: Performance Quarter | H57: =VLOOKUP("Perf Quarter",'SC - FinViz Profile3'!L1:M30,2,FALSE) -> 0.2532
A58: Performance Half Year | B58: =VLOOKUP("Perf Half Y",'SC - FinViz Profile1'!L1:M30,2,FALSE) -> 0.0834 | D58: Performance Half Year | E58: =VLOOKUP("Perf Half Y",'SC - FinViz Profile2'!L1:M30,2,FALSE) -> 0.2837 | G58: Performance Half Year | H58: =VLOOKUP("Perf Half Y",'SC - FinViz Profile3'!L1:M30,2,FALSE) -> 1.0139
A59: Performance Year | B59: =VLOOKUP("Perf Year",'SC - FinViz Profile1'!L1:M30,2,FALSE) -> 0.0781 | D59: Performance Year | E59: =VLOOKUP("Perf Year",'SC - FinViz Profile2'!L1:M30,2,FALSE) -> 0.2396 | G59: Performance Year | H59: =VLOOKUP("Perf Year",'SC - FinViz Profile3'!L1:M30,2,FALSE) -> 0.2042
A60: Performance YTD | B60: =VLOOKUP("Perf YTD",'SC - FinViz Profile1'!L1:M30,2,FALSE) -> 0.0944 | D60: Performance YTD | E60: =VLOOKUP("Perf YTD",'SC - FinViz Profile2'!L1:M30,2,FALSE) -> 0.3311 | G60: Performance YTD | H60: =VLOOKUP("Perf YTD",'SC - FinViz Profile3'!L1:M30,2,FALSE) -> 0.7408
A61: Beta | B61: =VLOOKUP("Beta",'SC - FinViz Profile1'!L1:M30,2,FALSE) -> 0.69 | D61: Beta | E61: =VLOOKUP("Beta",'SC - FinViz Profile2'!L1:M30,2,FALSE) -> 0.96 | G61: Beta | H61: =VLOOKUP("Beta",'SC - FinViz Profile3'!L1:M30,2,FALSE) -> 1.18

Sheet SC - MSN Money Quotes
A1: Stock Quotes Provided by MSN Money
A2: Click here to visit MSN Money
D3: Last | E3: Previous Close | F3: High | G3: Low | H3: Volume | I3: Change | J3: % Change | K3: 52 Wk High | L3: 52 Wk Low | M3: Market Cap | N3: EPS | O3: P/E Ratio | P3: # Shares Out
A4: International Business Machines Corp | B4: Chart | C4: News | D4: 207.78 | E4: 205.72 | F4: 208.59 | G4: 207.16 | H4: 4011444 | I4: 2.06 | J4: 0.01 | K4: 215.9 | L4: 181.85 | M4: 230385215966 | N4: 14.5 | O4: 14.2 | P4: 1108794000
A6: Symbol Lookup | C6: MSN Money Home | G6: Microsoft Office Tools on the Web
A7: Find stocks, mutual funds, options, indices, and currencies. | C7: Discover MSN Money's tools, columns, and more! | G7: Get the latest from Microsoft Office
A9: Terms of Use. © 2013 Microsoft Corporation and/or its suppliers. All rights reserved.
A10: DATA PROVIDERS
A12: Copyright © 2013 Microsoft. All rights reserved.
A14: Quotes are real-time for NASDAQ, NYSE and AMEX. See delay times for other exchanges.
A16: Fundamental company data and historical chart data provided by Thomson Reuters (click for restrictions). Real-time quotes provided by BATS Exchange. Real-time index quotes and delayed quotes supplied by Interactive Data Real-Time Services. Fund summary, fund performance and dividend data provided by Morningstar Inc. Analyst recommendations provided by Zacks Investment Research. StockScouter data provided by Verus Analytics. IPO data provided by Hoover's Inc. Index membership data provided by SIX Telekurs.
A18: Japanese stock price data provided by Nomura Research Institute Ltd.; quotes delayed 20 minutes. Canadian fund data provided by CANNEX Financial Exchanges Ltd.
A30: Stock Quotes Provided by MSN Money
A31: Click here to visit MSN Money
D32: Last | E32: Previous Close | F32: High | G32: Low | H32: Volume | I32: Change | J32: % Change | K32: 52 Wk High | L32: 52 Wk Low | M32: Market Cap | N32: EPS | O32: P/E Ratio | P32: # Shares Out
A33: Microsoft Corp | B33: Chart | C33: News | D33: 35.02 | E33: 34.27 | F33: 35.18 | G33: 34.41 | H33: 48214433 | I33: 0.75 | J33: 0.0219 | K33: 35.27 | L33: 26.26 | M33: 292455735943 | N33: 1.94 | O33: 17.7 | P33: 8351106000
A35: Symbol Lookup | C35: MSN Money Home | G35: Microsoft Office Tools on the Web
A36: Find stocks, mutual funds, options, indices, and currencies. | C36: Discover MSN Money's tools, columns, and more! | G36: Get the latest from Microsoft Office
A38: Terms of Use. © 2013 Microsoft Corporation and/or its suppliers. All rights reserved.
A39: DATA PROVIDERS
A41: Copyright © 2013 Microsoft. All rights reserved.
A43: Quotes are real-time for NASDAQ, NYSE and AMEX. See delay times for other exchanges.
A45: Fundamental company data and historical chart data provided by Thomson Reuters (click for restrictions). Real-time quotes provided by BATS Exchange. Real-time index quotes and delayed quotes supplied by Interactive Data Real-Time Services. Fund summary, fund performance and dividend data provided by Morningstar Inc. Analyst recommendations provided by Zacks Investment Research. StockScouter data provided by Verus Analytics. IPO data provided by Hoover's Inc. Index membership data provided by SIX Telekurs.
A47: Japanese stock price data provided by Nomura Research Institute Ltd.; quotes delayed 20 minutes. Canadian fund data provided by CANNEX Financial Exchanges Ltd.
A60: Stock Quotes Provided by MSN Money
A61: Click here to visit MSN Money
D62: Last | E62: Previous Close | F62: High | G62: Low | H62: Volume | I62: Change | J62: % Change | K62: 52 Wk High | L62: 52 Wk Low | M62: Market Cap | N62: EPS | O62: P/E Ratio | P62: # Shares Out
A63: Hewlett-Packard Co | B63: Chart | C63: News | D63: 24.65 | E63: 24.21 | F63: 24.7 | G63: 24.21 | H63: 19652027 | I63: 0.44 | J63: 0.0182 | K63: 24.95 | L63: 11.35 | M63: 47920092258 | N63: -6.8 | P63: 1944020000
A65: Symbol Lookup | C65: MSN Money Home | G65: Microsoft Office Tools on the Web
A66: Find stocks, mutual funds, options, indices, and currencies. | C66: Discover MSN Money's tools, columns, and more! | G66: Get the latest from Microsoft Office
A68: Terms of Use. © 2013 Microsoft Corporation and/or its suppliers. All rights reserved.
A69: DATA PROVIDERS
A71: Copyright © 2013 Microsoft. All rights reserved.
A73: Quotes are real-time for NASDAQ, NYSE and AMEX. See delay times for other exchanges.
A75: Fundamental company data and historical chart data provided by Thomson Reuters (click for restrictions). Real-time quotes provided by BATS Exchange. Real-time index quotes and delayed quotes supplied by Interactive Data Real-Time Services. Fund summary, fund performance and dividend data provided by Morningstar Inc. Analyst recommendations provided by Zacks Investment Research. StockScouter data provided by Verus Analytics. IPO data provided by Hoover's Inc. Index membership data provided by SIX Telekurs.
A77: Japanese stock price data provided by Nomura Research Institute Ltd.; quotes delayed 20 minutes. Canadian fund data provided by CANNEX Financial Exchanges Ltd.

Sheet SC - Sector and Industry1
A1: Search | B1: Search Web
C7: AdvertisementAdvertisement
A9: Industry: Information Technology Services | G9: Get Industry for:
A10: IBM Sector / Industry Membership
A11: Sector: | B11: Technology
A12: Industry: | B12: Information Technology Services
A14: Intraday Performance Summary
A15: Name | G15: Ticker | I15: Change | J15: Chart for International Business Machines Corporation (IBM)
A16: International Business Machines Corporation | G16: IBM | I16: Up1.00%
A17: Information Technology Services | G17: ^YHOh878 | I17: Up1.11%
A18: View Information Technology Services Industry Center
A19: Information Technology Services Industry News
A21: Fisker loses key board member as bidders circle companyReuters (Tue 6:49PM EDT)
A22: International Business Machines Corp (IBM): Today's Featured Computer Software & Services Winnerat TheStreet (Tue 5:00PM EDT)
A23: When Customers Talk, Can You Hear Them? Lessons From HPat Forbes (Tue 2:52PM EDT)
A24: Michael Dell: All Business During A Stormat Forbes (Tue 2:38PM EDT)
A25: Hewlett-Packard Co Stock Upgraded (HPQ)at TheStreet (Tue 12:58PM EDT)
A27: More Industry News...
A30: Top Information Technology Services Companies by Market Cap
A31: Company | B31: Symbol | C31: Price | D31: Change | E31: Market Cap | F31: P/E
A32: International Business Machines Corporation | B32: IBM | C32: 207.78 | D32: Up1.00% | E32: 230.39B | F32: 14.33
A33: Hewlett-Packard Company | B33: HPQ | C33: 24.65 | D33: Up1.82% | E33: 47.70B | F33: N/A
A34: Teradata Corporation | B34: TDC | C34: 54.46 | D34: Up0.11% | E34: 8.90B | F34: 24.05
A35: Cray Inc. | B35: CRAY | C35: 17.81 | D35: Up1.19% | E35: 667.13M | F35: 4.53
A36: Silicon Graphics International Corp. | B36: SGI | C36: 14.77 | D36: Up1.93% | E36: 499.54M | F36: N/A
A37: Invent Ventures, Inc. | B37: IDEA | C37: 0.24 | D37: 0 | E37: 8.86M | F37: N/A
A38: Showing 1 - 5 of 7 - View All
A41: More Top Companies: by Performance, by Valuation, by Growth, by Growth
A43: IBM vs. Industry Leaders
A44: Statistic | B44: Industry Leader | D44: IBM | E44: IBM Rank
A45: Market Capitalization | B45: IBM | C45: 230.39B | D45: - | E45: 2013-01-07
A46: P/E Ratio (ttm) | B46: TDC | C46: 24.05 | D46: 14.33 | E46: 2013-02-07
A47: PEG Ratio (ttm, 5 yr expected) | B47: SGI | C47: 5.72 | D47: 1.18 | E47: 2013-04-07
A48: Revenue Growth (Qtrly YoY) | B48: SGI | C48: 0.166 | D48: -0.051 | E48: 2013-03-07
A49: EPS Growth (Qtrly YoY) | B49: IBM | C49: 0.034 | D49: - | E49: 2013-01-07
A50: Long-Term Growth Rate (5 yr) | B50: CRAY | C50: 0.2 | D50: 0.1049 | E50: 2013-03-07
A51: Return on Equity (ttm) | B51: IBM | C51: 0.8286 | D51: - | E51: 2013-01-07
A52: Long-Term Debt/Equity (mrq) | D52: 173.816 | E52: N/A
A53: Dividend Yield (annual) | B53: HPQ | C53: 0.024 | D53: 0.018 | E53: 2013-02-07
A55: View Leaders & Laggards
A57: More on Information Technology Services
A59: • | B59: Industry Summary | G59: • | H59: Company List
A60: • | B60: News | G60: • | H60: Industry Calendar
A61: • | B61: Leaders & Laggards
A63: Related Industries
A65: • | B65: Computer Based Systems | G65: • | H65: Networking & Communication Devices
A66: • | B66: Computer Peripherals | G66: • | H66: Personal Computers
A67: • | B67: Data Storage Devices
A69: Top Performing Industries | Complete Industry List
A71: Currency in USD.
A73: Copyright © 2013 Yahoo! Inc. All rights reserved. Privacy Policy - About Our Ads - Terms of Service - Copyright/IP Policy - Send Feedback - Yahoo! - ABC News Network
A74: Quotes are real-time for NASDAQ, NYSE, and NYSE MKT. See also delay times for other exchanges. All information provided "as is" for informational purposes only, not intended for trading purposes or advice. Neither Yahoo! nor any of independent providers is liable for any informational errors, incompleteness, or delays, or for any actions taken in reliance on information contained herein. By accessing the Yahoo! site, you agree not to redistribute the information found therein. Real-Time continuous streaming quotes are available through our premium service. You may turn streaming quotes on or off.
A76: Fundamental company data provided by Capital IQ. Historical chart data and daily updates provided by Commodity Systems, Inc. (CSI). International historical chart data, daily updates, fund summary, fund performance, dividend data and Morningstar Index data provided by Morningstar, Inc.

Sheet SC - Sector and Industry2
A1: Search | B1: Search Web
A7: AdvertisementAdvertisement
A9: Industry: Application Software | G9: Get Industry for:
A10: MSFT Sector / Industry Membership | N10: AdChoices
A11: Sector: | B11: Technology
A12: Industry: | B12: Application Software
A14: Intraday Performance Summary
A15: Name | G15: Ticker | I15: Change | J15: Chart for Microsoft Corporation (MSFT)
A16: Microsoft Corporation | G16: MSFT | I16: Up2.19%
A17: Application Software | G17: ^YHOh885 | I17: Up1.48%
A18: View Application Software Industry Center
A19: Application Software Industry News
A21: Salesforce.com Inc. (CRM): Today's Featured Computer Software & Services Laggardat TheStreet (Tue 5:01PM EDT)
A22: Oracle Corporation (ORCL): Today's Featured Technology Winnerat TheStreet (Tue 5:00PM EDT)
A23: Agilysys to Report Fiscal 2013 Fourth Quarter and Year End Results on June 12 and Host Conference Call and WebcastBusiness Wire (Tue 4:30PM EDT)
A24: PAR Technology Corporation to Host Annual Shareholders Meeting and PresentationBusiness Wire (Tue 4:01PM EDT)
A25: Q&A: Sending an Automated Vacation Reply With Outlook.comat New York Times (Tue 3:58PM EDT)
A27: More Industry News...
A30: Top Application Software Companies by Market Cap
A31: Company | B31: Symbol | C31: Price | D31: Change | E31: Market Cap | F31: P/E
A32: Microsoft Corporation | B32: MSFT | C32: 35.02 | D32: Up2.19% | E32: 292.46B | F32: 18.07
A33: Oracle Corporation | B33: ORCL | C33: 34.53 | D33: Up1.41% | E33: 162.66B | F33: 16.08
A34: SAP AG | B34: SAP | C34: 77.01 | D34: Up1.50% | E34: 91.83B | F34: 24.47
A35: salesforce.com, inc | B35: CRM | C35: 41.8 | D35: Down3.35% | E35: 24.59B | F35: N/A
A36: Adobe Systems Inc. | B36: ADBE | C36: 42.91 | D36: Up1.13% | E36: 21.54B | F36: 30.26
A37: Intuit Inc. | B37: INTU | C37: 59.11 | D37: Up2.09% | E37: 17.56B | F37: 20.33
A38: Showing 1 - 5 of 132 - View All
A41: More Top Companies: by Performance, by Valuation, by Growth, by Growth
A43: MSFT vs. Industry Leaders
A44: Statistic | B44: Industry Leader | D44: MSFT | E44: MSFT Rank
A45: Market Capitalization | B45: MSFT | C45: 292.46B | D45: - | E45: 1 / 132
A46: P/E Ratio (ttm) | B46: SPSC | C46: 680 | D46: 18.07 | E46: 42 / 132
A47: PEG Ratio (ttm, 5 yr expected) | B47: IMPV | C47: 31.68 | D47: 1.48 | E47: 29 / 132
A48: Revenue Growth (Qtrly YoY) | B48: NQ | C48: 1.08 | D48: 0.177 | E48: 38 / 132
A49: EPS Growth (Qtrly YoY) | B49: FLTX | C49: 1.551 | D49: 0.2 | E49: 19 / 132
A50: Long-Term Growth Rate (5 yr) | B50: WDAY | C50: 0.5 | D50: 0.0853 | E50: 69 / 132
A51: Return on Equity (ttm) | B51: CDNS | C51: 0.6585 | D51: 0.2258 | E51: 10 / 132
A52: Long-Term Debt/Equity (mrq) | D52: 19.253 | E52: N/A
A53: Dividend Yield (annual) | B53: AMSWA | C53: 0.048 | D53: 0.027 | E53: 6 / 132
A55: View Leaders & Laggards
A57: More on Application Software
A59: • | B59: Industry Summary | G59: • | H59: Company List
A60: • | B60: News | G60: • | H60: Industry Calendar
A61: • | B61: Leaders & Laggards
A63: Related Industries
A65: • | B65: Business Software & Services | G65: • | H65: Information Technology Services
A66: • | B66: Healthcare Information Services | G66: • | H66: Security Software & Services
A67: • | B67: Information & Delivery Services | G67: • | H67: Technical & System Software
A69: Top Performing Industries | Complete Industry List
A71: Currency in USD.
A73: Copyright © 2013 Yahoo! Inc. All rights reserved. Privacy Policy - About Our Ads - Terms of Service - Copyright/IP Policy - Send Feedback - Yahoo! - ABC News Network
A74: Quotes are real-time for NASDAQ, NYSE, and NYSE MKT. See also delay times for other exchanges. All information provided "as is" for informational purposes only, not intended for trading purposes or advice. Neither Yahoo! nor any of independent providers is liable for any informational errors, incompleteness, or delays, or for any actions taken in reliance on information contained herein. By accessing the Yahoo! site, you agree not to redistribute the information found therein. Real-Time continuous streaming quotes are available through our premium service. You may turn streaming quotes on or off.
A76: Fundamental company data provided by Capital IQ. Historical chart data and daily updates provided by Commodity Systems, Inc. (CSI). International historical chart data, daily updates, fund summary, fund performance, dividend data and Morningstar Index data provided by Morningstar, Inc.

Sheet SC - Sector and Industry3
A1: Search | B1: Search Web
A7: AdvertisementAdvertisement
A9: Industry: Diversified Computer Systems | G9: Get Industry for:
A10: HPQ Sector / Industry Membership
A11: Sector: | B11: Technology
A12: Industry: | B12: Diversified Computer Systems
A14: Intraday Performance Summary
A15: Name | G15: Ticker | I15: Change | J15: Chart for Hewlett-Packard Company (HPQ)
A16: Hewlett-Packard Company | G16: HPQ | I16: Up1.82%
A17: Diversified Computer Systems | G17: ^YHOh878 | I17: Up1.11%
A18: View Diversified Computer Systems Industry Center
A19: Diversified Computer Systems Industry News
A21: Fisker loses key board member as bidders circle companyReuters (Tue 6:49PM EDT)
A22: International Business Machines Corp (IBM): Today's Featured Computer Software & Services Winnerat TheStreet (Tue 5:00PM EDT)
A23: When Customers Talk, Can You Hear Them? Lessons From HPat Forbes (Tue 2:52PM EDT)
A24: Michael Dell: All Business During A Stormat Forbes (Tue 2:38PM EDT)
A25: Hewlett-Packard Co Stock Upgraded (HPQ)at TheStreet (Tue 12:58PM EDT)
A27: More Industry News...
A30: Top Diversified Computer Systems Companies by Market Cap
A31: Company | B31: Symbol | C31: Price | D31: Change | E31: Market Cap | F31: P/E
A32: International Business Machines Corporation | B32: IBM | C32: 207.78 | D32: Up1.00% | E32: 230.39B | F32: 14.33
A33: Hewlett-Packard Company | B33: HPQ | C33: 24.65 | D33: Up1.82% | E33: 47.70B | F33: N/A
A34: Teradata Corporation | B34: TDC | C34: 54.46 | D34: Up0.11% | E34: 8.90B | F34: 24.05
A35: Cray Inc. | B35: CRAY | C35: 17.81 | D35: Up1.19% | E35: 667.13M | F35: 4.53
A36: Silicon Graphics International Corp. | B36: SGI | C36: 14.77 | D36: Up1.93% | E36: 499.54M | F36: N/A
A37: Invent Ventures, Inc. | B37: IDEA | C37: 0.24 | D37: 0 | E37: 8.86M | F37: N/A
A38: Showing 1 - 5 of 7 - View All
A41: More Top Companies: by Performance, by Valuation, by Growth, by Growth
A43: HPQ vs. Industry Leaders
A44: Statistic | B44: Industry Leader | D44: HPQ | E44: HPQ Rank
A45: Market Capitalization | B45: IBM | C45: 230.39B | D45: 47.70B | E45: 2013-02-07
A46: P/E Ratio (ttm) | B46: TDC | C46: 24.05 | D46: N/A | E46: N/A
A47: PEG Ratio (ttm, 5 yr expected) | B47: SGI | C47: 5.72 | D47: N/A | E47: 2013-05-07
A48: Revenue Growth (Qtrly YoY) | B48: SGI | C48: 0.166 | D48: -0.101 | E48: 2013-04-07
A49: EPS Growth (Qtrly YoY) | B49: IBM | C49: 0.034 | D49: -0.312 | E49: 2013-02-07
A50: Long-Term Growth Rate (5 yr) | B50: CRAY | C50: 0.2 | D50: 0 | E50: N/A
A51: Return on Equity (ttm) | B51: IBM | C51: 0.8286 | D51: -0.4084 | E51: 2013-05-07
A52: Long-Term Debt/Equity (mrq) | D52: 111.946 | E52: N/A
A53: Dividend Yield (annual) | B53: HPQ | C53: 0.024 | D53: - | E53: 2013-01-07
A55: View Leaders & Laggards
A57: More on Diversified Computer Systems
A59: • | B59: Industry Summary | G59: • | H59: Company List
A60: • | B60: News | G60: • | H60: Industry Calendar
A61: • | B61: Leaders & Laggards
A63: Related Industries
A65: • | B65: Computer Based Systems | G65: • | H65: Networking & Communication Devices
A66: • | B66: Computer Peripherals | G66: • | H66: Personal Computers
A67: • | B67: Data Storage Devices
A69: Top Performing Industries | Complete Industry List
A71: Currency in USD.
A73: Copyright © 2013 Yahoo! Inc. All rights reserved. Privacy Policy - About Our Ads - Terms of Service - Copyright/IP Policy - Send Feedback - Yahoo! - ABC News Network
A74: Quotes are real-time for NASDAQ, NYSE, and NYSE MKT. See also delay times for other exchanges. All information provided "as is" for informational purposes only, not intended for trading purposes or advice. Neither Yahoo! nor any of independent providers is liable for any informational errors, incompleteness, or delays, or for any actions taken in reliance on information contained herein. By accessing the Yahoo! site, you agree not to redistribute the information found therein. Real-Time continuous streaming quotes are available through our premium service. You may turn streaming quotes on or off.
A76: Fundamental company data provided by Capital IQ. Historical chart data and daily updates provided by Commodity Systems, Inc. (CSI). International historical chart data, daily updates, fund summary, fund performance, dividend data and Morningstar Index data provided by Morningstar, Inc.

Sheet SC - FinViz Profile1
D1: Welcome Guest! Login | Register | Help
B5: Home | D5: News | F5: Screener | H5: Maps | J5: Groups | L5: Portfolio | N5: Insider | P5: Futures | R5: Forex | T5: Collaborate | V5: Store | Y5: Elite
AB7: Ticker | AD7: Company | AF7: Profile
A12: publish chart | backtests Type: candle | line | advanced Timeframe: intraday | daily | weekly | monthly | C12: Settings
A15: IBM [NYSE]
A16: International Business Machines Corp.
A17: Technology | Information Technology Services | USA
B18: financial highlights | statements
A19: Index | C19: DJIA S&P500 | D19: P/E | E19: 14.33 | F19: EPS (ttm) | G19: 14.5 | H19: Insider Own | I19: 0.0006 | J19: Shs Outstand | K19: 1.11B | L19: Perf Week | M19: 0.0009
A20: Market Cap | C20: 230.38B | D20: Forward P/E | E20: 11.32 | F20: EPS next Y | G20: 18.35 | H20: Insider Trans | I20: 0.1564 | J20: Shs Float | K20: 1.11B | L20: Perf Month | M20: 0.0744
A21: Income | C21: 16.57B | D21: PEG | E21: 1.37 | F21: EPS next Q | G21: 3.78 | H21: Inst Own | I21: 0.6002 | J21: Short Float | K21: 0.0151 | L21: Perf Quarter | M21: 0.0483
A22: Sales | C22: 103.24B | D22: P/S | E22: 2.23 | F22: EPS this Y | G22: 0.1 | H22: Inst Trans | I22: -0.0045 | J22: Short Ratio | K22: 3.9 | L22: Perf Half Y | M22: 0.0834
A23: Book/sh | C23: 17.21 | D23: P/B | E23: 12.07 | F23: EPS next Y | G23: 0.1008 | H23: ROA | I23: 0.1425 | J23: Target Price | K23: 221.9 | L23: Perf Year | M23: 0.0781
A24: Cash/sh | C24: 10.82 | D24: P/C | E24: 19.21 | F24: EPS next 5Y | G24: 0.1049 | H24: ROE | I24: 0.8328 | J24: 52W Range | K24: 178.69 - 214.90 | L24: Perf YTD | M24: 0.0944
A25: Dividend | C25: 3.8 | D25: P/FCF | E25: 20.96 | F25: EPS past 5Y | G25: 0.1498 | H25: ROI | I25: 0.2179 | J25: 52W High | K25: -0.0331 | L25: Beta | M25: 0.69
A26: Dividend % | C26: 0.0183 | D26: Quick Ratio | E26: 1.1 | F26: Sales past 5Y | G26: 0.0113 | H26: Gross Margin | I26: 0.4829 | J26: 52W Low | K26: 0.1628 | L26: ATR | M26: 3.28
A27: Employees | C27: 434246 | D27: Current Ratio | E27: 1.16 | F27: Sales Q/Q | G27: -0.0513 | H27: Oper. Margin | I27: 0.2099 | J27: RSI (14) | K27: 56.22 | L27: Volatility | M27: 1.30% 1.32%
A28: Optionable | C28: Yes | D28: Debt/Eq | E28: 1.75 | F28: EPS Q/Q | G28: 0.0331 | H28: Profit Margin | I28: 0.1605 | J28: Rel Volume | K28: 0.93 | L28: Prev Close | M28: 205.72
A29: Shortable | C29: Yes | D29: LT Debt/Eq | E29: 1.29 | F29: Earnings | G29: Apr 18 AMC | H29: Payout | I29: 0.2324 | J29: Avg Volume | K29: 4.29M | L29: Price | M29: 207.78
A30: Recom | C30: 2.4 | D30: SMA20 | E30: 0.0191 | F30: SMA50 | G30: 0.0107 | H30: SMA200 | I30: 0.0451 | J30: Volume | K30: 4009946 | L30: Change | M30: 0.01
A33: 2013-04-19 | B33: Reiterated | C33: Deutsche Bank | D33: Buy | E33: $240 → $225
A34: 2013-04-10 | B34: Upgrade | C34: UBS | D34: Neutral → Buy | E34: $210 → $235
A35: 2012-10-15 | B35: Reiterated | C35: Stifel Nicolaus | D35: Buy | E35: $221 → $243
A36: 2012-09-04 | B36: Upgrade | C36: Barclays | D36: Equal Weight → Overweight | E36: $208 → $240
A37: 2012-07-19 | B37: Reiterated | C37: UBS | D37: Neutral | E37: $205 → $203
A38: 2012-07-11 | B38: Initiated | C38: UBS | D38: Neutral | E38: 205
A39: 2012-04-18 | B39: Reiterated | C39: Stifel Nicolaus | D39: Buy | E39: $210 → $230
A40: 2012-04-18 | B40: Reiterated | C40: RBC Capital Mkts | D40: Sector Perform | E40: $200 → $215
A41: 2012-04-18 | B41: Reiterated | C41: Barclays | D41: Equal Weight | E41: $200 → $217
A42: 2012-04-18 | B42: Downgrade | C42: Macquarie | D42: Outperform → Neutral | E42: $210 → $215
A43: 2012-03-29 | B43: Reiterated | C43: Argus | D43: Buy | E43: $220 → $235
A44: 2012-03-23 | B44: Reiterated | C44: UBS | D44: Neutral | E44: $195 → $203
A45: 2012-02-07 | B45: Initiated | C45: Sterne Agee | D45: Buy
A46: 2012-01-10 | B46: Reiterated | C46: Barclays Capital | D46: Equal Weight | E46: $205 → $195
A47: 2011-12-06 | B47: Reiterated | C47: Barclays Capital | D47: Equal Weight | E47: $190 → $205
A48: 2011-07-19 | B48: Reiterated | C48: UBS | D48: Neutral | E48: $169 → $180
A49: 2011-07-19 | B49: Reiterated | C49: RBC Capital Mkts | D49: Sector Perform | E49: $180 → $200
A50: 2011-07-19 | B50: Reiterated | C50: Barclays Capital | D50: Equal Weight | E50: $176 → $190
A51: 2011-07-07 | B51: Downgrade | C51: Davenport | D51: Buy → Neutral | E51: 189
A52: 2011-04-20 | B52: Reiterated | C52: Stifel Nicolaus | D52: Buy | E52: $185 → $187
A54: 28-May-13 06:02PM | F54: Final Glance: Computer companies AP
A55: 05:00PM | F55: International Business Machines Corp (IBM): Today's Featured Computer Software & Services Winner at TheStreet
A56: 04:43PM | F56: 4 Tech Stock Stories to Start the Short Trading Week at Wall St. Cheat Sheet
A57: 04:30PM | F57: Dow Today: International Business Machines (IBM) Leads The Day Higher, AT&T (T) Lags at TheStreet
A58: 03:25PM | F58: Accenture Helps NHS Radiologists Zacks
A59: 02:38PM | F59: Michael Dell: All Business During A Storm at Forbes
A60: 01:27PM | F60: Complex Multinationals Increase Value as Investors Develop Appreciation for Eclectic Businesses: an Interview with Nick Heymann, Co-Group Head, Global Industrial Infrastructure for William Blair & Company Wall Street Transcript
A61: 01:17PM | F61: Midday Glance: Computer companies AP
A62: 01:03PM | F62: 5 Stocks Pushing The Technology Sector Higher at TheStreet
A63: 12:44PM | F63: Midday Movers: UNH, PG, EXC & More at CNBC
A64: 12:16PM | F64: Lenovo Expanding Smartphone Sales Outside Home Market at TheStreet
A65: 12:10PM | F65: McDonalds Makes Friends In Italy, IBM Settles Acacia Matters, and 3 More Hot Stocks at Wall St. Cheat Sheet
A66: 11:45AM | F66: [audio] Cardillo: Month will end with big gains at MarketWatch
A67: 11:31AM | F67: The most powerful women in business -- then and now at Fortune
A68: 11:25AM | F68: Is This Comeback for Real? at Motley Fool
A69: 11:20AM | F69: Michael Dell: All Business at Forbes
A70: 11:14AM | F70: Can Foxconn Compete With Apple in the Tablet Market? The Daily Ticker
A71: 10:31AM | F71: Early Glance: Computer companies AP
A72: 10:22AM | F72: Is Buying After a Tech Company Warns a Good Tactic? at Motley Fool
A73: 06:15AM | F73: The Buyback Kings, Part 3: Which Of These Massive Tech Kings Should You Own? at Seeking Alpha
A74: 06:03AM | F74: Acacia Research subsidiary enters into license agreement with IBM theflyonthewall.com
A75: 27-May-13 01:55PM | F75: Lack Of IBM-Lenovo Deal Implies Rapid Change In Server Market at Seeking Alpha
A76: 26-May-13 04:00PM | F76: The Dow Jumps the Gun at Motley Fool
A77: 02:00PM | F77: Microsoft Catches a Wave, and the First Shot in the Software Patent Wars at Motley Fool
A78: 11:45AM | F78: It's Time to Buy Xerox Stock. Here's Why. at Motley Fool
A79: 25-May-13 04:00PM | F79: The Wealth of a Galaxy Not So Far Away at Motley Fool
A80: 11:01AM | F80: The 4 Dow Stocks With the Fastest-Growing Dividends at Motley Fool
A81: 05:35AM | F81: There's More to Microsoft Than Windows 8 at Motley Fool
A82: 24-May-13 06:51PM | F82: Cisco Stepping On The Toes Of IBM And Hewlett-Packard at Seeking Alpha
A83: 06:03PM | F83: Final Glance: Computer companies AP
A84: 05:40PM | F84: 4 Tech Stock Stories to Close the Trading Week at Wall St. Cheat Sheet
A85: 03:09PM | F85: Lenovo Still Far From Getting Its Due at Investopedia
A86: 02:13PM | F86: SuccessFactors CEO Dalgaard Leaving SAP in Cloud Business Shake-Up at AllThingsD
A87: 01:17PM | F87: Midday Glance: Computer companies AP
A88: 12:09PM | F88: Salesforce.com Still Growing And Still Expensive at Investopedia
A89: 11:50AM | F89: SolarWinds Set to Buy N-able Zacks
A90: 11:37AM | F90: SAP revamps management to focus on cloud computing Reuters
A91: 11:14AM | F91: Nomura Downgrades Infosys on U.S. Immigration Bill at Barrons.com
A92: 11:07AM | F92: Google Sets Off Bidding War With Facebook and 3 More Hot Stocks at Wall St. Cheat Sheet
A93: 10:33AM | F93: Early Glance: Computer companies AP
A94: 10:30AM | F94: SAP revamps management to focus on cloud computing at Reuters
A95: 09:19AM | F95: Top CEOs Ranked By Their (Lousy) Stock Performance The Daily Ticker
A96: 09:18AM | F96: Google May Follow Apple on Tax-Dodging Dividend at TheStreet
A97: 08:00AM | F97: IBM Helps Xiu.com Analyze Big Data to Grow Daily Sales 10 Times PR Newswire
A98: 07:08AM | F98: Tech Stocks Are Still Undervalued at Motley Fool
A99: 23-May-13 08:32PM | F99: Content Marketing Beckons to an Executive From a Digital Agency at New York Times
A100: 06:03PM | F100: Final Glance: Computer companies AP
A101: 04:30PM | F101: Dow Today: Merck (MRK) Leads The Day Higher, International Business Machines (IBM) Lags at TheStreet
A102: 03:11PM | F102: IBM CFO Forecasts 8% Profit Jump for Second Quarter at Bloomberg
A103: 02:38PM | F103: Why Hewlett-Packard's Blowing the Dow Away at Motley Fool
A104: 02:27PM | F104: IBM sees double digit EPS growth in Q4 at theflyonthewall.com
A105: 01:47PM | F105: Midday Glance: Computer companies AP
A106: 01:40PM | F106: IBM's Breakthrough: Watson May Help Beat Cancer at Bloomberg
A107: 01:18PM | F107: Leading Vietnamese Bank Reaches New Clients with IBM Smarter Computing PR Newswire
A108: 12:35PM | F108: IBM-Waterfund Index Expands With Uganda as First African Nation at Bloomberg
A109: 12:20PM | F109: What I learned working for Martha Stewart at Fortune
A110: 12:00PM | F110: Cost Improvements Are Good, But Hewlett-Packard Needs Revenue Growth at Investopedia
A111: 11:30AM | F111: HP rallies 14%, trouncing broader sell-off at CNNMoney.com
A112: 11:15AM | F112: U.S. Tries To Halt Stock Slide After Selloff Goes Global at Forbes
A113: 10:46AM | F113: Early Glance: Computer companies AP
A114: 10:41AM | F114: Semiconductor Equipment Companies That Are Hot Or Lukewarm at Seeking Alpha
A115: 10:40AM | F115: Is HP's Turnaround Strategy Sustainable? at AllThingsD
A116: 10:15AM | F116: Is HP's Turnaround Strategy Sustainable? at AllThingsD
A117: 10:07AM | F117: Lenovo Sees No Limit to Size for Acquisitions in Phones, Servers at Bloomberg
A118: 09:45AM | F118: Seeking Shelter From the Storm, in Big Data at CNBC
A119: 09:13AM | F119: Does Oracle Support a Move Higher? at Wall St. Cheat Sheet
A120: 12:01AM | F120: Pentagon to Buy Records System Amid Backlog in Veterans Claims at Bloomberg
A121: 12:01AM | F121: Uganda Selects IBM and Waterfund to Benchmark Water Infrastructure PR Newswire
A122: 22-May-13 11:11PM | F122: On top of big salaries, companies pile on perks AP
A123: 08:41PM | F123: Q&A With HP CEO Meg Whitman and CFO Cathie Lesjak: The Turnaround Is on Schedule at AllThingsD
A124: 07:52PM | F124: HP's Whitman Talks of Dell 'Cratering' Its Financials, And the DNA of Productivity at Barrons.com
A125: 06:52PM | F125: HP raises 2013 outlook as Whitman's plan takes hold Reuters
A126: 06:08PM | F126: Final Glance: Computer companies AP
A127: 05:06PM | F127: Dow Today: Home Depot (HD) Leads The Day Higher, International Business Machines (IBM) Lags at TheStreet
A128: 04:49PM | F128: Liveblogging Hewlett-Packard's Q2 Earnings Conference Call at AllThingsD
A129: 04:49PM | F129: HP's Turnaround Progress Slow but Sure, Says CEO Whitman at AllThingsD
A130: 04:43PM | F130: Information Sharing Critical To Cyber Defense at Forbes
A131: 04:16PM | F131: HP's Q2 Earnings Beat Expectations on Weak Sales at AllThingsD
A132: 04:15PM | F132: On top of big salaries, companies pile on perks AP
A133: 03:54PM | F133: On top of big salaries, companies pile on perks AP
A134: 03:45PM | F134: Jim Simons' top stock holdings at MarketWatch
A135: 03:05PM | F135: Compuware's Covisint Files S-1 Zacks
A136: 02:27PM | F136: If Cloud Computing Is Here, Then Where Is My Jet Pack? at Forbes
A137: 02:25PM | F137: Investors Warm to HP, but Big Challenges Remain at TheStreet
A138: 02:25PM | F138: Investors Warm to HP but Big Challenges Remain at TheStreet
A139: 02:05PM | F139: How `Watson' Has Evolved Since Its Jeopardy Days at Bloomberg
A140: 01:46PM | F140: IBM Debuts Watson Engagement Tech and 2 Other Dow Movers to Watch at Wall St. Cheat Sheet
A141: 01:17PM | F141: Midday Glance: Computer companies AP
A142: 01:00PM | F142: IBM Announces New Capabilities to Deliver Real-Time Analytics via the Cloud PR Newswire
A143: 12:44PM | F143: Cisco Outgrows IBM at Motley Fool
A144: 12:42PM | F144: IBM's Watson Is Being Taught to Treat Cancer at CNBC
A145: 12:04PM | F145: Are These Dow Companies Buying Back Wisely? at Motley Fool
A146: 12:00PM | F146: The Dannon Company Uses IBM Smarter Commerce to Support Yogurt Market Gains With Big Data Analytics PR Newswire
A147: 12:00PM | F147: IBM Study: Top Chief Procurement Officers Drive 22 Percent Higher Profit Margins PR Newswire
A148: 12:00PM | F148: CEVA Logistics Taps IBM SmartCloud to Deliver Real-time Supply Chain Services to Industry Leaders PR Newswire
A149: 11:50AM | F149: NetApp Is Probably Cheap, But The Headwinds Aren't Going Away at Investopedia
A150: 11:33AM | F150: Microsoft Seizes Control of the Computer Industry at Motley Fool
A151: 10:51AM | F151: Early Glance: Computer companies AP
A152: 10:40AM | F152: The Big Bang Island Theory at Motley Fool
A153: 10:25AM | F153: Compuware's 4Q Earnings Lag Zacks
A155: International Business Machines Corporation provides information technology (IT) products and services worldwide. The company operates in five segments: Global Technology Services, Global Business Services, Software, Systems and Technology, and Global Financing. The Global Technology Services segment provides IT infrastructure and business process services, including strategic outsourcing, process, integrated technology, and technology support services. The Global Business Services segment offers consulting solutions for strategy and transformation, application innovation, enterprise applications, and smarter analytics; and application management, maintenance, and support services. The Software segment offers middleware and operating systems software, such as WebSphere software to integrate and manage business processes; information management software for database and enterprise content management, information integration, data warehousing, performance management business analytics and intelligence, and data analytics; Tivoli software for cloud and datacenter management, enterprise endpoint and mobile device management, asset and facilities management, storage management, and security systems; Lotus Software to connect people and processes for communication; rational software to support software development for IT and embedded systems; and operating systems software. The Systems and Technology segment provides computing power and storage solutions; and semiconductor technology, products, and packaging solutions. The Global Financing segment provides lease and loan financing to end users; commercial financing to dealers and remarketers of IT products; and remanufacturing and remarketing services for equipment. The company was formerly known as Computing-Tabulating-Recording Co. and changed its name to International Business Machines Corporation in 1924. The company was founded in 1910 and is headquartered in Armonk, New York.
A157: Insider Trading | F157: Relationship | G157: Date | H157: Transaction | I157: Cost | J157: #Shares | K157: Value ($) | L157: #Shares Total | M157: SEC Form 4
A158: Clementi Erich | F158: Senior Vice President | G158: 2013-05-23 | H158: Option Exercise | I158: 101.33 | J158: 5885 | K158: 596327 | L158: 47190 | M158: 2013-05-24T13:00:00
A159: Clementi Erich | F159: Senior Vice President | G159: 2013-05-23 | H159: Sale | I159: 208.33 | J159: 3550 | K159: 739572 | L159: 32305 | M159: 2013-05-24T13:01:00
A160: Clementi Erich | F160: Senior Vice President | G160: 2013-05-23 | H160: Sale | I160: 208.02 | J160: 11335 | K160: 2357962 | L160: 35855 | M160: 2013-05-24T13:00:00
A161: Rhodin Michael D. | F161: Senior Vice President | G161: 2013-05-16 | H161: Sale | I161: 205.8 | J161: 6000 | K161: 1234802 | L161: 13486 | M161: 2013-05-17T11:39:00
A162: Arnold Colleen F. | F162: Senior Vice President | G162: 2013-02-28 | H162: Sale | I162: 203 | J162: 9730 | K162: 1975190 | L162: 21849 | M162: 2013-03-01T11:46:00
A163: Shaughnessy Timothy S | F163: Senior Vice President | G163: 2013-02-27 | H163: Sale | I163: 202.07 | J163: 12000 | K163: 2424870 | L163: 25275 | M163: 2013-02-28T11:42:00
A164: van Kralingen Bridget A | F164: Senior Vice President | G164: 2013-02-27 | H164: Sale | I164: 200 | J164: 12000 | K164: 2400000 | L164: 16382 | M164: 2013-02-28T11:42:00
A165: TAUREL SIDNEY | F165: Director | G165: 2013-02-20 | H165: Option Exercise | I165: 85.35 | J165: 4000 | K165: 341400 | L165: 12673 | M165: 2013-02-21T13:54:00
A166: Di Leo Allen Bruno V | F166: Senior Vice President | G166: 2013-02-20 | H166: Sale | I166: 201.52 | J166: 8000 | K166: 1612176 | L166: 26259 | M166: 2013-02-21T13:58:00
A167: Rhodin Michael D. | F167: Senior Vice President | G167: 2013-02-20 | H167: Sale | I167: 200.97 | J167: 3000 | K167: 602920 | L167: 19469 | M167: 2013-02-21T13:56:00
A168: TAUREL SIDNEY | F168: Director | G168: 2013-02-20 | H168: Sale | I168: 200.35 | J168: 1710 | K168: 342595 | L168: 10963 | M168: 2013-02-21T13:54:00
A169: Rometty Virginia M | F169: Chairman, Pres. and CEO | G169: 2013-02-19 | H169: Sale | I169: 200.6 | J169: 12500 | K169: 2507500 | L169: 114786 | M169: 2013-02-20T10:58:00
A170: CHENAULT KENNETH I | F170: Director | G170: 2013-02-15 | H170: Option Exercise | I170: 85.35 | J170: 4000 | K170: 341400 | L170: 6735 | M170: 2013-02-19T15:17:00
A171: LeBlanc Robert J. | F171: Senior Vice President | G171: 2013-02-15 | H171: Sale | I171: 200.76 | J171: 9598 | K171: 1926878 | L171: 51400 | M171: 2013-02-19T15:20:00
A172: CHENAULT KENNETH I | F172: Director | G172: 2013-02-15 | H172: Sale | I172: 200.41 | J172: 4000 | K172: 801657 | L172: 2735 | M172: 2013-02-19T15:17:00
A173: KELLY JOHN E III | F173: Senior Vice President | G173: 2013-02-12 | H173: Sale | I173: 200.07 | J173: 3698 | K173: 739853 | L173: 19671 | M173: 2013-02-13T10:26:00
A174: MACDONALD J RANDALL | F174: Senior Vice President | G174: 2013-02-08 | H174: Sale | I174: 201.52 | J174: 10596 | K174: 2135287 | L174: 44668 | M174: 2013-02-11T13:24:00
A175: MACDONALD J RANDALL | F175: Senior Vice President | G175: 2013-02-08 | H175: Sale | I175: 201.39 | J175: 13453 | K175: 2709310 | L175: 55264 | M175: 2013-02-11T13:22:00
A176: Adkins Rodney C | F176: Senior Vice President | G176: 2013-02-06 | H176: Sale | I176: 200.3 | J176: 13796 | K176: 2763329 | L176: 1 | M176: 2013-02-07T12:18:00
A177: Weber Robert C | F177: Senior Vice President | G177: 2013-02-06 | H177: Sale | I177: 201.08 | J177: 11500 | K177: 2312468 | L177: 19131 | M177: 2013-02-07T11:39:00
A178: Rhodin Michael D. | F178: Senior Vice President | G178: 2013-02-04 | H178: Sale | I178: 204.14 | J178: 3100 | K178: 632846 | L178: 22451 | M178: 2013-02-05T12:29:00
A179: Rometty Virginia M | F179: Chairman, Pres. and CEO | G179: 2013-01-29 | H179: Option Exercise | I179: 105.96 | J179: 30369 | K179: 3217899 | L179: 31056 | M179: 2013-01-30T15:54:00
A180: Daniels Michael E | F180: Senior Vice President | G180: 2013-01-29 | H180: Option Exercise | I180: 92.51 | J180: 16168 | K180: 1495702 | L180: 137915 | M180: 2013-01-30T15:55:00
A181: Daniels Michael E | F181: Senior Vice President | G181: 2013-01-29 | H181: Sale | I181: 204.91 | J181: 10543 | K181: 2160325 | L181: 90939 | M181: 2013-01-30T15:56:00
A182: Rometty Virginia M | F182: Chairman, Pres. and CEO | G182: 2013-01-29 | H182: Sale | I182: 204.72 | J182: 23311 | K182: 4772279 | L182: 7745 | M182: 2013-01-30T15:54:00
A183: Daniels Michael E | F183: Senior Vice President | G183: 2013-01-29 | H183: Sale | I183: 204.71 | J183: 36433 | K183: 7458266 | L183: 101482 | M183: 2013-01-30T15:55:00
A184: Weber Robert C | F184: Senior Vice President | G184: 2013-01-24 | H184: Sale | I184: 204.65 | J184: 7200 | K184: 1473460 | L184: 17547 | M184: 2013-01-25T12:42:00
A185: Daniels Michael E | F185: Senior Vice President | G185: 2013-12-18 | H185: Option Exercise | I185: 0 | J185: 35399 | K185: 0 | L185: 137801 | M185: 2013-12-19T16:18:00
A186: Rometty Virginia M | F186: Chairman, Pres. and CEO | G186: 2013-12-18 | H186: Option Exercise | I186: 0 | J186: 35399 | K186: 0 | L186: 36086 | M186: 2013-12-19T16:17:00
A187: Weber Robert C | F187: Senior Vice President | G187: 2013-12-18 | H187: Option Exercise | I187: 0 | J187: 13275 | K187: 0 | L187: 30863 | M187: 2013-12-19T16:17:00
A188: Shaughnessy Timothy S | F188: Senior Vice President | G188: 2013-11-28 | H188: Option Exercise | I188: 98.28 | J188: 3852 | K188: 378563 | L188: 2258 | M188: 2013-11-29T13:31:00
A189: Clementi Erich | F189: Senior Vice President | G189: 2013-11-28 | H189: Sale | I189: 191.55 | J189: 14792 | K189: 2833464 | L189: 31777 | M189: 2013-11-29T13:32:00
A190: Shaughnessy Timothy S | F190: Senior Vice President | G190: 2013-11-28 | H190: Sale | I190: 191.15 | J190: 3852 | K190: 736311 | L190: 24608 | M190: 2013-11-29T13:31:00
A191: IWATA JON C | F191: Senior Vice President | G191: 2013-11-26 | H191: Option Exercise | I191: 88.36 | J191: 24846 | K191: 2195293 | L191: 48416 | M191: 2013-11-27T16:07:00
A192: IWATA JON C | F192: Senior Vice President | G192: 2013-11-26 | H192: Sale | I192: 192.33 | J192: 29846 | K192: 5740246 | L192: 18570 | M192: 2013-11-27T16:07:00
A193: Clementi Erich | F193: Senior Vice President | G193: 2013-11-21 | H193: Option Exercise | I193: 105.96 | J193: 11248 | K193: 1191838 | L193: 57817 | M193: 2013-11-26T10:49:00
A194: Clementi Erich | F194: Senior Vice President | G194: 2013-11-21 | H194: Sale | I194: 190.45 | J194: 11248 | K194: 2142223 | L194: 46569 | M194: 2013-11-26T10:49:00
A195: LeBlanc Robert J. | F195: Senior Vice President | G195: 2013-11-21 | H195: Sale | I195: 190.48 | J195: 8017 | K195: 1527050 | L195: 51355 | M195: 2013-11-26T10:47:00
A196: Arnold Colleen F. | F196: Senior Vice President | G196: 2013-11-13 | H196: Sale | I196: 189.12 | J196: 5100 | K196: 964506 | L196: 21842 | M196: 2013-11-14T11:15:00
A197: Weber Robert C | F197: Senior Vice President | G197: 2013-11-06 | H197: Sale | I197: 195.65 | J197: 1738 | K197: 340036 | L197: 17588 | M197: 2013-11-07T10:30:00
A198: Rhodin Michael D. | F198: Senior Vice President | G198: 2013-11-01 | H198: Sale | I198: 196.66 | J198: 2000 | K198: 393310 | L198: 18542 | M198: 2013-11-02T14:19:00
A199: Adkins Rodney C | F199: Senior Vice President | G199: 2013-10-31 | H199: Sale | I199: 195.08 | J199: 11512 | K199: 2245776 | L199: 1 | M199: 2013-11-01T10:51:00
A200: Arnold Colleen F. | F200: Senior Vice President | G200: 2013-09-04 | H200: Option Exercise | I200: 0 | J200: 9709 | K200: 0 | L200: 31499 | M200: 2013-09-05T16:15:00
A201: Clementi Erich | F201: Senior Vice President | G201: 2013-09-04 | H201: Option Exercise | I201: 0 | J201: 19418 | K201: 0 | L201: 55515 | M201: 2013-09-05T16:14:00
A202: Bramante James P | F202: Senior Vice President | G202: 2013-09-04 | H202: Option Exercise | I202: 0 | J202: 4855 | K202: 0 | L202: 28568 | M202: 2013-09-05T16:15:00
A203: Di Leo Allen Bruno V | F203: Senior Vice President | G203: 2013-09-04 | H203: Option Exercise | I203: 0 | J203: 24272 | K203: 0 | L203: 42080 | M203: 2013-09-05T16:13:00
A204: KAVANAUGH JAMES J | F204: VP, Controller | G204: 2013-09-04 | H204: Option Exercise | I204: 0 | J204: 7282 | K204: 0 | L204: 12635 | M204: 2013-09-05T16:12:00
A205: LeBlanc Robert J. | F205: Senior Vice President | G205: 2013-09-04 | H205: Option Exercise | I205: 0 | J205: 29127 | K205: 0 | L205: 72779 | M205: 2013-09-05T16:11:00
A206: Rhodin Michael D. | F206: Senior Vice President | G206: 2013-09-04 | H206: Option Exercise | I206: 0 | J206: 14564 | K206: 0 | L206: 27254 | M206: 2013-09-05T16:10:00
A207: van Kralingen Bridget A | F207: Senior Vice President | G207: 2013-09-04 | H207: Option Exercise | I207: 0 | J207: 14564 | K207: 0 | L207: 29989 | M207: 2013-09-05T16:09:00
A208: Shaughnessy Timothy S | F208: Senior Vice President | G208: 2013-08-31 | H208: Option Exercise | I208: 0 | J208: 19418 | K208: 0 | L208: 33442 | M208: 2013-09-04T15:54:00
A209: Shaughnessy Timothy S | F209: Senior Vice President | G209: 2013-08-16 | H209: Option Exercise | I209: 92.9 | J209: 13433 | K209: 1247891 | L209: 27457 | M209: 2013-08-17T14:59:00
A210: Shaughnessy Timothy S | F210: Senior Vice President | G210: 2013-08-16 | H210: Sale | I210: 200.85 | J210: 13433 | K210: 2698032 | L210: 14024 | M210: 2013-08-17T14:59:00
A211: Daniels Michael E | F211: Senior Vice President | G211: 2013-08-14 | H211: Option Exercise | I211: 101.33 | J211: 31030 | K211: 3144270 | L211: 148529 | M211: 2013-08-15T13:55:00
A212: Daniels Michael E | F212: Senior Vice President | G212: 2013-08-14 | H212: Sale | I212: 198.69 | J212: 6141 | K212: 1220129 | L212: 102399 | M212: 2013-08-15T14:03:00
A213: Daniels Michael E | F213: Senior Vice President | G213: 2013-08-14 | H213: Sale | I213: 198.41 | J213: 8802 | K213: 1746373 | L213: 108540 | M213: 2013-08-15T14:02:00
A214: Daniels Michael E | F214: Senior Vice President | G214: 2013-08-14 | H214: Sale | I214: 198.25 | J214: 12891 | K214: 2555582 | L214: 117342 | M214: 2013-08-15T14:01:00
A215: Daniels Michael E | F215: Senior Vice President | G215: 2013-08-14 | H215: Sale | I215: 198.1 | J215: 11209 | K215: 2220501 | L215: 130233 | M215: 2013-08-15T13:56:00
... 8 more rows

Sheet SC - FinViz Profile2
D1: Welcome Guest! Login | Register | Help
B5: Home | D5: News | F5: Screener | H5: Maps | J5: Groups | L5: Portfolio | N5: Insider | P5: Futures | R5: Forex | T5: Collaborate | V5: Store | Y5: Elite
AB7: Ticker | AD7: Company | AF7: Profile
A12: publish chart | backtests Type: candle | line | advanced Timeframe: intraday | daily | weekly | monthly | C12: Settings
A15: MSFT [NASD]
A16: Microsoft Corporation
A17: Technology | Application Software | USA
B18: financial highlights | statements
A19: Index | C19: DJIA S&P500 | D19: P/E | E19: 18.05 | F19: EPS (ttm) | G19: 1.94 | H19: Insider Own | I19: 0.0482 | J19: Shs Outstand | K19: 8.35B | L19: Perf Week | M19: -0.0017
A20: Market Cap | C20: 292.46B | D20: Forward P/E | E20: 11.44 | F20: EPS next Y | G20: 3.06 | H20: Insider Trans | I20: -0.0915 | J20: Shs Float | K20: 7.59B | L20: Perf Month | M20: 0.1093
A21: Income | C21: 16.41B | D21: PEG | E21: 2.12 | F21: EPS next Q | G21: 0.75 | H21: Inst Own | I21: 0.6824 | J21: Short Float | K21: 0.0125 | L21: Perf Quarter | M21: 0.2884
A22: Sales | C22: 76.01B | D22: P/S | E22: 3.85 | F22: EPS this Y | G22: -0.2591 | H22: Inst Trans | I22: 0.0111 | J22: Short Ratio | K22: 1.81 | L22: Perf Half Y | M22: 0.2837
A23: Book/sh | C23: 9.18 | D23: P/B | E23: 3.81 | F23: EPS next Y | G23: 0.1087 | H23: ROA | I23: 0.1301 | J23: Target Price | K23: 33.64 | L23: Perf Year | M23: 0.2396
A24: Cash/sh | C24: 8.92 | D24: P/C | E24: 3.93 | F24: EPS next 5Y | G24: 0.0853 | H24: ROE | I24: 0.2257 | J24: 52W Range | K24: 25.87 - 35.27 | L24: Perf YTD | M24: 0.3311
A25: Dividend | C25: 0.92 | D25: P/FCF | E25: 14.4 | F25: EPS past 5Y | G25: 0.0701 | H25: ROI | I25: 0.1691 | J25: 52W High | K25: -0.0071 | L25: Beta | M25: 0.96
A26: Dividend % | C26: 0.0263 | D26: Quick Ratio | E26: 2.86 | F26: Sales past 5Y | G26: 0.076 | H26: Gross Margin | I26: 0.7525 | J26: 52W Low | K26: 0.3539 | L26: ATR | M26: 0.67
A27: Employees | C27: 94000 | D27: Current Ratio | E27: 2.93 | F27: Sales Q/Q | G27: 0.1771 | H27: Oper. Margin | I27: 0.2727 | J27: RSI (14) | K27: 70.31 | L27: Volatility | M27: 1.65% 1.78%
A28: Optionable | C28: Yes | D28: Debt/Eq | E28: 0.19 | F28: EPS Q/Q | G28: 0.1951 | H28: Profit Margin | I28: 0.2158 | J28: Rel Volume | K28: 0.92 | L28: Prev Close | M28: 34.27
A29: Shortable | C29: Yes | D29: LT Debt/Eq | E29: 0.16 | F29: Earnings | G29: Apr 18 AMC | H29: Payout | I29: 0.4544 | J29: Avg Volume | K29: 52.48M | L29: Price | M29: 35.02
A30: Recom | C30: 2.4 | D30: SMA20 | E30: 0.045 | F30: SMA50 | G30: 0.1386 | H30: SMA200 | I30: 0.2207 | J30: Volume | K30: 48104276 | L30: Change | M30: 0.0219
A33: 2013-05-22 | B33: Reiterated | C33: Barclays | D33: Equal Weight | E33: $29 → $35
A34: 2013-05-21 | B34: Reiterated | C34: UBS | D34: Buy | E34: $33 → $40
A35: 2013-05-15 | B35: Reiterated | C35: Stifel | D35: Buy | E35: $36 → $38
A36: 2013-04-30 | B36: Downgrade | C36: Standpoint Research | D36: Buy → Hold
A37: 2013-04-19 | B37: Reiterated | C37: Oppenheimer | D37: Outperform | E37: $36 → $34
A38: 2013-03-11 | B38: Reiterated | C38: MKM Partners | D38: Neutral | E38: $28 → $27
A39: 2013-01-25 | B39: Reiterated | C39: Barclays | D39: Equal Weight | E39: $30 → $29
A40: 2013-01-14 | B40: Reiterated | C40: UBS | D40: Buy | E40: $37 → $35
A41: 2013-01-07 | B41: Reiterated | C41: Barclays | D41: Equal Weight | E41: $30 → $31
A42: 2013-01-04 | B42: Downgrade | C42: Argus | D42: Buy → Hold
A43: 2012-12-20 | B43: Reiterated | C43: FBR Capital | D43: Mkt Perform | E43: $32 → $30
A44: 2012-12-14 | B44: Initiated | C44: BMO Capital Markets | D44: Market Perform | E44: 30
A45: 2012-12-13 | B45: Reiterated | C45: Barclays | D45: Equal Weight | E45: $34 → $31
A46: 2012-12-12 | B46: Upgrade | C46: Standpoint Research | D46: Hold → Buy | E46: 32
A47: 2012-12-05 | B47: Reiterated | C47: MKM Partners | D47: Neutral | E47: $32 → $28
A48: 2012-08-20 | B48: Initiated | C48: Longbow | D48: Buy | E48: 36
A49: 2012-07-20 | B49: Initiated | C49: Griffin Securities | D49: Buy | E49: 38
A50: 2012-05-04 | B50: Resumed | C50: Stifel Nicolaus | D50: Buy | E50: 38
A51: 2012-04-20 | B51: Reiterated | C51: FBR Capital | D51: Mkt Perform | E51: $30 → $32
A52: 2012-04-20 | B52: Reiterated | C52: Barclays | D52: Equal Weight | E52: $33 → $36
A54: 28-May-13 06:09PM | F54: NBA board approves sale of Kings basketball team to local investors at Reuters
A55: 06:02PM | F55: Most active Nasdaq-traded stocks AP
A56: 06:00PM | F56: Microsoft Leads Dow's 106-Point Surge at Motley Fool
A57: 04:42PM | F57: Stocks Take Flight on Back of Consumer Confidence at Motley Fool
A58: 04:24PM | F58: Staying Clear Of Hewlett Packard at Seeking Alpha
A59: 04:19PM | F59: Google goes Hollywood with 'The Internship' at Reuters
A60: 04:10PM | F60: Does It Pay to Believe in This Company? at Motley Fool
A61: 04:10PM | F61: Bill Gates Wants to Talk Corporate Tax Dirt at Wall St. Cheat Sheet
A62: 04:04PM | F62: CRUS: Price Pressure in Margins, Warns Feltl, Prefers ATML at Barrons.com
A63: 03:58PM | F63: Q&A: Sending an Automated Vacation Reply With Outlook.com at New York Times
A64: 03:55PM | F64: Playing Microsoft's Big Year at Bloomberg
A65: 03:55PM | F65: Amazon Appstore Now in 200 Countries Zacks
A66: 03:48PM | F66: If Foxconn sneezes, does that mean Apple caught a cold? at Fortune
A67: 03:47PM | F67: Taxes: Apple Is Right and Tim Cook Is a Strong Leader! at Motley Fool
A68: 03:45PM | F68: Flextronics: Margin, Capital Payout Hopes Too High, Says Raymond James at Barrons.com
A69: 03:33PM | F69: Telecoms Lag the Market's Gains on Threat From Google at Motley Fool
A70: 02:29PM | F70: Windows PCs Are Dying: This Might Be the Future at Motley Fool
A71: 02:08PM | F71: Google, Amazon join in broad tech gains at MarketWatch
A72: 02:03PM | F72: 1 Solid Reason to Own Microsoft Stock at Motley Fool
A73: 01:54PM | F73: Why I'm Selling Microsoft at Seeking Alpha
A74: 01:46PM | F74: Xbox One: Microsoft Wants To Be The Apple Of Your Living Room at Seeking Alpha
A75: 01:19PM | F75: Analysts: Microsoft Sentiments Are Improving and 3 More Research Notes to Read at Wall St. Cheat Sheet
A76: 01:03PM | F76: 5 Stocks Pushing The Technology Sector Higher at TheStreet
A77: 12:55PM | F77: PC shipments face sharp slump in 2013 as tablets ascend - IDC Reuters
A78: 12:45PM | F78: PC shipments face sharp slump in 2013 as tablets ascend - IDC at Reuters
A79: 12:44PM | F79: Microsoft Maneuvers For Piece Of Used Video Game Market at Forbes
A80: 12:38PM | F80: [video] Bibb: Tough Questions For Tim Cook at CNBC
A81: 12:23PM | F81: Huawei to Have a London Mobile Launch Event Two Days Before Samsung at AllThingsD
A82: 12:19PM | F82: Will BlackBerrys Google Approach Secure a Win Over Microsoft? at Motley Fool
A83: 12:18PM | F83: MSFT: New Favor for Win 8, Cloud, Says CLSA; ValueAct May Act, Says Nomura at Barrons.com
A84: 12:16PM | F84: Lenovo Expanding Smartphone Sales Outside Home Market at TheStreet
A85: 12:02PM | F85: IDC Sharply Cuts PC Shipment Forecast at The Wall Street Journal
A86: 11:59AM | F86: Is Microsoft Worth Buying For Its Dividend Alone? at Seeking Alpha
A87: 11:58AM | F87: Microsoft Makes Deal With the NFL and 2 Other Hot Stocks to Watch at Wall St. Cheat Sheet
A88: 11:29AM | F88: Google, Amazon join in broad market gains at MarketWatch
A89: 11:29AM | F89: Cisco challenges Microsoft buy of Skype in EU court at Reuters
A90: 11:14AM | F90: Can Foxconn Compete With Apple in the Tablet Market? The Daily Ticker
A91: 11:01AM | F91: Did the PC Downturn Attract This Activist Billionaire to Sony? at Motley Fool
A92: 11:01AM | F92: Is Google Becoming Unstoppable? at Wall St. Cheat Sheet
A93: 10:59AM | F93: Microsoft, NFL Enter into Partnership Zacks
A94: 10:55AM | F94: This Morning: Fear AAPL Margins? Tablets Trump Laptops, Change at MSFT? at Barrons.com
A95: 10:53AM | F95: This Morning: Fearing AAPL Margins, Tablets Surging, Change Comes to MSFT? at Barrons.com
A96: 10:49AM | F96: What Now For Advanced Micro Devices? at Seeking Alpha
A97: 10:38AM | F97: 1, 2, 3, 4...I Declare a Console War at Motley Fool
A98: 10:34AM | F98: The PC Market Is Imploding Because People Are Buying iPads And Other Tablets Instead Business Insider
A99: 10:23AM | F99: [video] EU Seeks Google Concessions, and More at MarketWatch
A100: 10:23AM | F100: This Tech Turnaround Takes Hold at Motley Fool
A101: 10:18AM | F101: Microsoft Changes An Ad After Blogger Points Out It Got The Math Wrong Business Insider
A102: 10:13AM | F102: Gates Supports Increased Corporate Tax Scrutiny at Bloomberg
A103: 09:57AM | F103: InPlay: Microsoft surges in early trade near last week's multi-year high at 35.27 and edges back -- session high 35.18 Briefing.com
A104: 09:53AM | F104: Nokia's Growth Is Bound To Come at Seeking Alpha
A105: 09:47AM | F105: Marissa Mayer's 'New York Yankees' Strategy Will Fail at Yahoo! at TheStreet
A106: 09:46AM | F106: EU to seek more Google concessions in competition probe Reuters
A107: 09:03AM | F107: Review: Nokia's Flagship Windows Phone on Verizon TheStreet
A108: 08:55AM | F108: Microsoft Plays Fast and Loose With iPad Screen Size at Wall St. Cheat Sheet
A109: 08:53AM | F109: Microsoft price target raised to $38 from $34 at CLSA theflyonthewall.com
A110: 08:28AM | F110: The Zacks Analyst Blog Highlights: McGraw-Hill Financial, Take-Two Interactive, Activision Blizzard, Microsoft and Sony Zacks
A111: 08:20AM | F111: [video] Swing Dancing With the Bulls and Bears at CNBC
A112: 08:18AM | F112: 5 Stock Predictions For This Week at Seeking Alpha
A113: 07:58AM | F113: Employment at U.K. Banks at 9 Year Low at Bloomberg
A114: 07:44AM | F114: The Long Case For Microsoft: 5 Reasons To Be A Bull at Seeking Alpha
A115: 07:40AM | F115: Is Facebook A Buy? at Wall St. Cheat Sheet
A116: 06:41AM | F116: EU's Almunia says likely to demand more Google concessions Reuters
A117: 06:15AM | F117: The Buyback Kings, Part 3: Which Of These Massive Tech Kings Should You Own? at Seeking Alpha
A118: 06:13AM | F118: Tech Stocks Are 'Where Cash Goes to Die': Fund Pro at CNBC
A119: 06:08AM | F119: On the Fly: Periodicals Wrap-Up at theflyonthewall.com
A120: 03:17AM | F120: Microsoft's Gates Supports Corporate Tax Scrutiny at The Wall Street Journal
A121: 02:23AM | F121: Are People Afraid Of Apple? at Seeking Alpha
A122: 12:06AM | F122: Yahoo! Operates More Like a Hedge Fund at Motley Fool
A123: 12:01AM | F123: Bring your own service: Employees want social tools at work, despite company restrictions and hesitation, reports new Microsoft survey PR Newswire
A124: 12:00AM | F124: TopShop, Microsoft, New York University: Intellectual Property at Bloomberg
A125: 27-May-13 09:16PM | F125: ValueAct's Stake in Microsoft Could Be a Gamble at Motley Fool
A126: 07:49PM | F126: Is Tablet Success the Last Hope for Windows 8? at Wall St. Cheat Sheet
A127: 07:00PM | F127: Nigerian Smartphone Boom Sees Nokia African Dominance Challenged at Bloomberg
A128: 01:34PM | F128: Samsung Schedules June 20 London Event for New Android, Windows Gear at AllThingsD
A129: 12:45PM | F129: The Five Biggest Problems With The Xbox One at Forbes
A130: 10:57AM | F130: How Xbox One Will Change Advertising Forever at Forbes
A131: 10:31AM | F131: Has Microsoft Beaten Apple With the Xbox One? at Wall St. Cheat Sheet
A132: 24-May-13 08:19PM | F132: Apple's tax practices are no laughing matter; Yes, they are at Investor's Business Daily
A133: 08:10PM | F133: Violence spreads outside Swedish capital but violence abates at Reuters
A134: 08:02PM | F134: Is Microsoft Stock a Buy? at Motley Fool
A135: 07:48PM | F135: Google Said to Consider Buying Waze Presaging Bidding War at Bloomberg
A136: 07:21PM | F136: MarketWatchs top 10 stories, May 20-24 at MarketWatch
A137: 06:10PM | F137: A Game-Changer for Microsoft? at Motley Fool
A138: 06:04PM | F138: Most active Nasdaq-traded stocks AP
A139: 05:30PM | F139: [video] Buying Opportunity in Google? at CNBC
A140: 05:00PM | F140: This Week's 5 Smartest Stock Moves at Motley Fool
A141: 04:41PM | F141: Microsoft, Google Working Together on YouTube App for Windows Phone at AllThingsD
A142: 04:15PM | F142: Google Said to Face New Antitrust Probe Over Display Ads at Bloomberg
A143: 04:05PM | F143: Video Game Sales Plunge in April Zacks
A144: 03:46PM | F144: Is Googles Probe Good News for Rivals? at Wall St. Cheat Sheet
A145: 03:36PM | F145: GameStop shares slump following 1Q report AP
A146: 03:31PM | F146: Did GameStop, Up 44% YTD, Rout the Shorts? at Forbes
A147: 03:20PM | F147: [video] Top Five in Tech: Tumblr for the Win at MarketWatch
A148: 03:08PM | F148: [video] Top Five in Tech: Tumblr for the Win at MarketWatch
A149: 02:22PM | F149: Google eyes Waze as Facebook circles hot Web maps property Reuters
A150: 02:07PM | F150: Market poised to end week lower following Fed, China data at theflyonthewall.com
A151: 01:45PM | F151: Battling Over Waze CNBC
A152: 01:16PM | F152: Facebook Deal For Waze Pondered By Google and 2 Other Hot Stocks to Watch at Wall St. Cheat Sheet
A153: 01:10PM | F153: Qualcomm Retained at Neutral Zacks
A155: Microsoft Corporation develops, licenses, and supports software products and services; and designs and sells hardware worldwide. The company's Windows & Windows Live division offers PC operating system that primarily includes Windows 7 operating system, Windows live suite of applications and Web services, and PC hardware products. Its Server and Tools division provides Windows Server operating systems, Windows Azure; Microsoft SQL Server, SQL Azure, Windows Intune, Windows Embedded, Visual Studio, Silverlight, system center products, Microsoft consulting services, and Premier product support services. This division also offers cloud-based services; and training and certification to developers and information technology professionals, as well as builds standalone and software development lifecycle tools for software architects, developers, testers, and project managers. The company's Online Services division provides online information and content, including Bing, MSN, adCenter, and Atlas online tools for advertisers. Its Microsoft Business division offers Microsoft office, Microsoft Exchange, Microsoft SharePoint, Microsoft Lync, Microsoft Office project and office Visio, and Microsoft Dynamics ERP and CRM, as well as Microsoft Office Web Apps and Microsoft Office 365, which are online service offerings. The company's Entertainment and Devices Division segment provides Xbox 360 entertainment platform, which includes the Xbox 360 gaming and entertainment console, Kinect for Xbox 360, Xbox 360 video games, and Xbox 360 accessories; Xbox LIVE; Skype; and Windows Phone. Microsoft Corporation markets and distributes its products and services primarily through original equipment manufacturers, distributors, and resellers, as well as through online. The company has strategic alliances with Nokia, and NIIT Ltd., as well as a strategic relationship Dominion Enterprises, Inc. Microsoft Corporation was founded in 1975 and is based in Redmond, Washington.
A157: Insider Trading | F157: Relationship | G157: Date | H157: Transaction | I157: Cost | J157: #Shares | K157: Value ($) | L157: #Shares Total | M157: SEC Form 4
A158: GATES WILLIAM H III | F158: Director | G158: 2013-04-24 | H158: Sale | I158: 31.2 | J158: 6716519 | K158: 209537012 | L158: 400986959 | M158: 2013-04-25T16:38:00
A159: GATES WILLIAM H III | F159: Director | G159: 2013-04-23 | H159: Sale | I159: 30.71 | J159: 5888974 | K159: 180823302 | L159: 407703478 | M159: 2013-04-25T16:38:00
A160: GATES WILLIAM H III | F160: Director | G160: 2013-04-22 | H160: Sale | I160: 30.92 | J160: 7394507 | K160: 228603402 | L160: 413592452 | M160: 2013-04-24T16:34:00
A161: BROD FRANK H | F161: Chief Accounting Officer | G161: 2013-04-22 | H161: Sale | I161: 30.88 | J161: 10000 | K161: 308779 | L161: 118686 | M161: 2013-04-23T18:31:00
A162: MARQUARDT DAVID F | F162: Director | G162: 2013-02-13 | H162: Option Exercise | I162: 24.17 | J162: 22222 | K162: 537195 | L162: 699808 | M162: 2013-02-14T18:33:00
A163: MARQUARDT DAVID F | F163: Director | G163: 2013-02-13 | H163: Sale | I163: 28.02 | J163: 22222 | K163: 622660 | L163: 677586 | M163: 2013-02-14T18:33:00
A164: GATES WILLIAM H III | F164: Director | G164: 2013-02-06 | H164: Sale | I164: 27.44 | J164: 3189267 | K164: 87503919 | L164: 420986959 | M164: 2013-02-07T16:43:00
A165: GATES WILLIAM H III | F165: Director | G165: 2013-02-05 | H165: Sale | I165: 27.56 | J165: 3810733 | K165: 105019610 | L165: 424176226 | M165: 2013-02-07T16:43:00
A166: GATES WILLIAM H III | F166: Director | G166: 2013-02-04 | H166: Sale | I166: 27.64 | J166: 3000000 | K166: 82914600 | L166: 427986959 | M166: 2013-02-06T16:36:00
A167: GATES WILLIAM H III | F167: Director | G167: 2013-02-01 | H167: Sale | I167: 27.87 | J167: 5500000 | K167: 153272350 | L167: 430986959 | M167: 2013-02-05T16:44:00
A168: GATES WILLIAM H III | F168: Director | G168: 2013-01-31 | H168: Sale | I168: 27.5 | J168: 4500000 | K168: 123733800 | L168: 436486959 | M168: 2013-02-04T16:35:00
A169: Nadella Satya | F169: President, Server and Tools | G169: 2013-01-28 | H169: Sale | I169: 28.11 | J169: 38121 | K169: 1071604 | L169: 554602 | M169: 2013-01-30T18:33:00
A170: BROD FRANK H | F170: Chief Accounting Officer | G170: 2013-01-28 | H170: Sale | I170: 28.04 | J170: 10000 | K170: 280417 | L170: 128686 | M170: 2013-01-30T18:32:00
A171: MARQUARDT DAVID F | F171: Director | G171: 2013-11-28 | H171: Sale | I171: 27.07 | J171: 300000 | K171: 8120670 | L171: 675196 | M171: 2013-11-28T19:31:00
A172: MARQUARDT DAVID F | F172: Director | G172: 2013-11-27 | H172: Sale | I172: 27.16 | J172: 100000 | K172: 2715910 | L172: 975196 | M172: 2013-11-28T19:31:00
A173: MARQUARDT DAVID F | F173: Director | G173: 2013-11-26 | H173: Sale | I173: 27.28 | J173: 100000 | K173: 2727560 | L173: 1075196 | M173: 2013-11-28T19:31:00
A174: Brummel Lisa E | F174: Senior Vice President | G174: 2013-10-31 | H174: Sale | I174: 28.54 | J174: 71313 | K174: 2034988 | L174: 331306 | M174: 2013-11-02T18:48:00
A175: DelBene Kurt D | F175: President, Offfice Division | G175: 2013-10-26 | H175: Sale | I175: 28 | J175: 35000 | K175: 979832 | L175: 600693 | M175: 2013-10-29T18:36:00
A176: GATES WILLIAM H III | F176: Director | G176: 2013-10-25 | H176: Sale | I176: 27.95 | J176: 5500000 | K176: 153747550 | L176: 440984209 | M176: 2013-10-29T16:39:00
A177: GATES WILLIAM H III | F177: Director | G177: 2013-10-24 | H177: Sale | I177: 28.03 | J177: 4500000 | K177: 126117900 | L177: 446484209 | M177: 2013-10-26T16:38:00
A178: GATES WILLIAM H III | F178: Director | G178: 2013-10-23 | H178: Sale | I178: 28.06 | J178: 5500000 | K178: 154314600 | L178: 450984209 | M178: 2013-10-25T16:30:00
A179: GATES WILLIAM H III | F179: Director | G179: 2013-10-22 | H179: Sale | I179: 28.02 | J179: 4500000 | K179: 126076050 | L179: 456484209 | M179: 2013-10-24T16:29:00
A180: TURNER BRIAN KEVIN | F180: Chief Operating Officer | G180: 2013-09-10 | H180: Sale | I180: 30.83 | J180: 49487 | K180: 1525699 | L180: 790915 | M180: 2013-09-11T18:43:00
A181: TURNER BRIAN KEVIN | F181: Chief Operating Officer | G181: 2013-09-04 | H181: Sale | I181: 30.52 | J181: 126913 | K181: 3873715 | L181: 557299 | M181: 2013-09-05T20:20:00
A182: BROD FRANK H | F182: Chief Accounting Officer | G182: 2013-09-04 | H182: Sale | I182: 30.41 | J182: 15000 | K182: 456128 | L182: 139598 | M182: 2013-09-05T19:58:00
A183: DelBene Kurt D | F183: President, Offfice Division | G183: 2013-08-24 | H183: Sale | I183: 30.21 | J183: 39847 | K183: 1203782 | L183: 263886 | M183: 2013-08-27T18:37:00
A184: GATES WILLIAM H III | F184: Director | G184: 2013-07-27 | H184: Sale | I184: 29.57 | J184: 5000000 | K184: 147869500 | L184: 460982967 | M184: 2013-07-31T17:04:00
A185: GATES WILLIAM H III | F185: Director | G185: 2013-07-26 | H185: Sale | I185: 29.24 | J185: 5000000 | K185: 146191500 | L185: 465982967 | M185: 2013-07-30T18:09:00
A186: GATES WILLIAM H III | F186: Director | G186: 2013-07-25 | H186: Sale | I186: 28.99 | J186: 3000000 | K186: 86967300 | L186: 470982967 | M186: 2013-07-27T16:53:00
A187: GATES WILLIAM H III | F187: Director | G187: 2013-07-24 | H187: Sale | I187: 29.09 | J187: 2750000 | K187: 79986500 | L187: 473982967 | M187: 2013-07-26T18:28:00
A188: LUCZO STEPHEN J | F188: Director | G188: 2013-06-04 | H188: Buy | I188: 28.72 | J188: 17500 | K188: 502600 | L188: 133500 | M188: 2013-06-05T18:32:00
A190: open in yahoo | open in reuters | open in google

Sheet SC - FinViz Profile3
D1: Welcome Guest! Login | Register | Help
B5: Home | D5: News | F5: Screener | H5: Maps | J5: Groups | L5: Portfolio | N5: Insider | P5: Futures | R5: Forex | T5: Collaborate | V5: Store | Y5: Elite
AB7: Ticker | AD7: Company | AF7: Profile
A12: publish chart | backtests Type: candle | line | advanced Timeframe: intraday | daily | weekly | monthly | C12: Settings
A15: HPQ [NYSE]
A16: Hewlett-Packard Company
A17: Technology | Diversified Computer Systems | USA
B18: financial highlights | statements
A19: Index | C19: DJIA S&P500 | D19: P/E | E19: - | F19: EPS (ttm) | G19: -6.55 | H19: Insider Own | I19: 0.0005 | J19: Shs Outstand | K19: 1.94B | L19: Perf Week | M19: 0.1638
A20: Market Cap | C20: 47.92B | D20: Forward P/E | E20: 6.75 | F20: EPS next Y | G20: 3.65 | H20: Insider Trans | I20: 0.514 | J20: Shs Float | K20: 1.94B | L20: Perf Month | M20: 0.2344
A21: Income | C21: -12886.00M | D21: PEG | E21: - | F21: EPS next Q | G21: 0.86 | H21: Inst Own | I21: 0.7753 | J21: Short Float | K21: 0.032 | L21: Perf Quarter | M21: 0.2532
A22: Sales | C22: 118.68B | D22: P/S | E22: 0.4 | F22: EPS this Y | G22: -2.9277 | H22: Inst Trans | I22: -0.0238 | J22: Short Ratio | K22: 2.66 | L22: Perf Half Y | M22: 1.0139
A23: Book/sh | C23: 11.72 | D23: P/B | E23: 2.1 | F23: EPS next Y | G23: 0.0253 | H23: ROA | I23: -0.1105 | J23: Target Price | K23: 22.56 | L23: Perf Year | M23: 0.2042
A24: Cash/sh | C24: 6.48 | D24: P/C | E24: 3.81 | F24: EPS next 5Y | G24: 0 | H24: ROE | I24: -0.4153 | J24: 52W Range | K24: 11.18 - 24.95 | L24: Perf YTD | M24: 0.7408
A25: Dividend | C25: 0.53 | D25: P/FCF | E25: 6.43 | F25: EPS past 5Y | G25: 0.0321 | H25: ROI | I25: -0.1792 | J25: 52W High | K25: -0.012 | L25: Beta | M25: 1.18
A26: Dividend % | C26: 0.0215 | D26: Quick Ratio | E26: 0.97 | F26: Sales past 5Y | G26: 0.0291 | H26: Gross Margin | I26: 0.2294 | J26: 52W Low | K26: 1.2057 | L26: ATR | M26: 0.73
A27: Employees | C27: 331800 | D27: Current Ratio | E27: 1.12 | F27: Sales Q/Q | G27: -0.0558 | H27: Oper. Margin | I27: -0.0956 | J27: RSI (14) | K27: 70.23 | L27: Volatility | M27: 3.44% 2.60%
A28: Optionable | C28: Yes | D28: Debt/Eq | E28: 1.23 | F28: EPS Q/Q | G28: -0.1427 | H28: Profit Margin | I28: -0.1086 | J28: Rel Volume | K28: 0.83 | L28: Prev Close | M28: 24.21
A29: Shortable | C29: Yes | D29: LT Debt/Eq | E29: 0.95 | F29: Earnings | G29: May 22 AMC | H29: Payout | I29: - | J29: Avg Volume | K29: 23.41M | L29: Price | M29: 24.65
A30: Recom | C30: 3.1 | D30: SMA20 | E30: 0.1559 | F30: SMA50 | G30: 0.1436 | H30: SMA200 | I30: 0.4136 | J30: Volume | K30: 19427722 | L30: Change | M30: 0.0182
A33: 2013-05-23 | B33: Reiterated | C33: MKM Partners | D33: Neutral | E33: $19 → $26
A34: 2013-05-23 | B34: Reiterated | C34: Mizuho | D34: Underperform | E34: $14 → $18
A35: 2013-05-23 | B35: Reiterated | C35: Barclays | D35: Equal Weight | E35: $24 → $26
A36: 2013-04-04 | B36: Reiterated | C36: Barclays | D36: Equal Weight | E36: $19 → $24
A37: 2013-03-25 | B37: Reiterated | C37: RBC Capital Mkts | D37: Sector Perform | E37: $21 → $23
A38: 2013-02-22 | B38: Upgrade | C38: UBS | D38: Sell → Neutral | E38: $12 → $19
A39: 2013-02-22 | B39: Reiterated | C39: RBC Capital Mkts | D39: Sector Perform | E39: $16 → $18
A40: 2013-02-22 | B40: Reiterated | C40: Mizuho | D40: Underperform | E40: $8 → $14
A41: 2013-02-22 | B41: Reiterated | C41: Deutsche Bank | D41: Sell | E41: $10 → $12
A42: 2013-02-22 | B42: Reiterated | C42: Barclays | D42: Equal Weight | E42: $16 → $19
A43: 2013-01-18 | B43: Reiterated | C43: Barclays | D43: Equal Weight | E43: $12 → $16
A44: 2012-11-21 | B44: Reiterated | C44: UBS | D44: Sell | E44: $12.75 → $11
A45: 2012-11-21 | B45: Reiterated | C45: Barclays | D45: Equal Weight | E45: $14 → $12
A46: 2012-11-21 | B46: Downgrade | C46: RBC Capital Mkts | D46: Outperform → Sector Perform | E46: $18 → $14
A47: 2012-11-20 | B47: Downgrade | C47: Mizuho | D47: Neutral → Underperform | E47: $15 → $8
A48: 2012-11-20 | B48: Downgrade | C48: ISI Group | D48: Buy → Hold
A49: 2012-11-15 | B49: Reiterated | C49: Mizuho | D49: Neutral | E49: $17 → $15
A50: 2012-11-14 | B50: Reiterated | C50: UBS | D50: Sell | E50: $14 → $12.75
A51: 2012-11-12 | B51: Reiterated | C51: Barclays | D51: Equal Weight | E51: $16 → $14
A52: 2012-10-05 | B52: Downgrade | C52: Argus | D52: Buy → Hold
A54: 28-May-13 05:10PM | F54: Lexmark Maintained at Neutral Zacks
A55: 04:30PM | F55: Cisco Acquires Ubiquisys Ltd. Zacks
A56: 04:24PM | F56: Staying Clear Of Hewlett Packard at Seeking Alpha
A57: 04:10PM | F57: Does It Pay to Believe in This Company? at Motley Fool
A58: 03:48PM | F58: If Foxconn sneezes, does that mean Apple caught a cold? at Fortune
A59: 02:52PM | F59: When Customers Talk, Can You Hear Them? Lessons From HP at Forbes
A60: 02:49PM | F60: Four tech stocks for the next move at MarketWatch
A61: 02:38PM | F61: Michael Dell: All Business During A Storm at Forbes
A62: 02:29PM | F62: Windows PCs Are Dying: This Might Be the Future at Motley Fool
A63: 02:08PM | F63: Google, Amazon join in broad tech gains at MarketWatch
A64: 02:02PM | F64: [video] Zombie 'Stockalypse' at CNBC
A65: 01:43PM | F65: Tablets expected to outsell PCs by 2015 at MarketWatch
A66: 01:22PM | F66: Business events scheduled for Wednesday AP
A67: 12:58PM | F67: Hewlett-Packard Co Stock Upgraded (HPQ) at TheStreet
A68: 12:55PM | F68: PC shipments face sharp slump in 2013 as tablets ascend - IDC Reuters
A69: 12:40PM | F69: Logitech???s Sustained Product Innovation Zacks
A70: 12:02PM | F70: IDC Sharply Cuts PC Shipment Forecast at The Wall Street Journal
A71: 11:35AM | F71: [video] Ratings Moves: CS, HPQ, GOLD at TheStreet
A72: 11:33AM | F72: Sell Hewlett-Packard After Earnings Spike at Seeking Alpha
A73: 11:29AM | F73: Google, Amazon join in broad market gains at MarketWatch
A74: 11:25AM | F74: Is This Comeback for Real? at Motley Fool
A75: 11:20AM | F75: Michael Dell: All Business at Forbes
A76: 11:14AM | F76: Can Foxconn Compete With Apple in the Tablet Market? The Daily Ticker
A77: 10:48AM | F77: IDC Predicts Sharper Decline in PC Shipments at Fox Business
A78: 10:23AM | F78: This Tech Turnaround Takes Hold at Motley Fool
A79: 10:14AM | F79: HP Earnings: Not So Strong at Second Glance TheStreet
A80: 09:12AM | F80: PC Market to Decline 7.8% in 2013 as Mobile-Devices Gain at Bloomberg
A81: 08:05AM | F81: After Impressive Earnings Report, Is It Still Cheap? at Motley Fool
A82: 07:45AM | F82: Customers Adopt HP Converged Cloud Portfolio for Accelerated Business Transformation Marketwired
A83: 07:15AM | F83: A Closer Look at Three Global PC Makers at Motley Fool
A84: 06:36AM | F84: Morning MoneyBeat: What the Sell Side Makes of the Dow at The Wall Street Journal
A85: 06:20AM | F85: Relational Remains Concentrated at Motley Fool
A86: 27-May-13 03:00PM | F86: 4 Dividend Stocks Showing You the Money at Motley Fool
A87: 26-May-13 04:22PM | F87: Tale of 2 Techs; the Game Plan: Cramer's Best Blogs TheStreet
A88: 02:00PM | F88: Microsoft Catches a Wave, and the First Shot in the Software Patent Wars at Motley Fool
A89: 01:06PM | F89: Apple's Tim Cook: 'I Am Not An Unfair Person' (And Other Quotes Of The Week) at Forbes
A90: 01:00PM | F90: AllThingsD Talks News: Yumblr, Xbox and Hewlett-Packard at AllThingsD
A91: 07:06AM | F91: Is HP on the Path to Recovery or Ruin? at Motley Fool
A92: 05:42AM | F92: Hewlett-Packard: Shares Rally Hard As The Turnaround Continues To Gain Traction at Seeking Alpha
A93: 04:48AM | F93: The Weekend Update: 5 Diversified Stocks Headed Higher at Seeking Alpha
A94: 12:50AM | F94: Has HP Turned the Corner? at Motley Fool
A95: 12:13AM | F95: HP Is Cheap, High Quality And Financially Strong; Turnaround Gathering Steam at Seeking Alpha
A96: 24-May-13 10:00PM | F96: Dow Limps Into Holiday Weekend at Motley Fool
A97: 07:21PM | F97: MarketWatchs top 10 stories, May 20-24 at MarketWatch
A98: 07:01PM | F98: 1 Tech Stock Benefiting From Low Expectations at Motley Fool
A99: 06:51PM | F99: Cisco Stepping On The Toes Of IBM And Hewlett-Packard at Seeking Alpha
A100: 06:03PM | F100: Dow Advances, Led by Procter & Gamble Stock at Motley Fool
A101: 05:09PM | F101: Salesforce Shares Crash After Earnings Disappoint at AllThingsD
A102: 04:26PM | F102: HP Could Double... Again at Seeking Alpha
A103: 04:08PM | F103: S&P Closes Lower For Third Session; Dow Gains at CNBC
A104: 03:20PM | F104: [video] Top Five in Tech: Tumblr for the Win at MarketWatch
A105: 03:12PM | F105: A So-So Week For Earnings at Seeking Alpha
A106: 03:09PM | F106: Lenovo Still Far From Getting Its Due at Investopedia
A107: 03:03PM | F107: Why the Dow Is Flat Ahead of the Long Weekend at Motley Fool
A108: 02:38PM | F108: Dow Turns Positive on P&G Surge at CNBC
A109: 02:33PM | F109: Will P&Gs Lafley Be The Next Howard Schultz or The Next Michael Dell? Talking Numbers
A110: 02:33PM | F110: Will P&Gs Lafley Be The Next Howard Schultz or The Next Michael Dell?
A111: 02:33PM | F111: Procter & Gamble Stock Tops the Dow at Motley Fool
A112: 02:17PM | F112: Samsung's Day Of Reckoning Is Coming at Forbes
A113: 02:07PM | F113: Market poised to end week lower following Fed, China data at theflyonthewall.com
A114: 02:03PM | F114: HP Needs to Copy Kraft's and News Corp's Bold Moves at Motley Fool
A115: 01:35PM | F115: Stocks Rebound; Close to Turning Positive at CNBC
A116: 01:28PM | F116: BofA Reportedly Looking to Divest NY, PA Branches, and 2 Other Hot Stocks to Watch at Wall St. Cheat Sheet
A117: 01:10PM | F117: HP Taps Jim Murrin as Treasurer at AllThingsD
A118: 01:03PM | F118: Markets Continue to Slide on Fed-Induced Fears at Motley Fool
A119: 12:56PM | F119: Stocks Slide on Stimulus Fears; P&G Jumps at CNBC
A120: 12:47PM | F120: Earnings Beat Lifts H-P Into Top Stocks of the Week The Exchange
A121: 12:30PM | F121: Tech Titans Are the New Masters of the Universe, Be Afraid: Kotkin The Daily Ticker
A122: 12:15PM | F122: [video] Gold on Track for Best Weekly Gain at CNBC
A123: 12:00PM | F123: Dow Burdened by Uncertainty and Low-Powered Tech at Motley Fool
A124: 11:50AM | F124: SolarWinds Set to Buy N-able Zacks
A125: 11:48AM | F125: Stocks Weaken on Stimulus Fears; P&G Jumps at CNBC
A126: 11:03AM | F126: What's Behind the Dow's Drop This Morning at Motley Fool
A127: 11:00AM | F127: Dow Today: Hewlett-Packard (HPQ) Lower at TheStreet
A128: 10:55AM | F128: Recap: Hewlett-Packard's earnings call at MarketWatch
A129: 10:43AM | F129: Stocks Fall Again on Fed Tapering Fears at CNBC
A130: 10:04AM | F130: Stocks Fall Again on Fed Tapering Fears at CNBC
A131: 10:02AM | F131: Does a Huge Earnings Miss at Dell Signal the End of the PC? at Motley Fool
A132: 09:59AM | F132: U.S. stocks dip at open despite durable goods beat at MarketWatch
A133: 09:19AM | F133: Top CEOs Ranked By Their (Lousy) Stock Performance The Daily Ticker
A134: 09:18AM | F134: Stock futures remain lower after durables data at MarketWatch
A135: 08:52AM | F135: Stock futures trim losses on strong durable orders at MarketWatch
A136: 08:42AM | F136: The Morning Download: Not so Fast to the Cloud at The Wall Street Journal
A137: 08:11AM | F137: Hewlett-Packard names Jim Murrin treasurer at theflyonthewall.com
A138: 08:00AM | F138: HP Names Jim Murrin Treasurer Marketwired
A139: 07:54AM | F139: The Morning Download: Not so Fast to the Cloud at The Wall Street Journal
A140: 07:35AM | F140: Stock futures fall ahead of durable goods at MarketWatch
A141: 07:03AM | F141: Meg Whitman Isn't Worried About All That Server Market Share Dell Says It's Taking Away From HP Business Insider
A142: 07:02AM | F142: Stock Market News for May 24, 2013 Zacks
A143: 06:52AM | F143: Should You Buy What HP's Selling? at Motley Fool
A144: 06:00AM | F144: The Mystery of Meg Whitman's HP TheStreet
A145: 06:00AM | F145: Cramer's Top Stock Picks: UNP CRM MWE HPQ ECOM at TheStreet
A146: 05:54AM | F146: Cramer's Mad Money - The Difference Between Hewlett-Packard and ChannelAdvisor (5/23/13) at Seeking Alpha
A147: 04:00AM | F147: London's Deluxe Digital Selects HP to Transform Film Distribution Process to Cinemas Marketwired
A148: 04:00AM | F148: London's Deluxe Digital Selects HP to Transform Film Distribution Process to Cinemas Marketwire
A149: 12:34AM | F149: Can HP Deliver on These Mobile Promises? at Motley Fool
A150: 12:01AM | F150: HP-Autonomy Merger Suit Should Be Put on Hold: Lawyers at Bloomberg
A151: 23-May-13 10:00PM | F151: Dow Recovers After a Case of Bad Sushi at Motley Fool +17.10%
A152: 09:06PM | F152: Hewlett-Packard Beats on EPS But GAAP Results Lag at Motley Fool
A153: 08:48PM | F153: [$$] H-P Has a Long, Hard Slog Ahead at The Wall Street Journal
A155: Hewlett-Packard Company and its subsidiaries provide products, technologies, software, solutions, and services to individual consumers, small-and medium-sized businesses (SMBs), and large enterprises, including customers in the government, health, and education sectors worldwide. Its Personal Systems segment offers commercial notebooks and desktops; consumer notebooks, desktops, and mini notebooks; and workstations, calculators and other related accessories, and software and services for the commercial and consumer markets. The company's Services segment provides consulting, outsourcing, and technology services to infrastructure, applications, and business process domains. Its Printing segment offers consumer and commercial printer hardware, supplies, media, and scanning devices, such as inkjet and Web solutions, laserjet and enterprise solutions, managed enterprise solutions, and graphics solutions. The company's Enterprise Servers, Storage, and Networking segment provides industry standard servers; business critical systems; storage platforms; and networking products comprising switches, routers, and wireless LANs. Its Software segment offers enterprise information management solutions for structured and unstructured data, IT management software, and security intelligence/risk management solutions as software licenses, software-as-a-service, and hybrid or appliance deployment models. The company's HP Financial Services segment provides leasing, financing, utility programs, and asset recovery services; and financial asset management services to enterprise customers, as well as specialized financial services to SMBs, and educational and governmental entities. Its Corporate Investments segment provides business intelligence solutions that enable businesses to standardize on data management schemes, connect and share data across the enterprise, and apply analytics. The company was founded in 1939 and is headquartered in Palo Alto, California.
A157: Insider Trading | F157: Relationship | G157: Date | H157: Transaction | I157: Cost | J157: #Shares | K157: Value ($) | L157: #Shares Total | M157: SEC Form 4
A158: SCHULTZ JOHN F | F158: EVP, GC & SEC | G158: 2013-05-16 | H158: Option Exercise | I158: 21.36 | J158: 4122 | K158: 88046 | L158: 47460 | M158: 2013-05-20T18:52:00
A159: McMullen John N | F159: SVP & Treasurer | G159: 2013-04-30 | H159: Option Exercise | I159: 20.6 | J159: 1483 | K159: 30550 | L159: 1483 | M159: 2013-05-02T20:12:00
A160: Nefkens Michael G | F160: EVP, Enterprise Services | G160: 2013-04-30 | H160: Option Exercise | I160: 20.6 | J160: 7943 | K160: 163626 | L160: 8444 | M160: 2013-05-02T20:13:00
A161: SCHULTZ JOHN F | F161: EVP, GC & SEC | G161: 2013-04-30 | H161: Option Exercise | I161: 20.6 | J161: 2975 | K161: 61285 | L161: 44101 | M161: 2013-05-02T20:13:00
A162: VEGHTE WILLIAM L | F162: COO | G162: 2013-04-30 | H162: Option Exercise | I162: 20.6 | J162: 13238 | K162: 272703 | L162: 124580 | M162: 2013-05-02T20:13:00
A163: DONATELLI DAVID A | F163: EVP & GM, Enterprise Group | G163: 2013-04-30 | H163: Option Exercise | I163: 20.6 | J163: 22707 | K163: 467764 | L163: 118825 | M163: 2013-05-02T20:12:00
A164: KEOGH TRACY S | F164: EVP HR | G164: 2013-04-25 | H164: Option Exercise | I164: 19.59 | J164: 12026 | K164: 235589 | L164: 39004 | M164: 2013-04-29T16:18:00
A165: REINER GARY M | F165: Director | G165: 2013-04-20 | H165: Option Exercise | I165: 0 | J165: 5780 | K165: 0 | L165: 9235 | M165: 2013-04-24T09:22:00
A166: THOMPSON G KENNEDY | F166: Director | G166: 2013-04-20 | H166: Option Exercise | I166: 0 | J166: 11559 | K166: 0 | L166: 40253 | M166: 2013-04-23T21:46:00
A167: WHITWORTH RALPH V | F167: Director | G167: 2013-04-20 | H167: Option Exercise | I167: 0 | J167: 7356 | K167: 0 | L167: 7356 | M167: 2013-04-23T21:47:00
A168: GUPTA RAJIV | F168: Director | G168: 2013-04-20 | H168: Option Exercise | I168: 0 | J168: 3678 | K168: 0 | L168: 18448 | M168: 2013-04-23T21:45:00
A169: HAMMERGREN JOHN H | F169: Director | G169: 2013-04-20 | H169: Option Exercise | I169: 0 | J169: 11559 | K169: 0 | L169: 18468 | M169: 2013-04-23T21:46:00
A170: RUSSO PATRICIA F | F170: Director | G170: 2013-04-20 | H170: Option Exercise | I170: 0 | J170: 7356 | K170: 0 | L170: 11752 | M170: 2013-04-23T21:46:00
A171: Banerji Shumeet | F171: Director | G171: 2013-04-20 | H171: Option Exercise | I171: 0 | J171: 11559 | K171: 0 | L171: 18468 | M171: 2013-04-23T21:45:00
A172: Andreessen Marc L | F172: Director | G172: 2013-04-20 | H172: Option Exercise | I172: 0 | J172: 11559 | K172: 0 | L172: 11559 | M172: 2013-04-23T21:44:00
A173: Gomez Henry | F173: EVP, CCO | G173: 2013-01-18 | H173: Option Exercise | I173: 17.11 | J173: 6348 | K173: 108614 | L173: 6348 | M173: 2013-01-23T19:21:00
A174: WHITMAN MARGARET C | F174: President & CEO | G174: 2013-12-14 | H174: Option Exercise | I174: 14.75 | J174: 54399 | K174: 802385 | L174: 57854 | M174: 2013-12-18T18:51:00
A175: McMullen John N | F175: SVP & Treasurer | G175: 2013-12-12 | H175: Option Exercise | I175: 14.53 | J175: 2625 | K175: 38141 | L175: 16567 | M175: 2013-12-14T18:56:00
A176: VEGHTE WILLIAM L | F176: EVP & COO | G176: 2013-12-12 | H176: Option Exercise | I176: 14.53 | J176: 18747 | K176: 272394 | L176: 37044 | M176: 2013-12-14T18:56:00
A177: HOMLISH MARTIN J | F177: EVP & CMO | G177: 2013-12-12 | H177: Option Exercise | I177: 14.53 | J177: 27808 | K177: 404050 | L177: 36609 | M177: 2013-12-14T18:55:00
A178: KEOGH TRACY S | F178: EVP HR | G178: 2013-12-12 | H178: Option Exercise | I178: 14.53 | J178: 30932 | K178: 449442 | L178: 38327 | M178: 2013-12-14T18:55:00
A179: LESJAK CATHERINE A | F179: EVP & CFO | G179: 2013-12-12 | H179: Option Exercise | I179: 14.53 | J179: 18747 | K179: 272394 | L179: 34388 | M179: 2013-12-14T18:56:00
A180: BRADLEY RICHARD TODD | F180: EVP, PPSG | G180: 2013-12-12 | H180: Option Exercise | I180: 14.53 | J180: 22496 | K180: 326867 | L180: 32293 | M180: 2013-12-14T18:54:00
A181: DONATELLI DAVID A | F181: EVP & GM, Enterprise Group | G181: 2013-12-12 | H181: Option Exercise | I181: 14.53 | J181: 57489 | K181: 835315 | L181: 122956 | M181: 2013-12-14T18:54:00
A182: Hinshaw John M | F182: EVP, Global Tech & BP | G182: 2013-12-12 | H182: Option Exercise | I182: 14.53 | J182: 6562 | K182: 95346 | L182: 18244 | M182: 2013-12-14T18:54:00
A183: SCHULTZ JOHN F | F183: EVP, GC & SEC | G183: 2013-12-10 | H183: Option Exercise | I183: 14.16 | J183: 2076 | K183: 29396 | L183: 41871 | M183: 2013-12-12T20:11:00
A184: VEGHTE WILLIAM L | F184: EVP & COO | G184: 2013-12-10 | H184: Option Exercise | I184: 14.16 | J184: 5186 | K184: 73434 | L184: 20201 | M184: 2013-12-12T20:12:00
A185: LIVERMORE ANN M | F185: Director | G185: 2013-12-10 | H185: Option Exercise | I185: 14.16 | J185: 18376 | K185: 260204 | L185: 31789 | M185: 2013-12-12T20:12:00
A186: LEVINE MARC A | F186: SVP, Controller & PAO | G186: 2013-12-10 | H186: Option Exercise | I186: 14.16 | J186: 1730 | K186: 24497 | L186: 29951 | M186: 2013-12-12T20:11:00
A187: McMullen John N | F187: SVP & Treasurer | G187: 2013-12-10 | H187: Option Exercise | I187: 14.16 | J187: 1470 | K187: 20815 | L187: 14482 | M187: 2013-12-12T20:11:00
A188: BRADLEY RICHARD TODD | F188: EVP, PPSG | G188: 2013-12-10 | H188: Option Exercise | I188: 14.16 | J188: 18376 | K188: 260204 | L188: 18376 | M188: 2013-12-12T20:09:00
A189: DONATELLI DAVID A | F189: EVP & GM, Enterprise Group | G189: 2013-12-10 | H189: Option Exercise | I189: 14.16 | J189: 10372 | K189: 146868 | L189: 69607 | M189: 2013-12-12T20:10:00
A190: LESJAK CATHERINE A | F190: EVP & CFO | G190: 2013-12-10 | H190: Option Exercise | I190: 14.16 | J190: 24704 | K190: 349809 | L190: 24704 | M190: 2013-12-12T20:10:00
A191: LEVINE MARC A | F191: SVP, Controller & PAO | G191: 2013-12-07 | H191: Option Exercise | I191: 13.93 | J191: 1982 | K191: 27609 | L191: 28949 | M191: 2013-12-11T16:38:00
A192: SCHULTZ JOHN F | F192: EVP, GC & SEC | G192: 2013-12-07 | H192: Option Exercise | I192: 13.93 | J192: 5126 | K192: 71405 | L192: 41677 | M192: 2013-12-11T16:39:00
A193: VEGHTE WILLIAM L | F193: EVP & COO | G193: 2013-12-04 | H193: Buy | I193: 13.03 | J193: 13010 | K193: 169579 | L193: 81510 | M193: 2013-12-05T16:42:00
A194: VEGHTE WILLIAM L | F194: EVP & COO | G194: 2013-12-03 | H194: Buy | I194: 12.93 | J194: 10000 | K194: 129281 | L194: 68500 | M194: 2013-12-05T16:42:00
A195: Hinshaw John M | F195: EVP, Global Tech | G195: 2013-11-15 | H195: Option Exercise | I195: 13.08 | J195: 18451 | K195: 241339 | L195: 18451 | M195: 2013-11-19T17:19:00
A196: SCHULTZ JOHN F | F196: EVP, GC & SEC | G196: 2013-10-31 | H196: Option Exercise | I196: 13.85 | J196: 5745 | K196: 79568 | L196: 38163 | M196: 2013-11-02T19:58:00
A197: VEGHTE WILLIAM L | F197: EVP & COO | G197: 2013-10-31 | H197: Option Exercise | I197: 13.85 | J197: 25554 | K197: 353923 | L197: 73515 | M197: 2013-11-02T19:59:00
A198: LEVINE MARC A | F198: SVP, Controller & PAO | G198: 2013-10-31 | H198: Option Exercise | I198: 13.85 | J198: 13583 | K198: 188125 | L198: 31950 | M198: 2013-11-02T19:57:00
A199: McMullen John N | F199: SVP & Treasurer | G199: 2013-10-31 | H199: Option Exercise | I199: 13.85 | J199: 2863 | K199: 39653 | L199: 14064 | M199: 2013-11-02T19:58:00
A200: DONATELLI DAVID A | F200: EVP & GM, ESSN & TS | G200: 2013-10-31 | H200: Option Exercise | I200: 13.85 | J200: 43831 | K200: 607059 | L200: 75314 | M200: 2013-11-02T19:57:00
A201: Lane Raymond J. | F201: Executive Chairman | G201: 2013-06-05 | H201: Buy | I201: 21.5 | J201: 46400 | K201: 997600 | L201: 248392 | M201: 2013-06-07T17:42:00
A202: HOMLISH MARTIN J | F202: EVP & CMO | G202: 2013-06-01 | H202: Option Exercise | I202: 21.25 | J202: 13901 | K202: 295396 | L202: 13901 | M202: 2013-06-04T18:33:00
A203: Lane Raymond J. | F203: Executive Chairman | G203: 2013-06-01 | H203: Buy | I203: 21.82 | J203: 91400 | K203: 1994104 | L203: 201992 | M203: 2013-06-04T18:18:00
A204: WHITWORTH RALPH V | F204: Director | G204: 2013-06-01 | H204: Buy | I204: 21.67 | J204: 1959107 | K204: 42453849 | L204: 34534517 | M204: 2013-06-04T18:18:00
A205: WHITWORTH RALPH V | F205: Director | G205: 2013-05-31 | H205: Buy | I205: 22.54 | J205: 3092158 | K205: 69697241 | L205: 32575410 | M205: 2013-06-04T18:18:00
A206: Lane Raymond J. | F206: Executive Chairman | G206: 2013-05-31 | H206: Buy | I206: 22.53 | J206: 88500 | K206: 1993518 | L206: 110592 | M206: 2013-06-04T18:18:00
A207: WHITWORTH RALPH V | F207: Director | G207: 2013-05-30 | H207: Buy | I207: 22.62 | J207: 4649660 | K207: 105175309 | L207: 29483252 | M207: 2013-05-30T18:44:00
A208: WHITWORTH RALPH V | F208: Director | G208: 2013-05-29 | H208: Buy | I208: 22.71 | J208: 4505978 | K208: 102330760 | L208: 24833592 | M208: 2013-05-30T18:44:00
A210: open in yahoo | open in reuters | open in google

Sheet Stock Indices and References
A1: DROP DOWN MENUS (INPUTS) | D1: MAJOR US STOCK INDICES | I1: **Refresh MAJOR US STOCK INDICES DATA for updated stock indices figures** | J1: DESIRABILITY GUIDE KEY | P1: WEB REFERENCES
A4: Sector | B4: Basic Materials | D4: ='Major US Stock Indices Data'!A1 -> Ticker | E4: ='Major US Stock Indices Data'!B1 -> Volume | F4: ='Major US Stock Indices Data'!C1 -> Price | G4: ='Major US Stock Indices Data'!D1 -> Price Delta | H4: Ticker | K4: Most undesirable | O4: US Stock Indices | P4: 1. http://www.bloomberg.com/markets/stocks/world-indexes/americas/
B5: Conglomerates | D5: ='Major US Stock Indices Data'!A2 -> DJIA | E5: ='Major US Stock Indices Data'!B2 -> 15294.5 | F5: ='Major US Stock Indices Data'!C2 -> -12.67 | G5: ='Major US Stock Indices Data'!D2 -> -0.0008 | K5: Somewhat undesirable | O5: MSN Quote | P5: 2. http://moneycentral.msn.com/investor/external/excel/quotes.asp?SYMBOL=["TICKER"]
B6: Consumer Goods | D6: ='Major US Stock Indices Data'!A3 -> S&P 500 | E6: ='Major US Stock Indices Data'!B3 -> 1650.51 | F6: ='Major US Stock Indices Data'!C3 -> -4.84 | G6: ='Major US Stock Indices Data'!D3 -> -0.0029 | K6: Somewhat desirable/neutral | O6: MSN Income Stmt. | P6: 3. http://investing.money.msn.com/investments/stock-income-statement/?symbol=["TICKER"]
B7: Financial | D7: ='Major US Stock Indices Data'!A4 -> Nasdaq | E7: ='Major US Stock Indices Data'!B4 -> 3459.42 | F7: ='Major US Stock Indices Data'!C4 -> -3.88 | G7: ='Major US Stock Indices Data'!D4 -> -0.0011 | K7: Most desirable | O7: MSN Balance Sht. | P7: 4. http://investing.money.msn.com/investments/stock-balance-sheet/?symbol=us%3A["TICKER"]&stmtView=Ann
B8: Healthcare | K8: Atypical value - investigate further | O8: MSN Cash Flows | P8: 5. http://investing.money.msn.com/investments/stock-cash-flow/?symbol=["TICKER"]
B9: Industrial Goods | D9: ='Major US Stock Indices Data'!A16 -> Index Name | E9: ='Major US Stock Indices Data'!B16 -> Value | F9: ='Major US Stock Indices Data'!C16 -> Change | G9: ='Major US Stock Indices Data'!D16 -> % Change | H9: ='Major US Stock Indices Data'!E16 -> Time | K9: No data/"0" value | O9: Yahoo Competitors | P9: 6. http://finance.yahoo.com/q/co?s=["TICKER"]+Competitors
B10: Services | D10: ='Major US Stock Indices Data'!A17 -> Dow Jones Industrial Average | E10: ='Major US Stock Indices Data'!B17 -> 15294.5 | F10: ='Major US Stock Indices Data'!C17 -> -12.67 | G10: ='Major US Stock Indices Data'!D17 -> -0.0008 | H10: ='Major US Stock Indices Data'!E17 -> 16:53:57 | O10: Yahoo Key Stats. | P10: 7. http://finance.yahoo.com/q/ks?s=["TICKER"]+Key+Statistics
B11: Technology | D11: ='Major US Stock Indices Data'!A18 -> Dow Jones Transportation Average | E11: ='Major US Stock Indices Data'!B18 -> 6429.79 | F11: ='Major US Stock Indices Data'!C18 -> 13.53 | G11: ='Major US Stock Indices Data'!D18 -> 0.0021 | H11: ='Major US Stock Indices Data'!E18 -> 16:53:57 | J11: Buy | K11: Market Order | O11: Yahoo Profile | P11: 8. http://finance.yahoo.com/q/pr?s=["TICKER"]+Profile
B12: Utilities | D12: ='Major US Stock Indices Data'!A19 -> Dow Jones Utilities Average | E12: ='Major US Stock Indices Data'!B19 -> 504.51 | F12: ='Major US Stock Indices Data'!C19 -> -2.95 | G12: ='Major US Stock Indices Data'!D19 -> -0.0058 | H12: ='Major US Stock Indices Data'!E19 -> 16:53:57 | J12: Sell | K12: Limit Order | O12: Yahoo Industry | P12: 9. http://finance.yahoo.com/q/in?s=["TICKER"]+Industry
D13: ='Major US Stock Indices Data'!A20 -> S&P 500 Index | E13: ='Major US Stock Indices Data'!B20 -> 1650.51 | F13: ='Major US Stock Indices Data'!C20 -> -4.84 | G13: ='Major US Stock Indices Data'!D20 -> -0.0029 | H13: ='Major US Stock Indices Data'!E20 -> 16:19:56 | J13: Hold | K13: Stop Loss Order | O13: Zacks EQ Research | P13: 10. http://www.zacks.com/stock/research/equity-research.php?t=["TICKER"]
A14: Industry | B14: Accident & Health Insurance | D14: ='Major US Stock Indices Data'!A21 -> New York Stock Exchange Composite Index | E14: ='Major US Stock Indices Data'!B21 -> 9466.29 | F14: ='Major US Stock Indices Data'!C21 -> -41.76 | G14: ='Major US Stock Indices Data'!D21 -> -0.0044 | H14: ='Major US Stock Indices Data'!E21 -> 16:44:33 | O14: Forbes Key Stats. | P14: 11. http://finapps.forbes.com/finapps/jsp/finance/compinfo/Ratios.jsp?tkr=["TICKER"]
B15: Advertising Agencies | D15: ='Major US Stock Indices Data'!A22 -> NASDAQ Composite Index | E15: ='Major US Stock Indices Data'!B22 -> 3459.42 | F15: ='Major US Stock Indices Data'!C22 -> -3.88 | G15: ='Major US Stock Indices Data'!D22 -> -0.0011 | H15: ='Major US Stock Indices Data'!E22 -> 16:59:23 | O15: FinViz Profile | P15: 12. http://finviz.com/quote.ashx?t=["TICKER"]
B16: Aerospace/Defense - Major Diversified | D16: ='Major US Stock Indices Data'!A23 -> Russell 1000 Index | E16: ='Major US Stock Indices Data'!B23 -> 915.08 | F16: ='Major US Stock Indices Data'!C23 -> -2.57 | G16: ='Major US Stock Indices Data'!D23 -> -0.0028 | H16: ='Major US Stock Indices Data'!E23 -> 17:00:49 | O16: Additional Refs
B17: Aerospace/Defense Products & Services | D17: ='Major US Stock Indices Data'!A24 -> Russell 2000 Index | E17: ='Major US Stock Indices Data'!B24 -> 984.28 | F17: ='Major US Stock Indices Data'!C24 -> 2.02 | G17: ='Major US Stock Indices Data'!D24 -> 0.0021 | H17: ='Major US Stock Indices Data'!E24 -> 17:00:37 | O17: Additional Refs
B18: Agricultural Chemicals | D18: ='Major US Stock Indices Data'!A25 -> Russell 3000 Index | E18: ='Major US Stock Indices Data'!B25 -> 980.52 | F18: ='Major US Stock Indices Data'!C25 -> -2.39 | G18: ='Major US Stock Indices Data'!D25 -> -0.0024 | H18: ='Major US Stock Indices Data'!E25 -> 17:00:47 | O18: Additional Refs
B19: Air Delivery & Freight Services | D19: ='Major US Stock Indices Data'!A26 -> KBW Bank Index | E19: ='Major US Stock Indices Data'!B26 -> 60.68 | F19: ='Major US Stock Indices Data'!C26 -> -0.24 | G19: ='Major US Stock Indices Data'!D26 -> -0.0039 | H19: ='Major US Stock Indices Data'!E26 -> 16:58:03 | O19: Additional Refs
B20: Air Services, Other | D20: ='Major US Stock Indices Data'!A27 -> 0 | E20: ='Major US Stock Indices Data'!B27 -> 0 | F20: ='Major US Stock Indices Data'!C27 -> 0 | G20: ='Major US Stock Indices Data'!D27 -> 0 | H20: ='Major US Stock Indices Data'!E27 -> 00:00:00 | O20: Additional Refs
B21: Aluminum | D21: ='Major US Stock Indices Data'!A28 -> Index Name | E21: ='Major US Stock Indices Data'!B28 -> Value | F21: ='Major US Stock Indices Data'!C28 -> Change | G21: ='Major US Stock Indices Data'!D28 -> % Change | H21: ='Major US Stock Indices Data'!E28 -> Time | O21: Additional Refs
B22: Apparel Stores | D22: ='Major US Stock Indices Data'!A29 -> Buenos Aires Stock Exchange Merval Index | E22: ='Major US Stock Indices Data'!B29 -> 3557.55 | F22: ='Major US Stock Indices Data'!C29 -> 9.81 | G22: ='Major US Stock Indices Data'!D29 -> 0.0028 | H22: ='Major US Stock Indices Data'!E29 -> 16:00:49 | O22: Additional Refs
B23: Appliances | D23: ='Major US Stock Indices Data'!A30 -> Merval Argentina Index | E23: ='Major US Stock Indices Data'!B30 -> 2469.87 | F23: ='Major US Stock Indices Data'!C30 -> 5.29 | G23: ='Major US Stock Indices Data'!D30 -> 0.0021 | H23: ='Major US Stock Indices Data'!E30 -> 16:00:49 | O23: Additional Refs
B24: Application Software | D24: ='Major US Stock Indices Data'!A31 -> 0 | E24: ='Major US Stock Indices Data'!B31 -> 0 | F24: ='Major US Stock Indices Data'!C31 -> 0 | G24: ='Major US Stock Indices Data'!D31 -> 0 | H24: ='Major US Stock Indices Data'!E31 -> 00:00:00 | O24: Additional Refs
B25: Asset Management | D25: ='Major US Stock Indices Data'!A32 -> Index Name | E25: ='Major US Stock Indices Data'!B32 -> Value | F25: ='Major US Stock Indices Data'!C32 -> Change | G25: ='Major US Stock Indices Data'!D32 -> % Change | H25: ='Major US Stock Indices Data'!E32 -> Time | O25: Additional Refs
B26: Auto Dealerships | D26: ='Major US Stock Indices Data'!A33 -> Bermuda Stock Exchange Index | E26: ='Major US Stock Indices Data'!B33 -> 1154.56 | F26: ='Major US Stock Indices Data'!C33 -> -22.73 | G26: ='Major US Stock Indices Data'!D33 -> -0.0193 | H26: ='Major US Stock Indices Data'!E33 -> 05:59:26 | O26: Additional Refs
B27: Auto Manufacturers - Major | D27: ='Major US Stock Indices Data'!A34 -> 0 | E27: ='Major US Stock Indices Data'!B34 -> 0 | F27: ='Major US Stock Indices Data'!C34 -> 0 | G27: ='Major US Stock Indices Data'!D34 -> 0 | H27: ='Major US Stock Indices Data'!E34 -> 00:00:00 | O27: Additional Refs
B28: Auto Parts | D28: ='Major US Stock Indices Data'!A35 -> Index Name | E28: ='Major US Stock Indices Data'!B35 -> Value | F28: ='Major US Stock Indices Data'!C35 -> Change | G28: ='Major US Stock Indices Data'!D35 -> % Change | H28: ='Major US Stock Indices Data'!E35 -> Time | O28: Additional Refs
B29: Auto Parts Stores | D29: ='Major US Stock Indices Data'!A36 -> Ibovespa Brasil Sao Paulo Stock Exchange Index | E29: ='Major US Stock Indices Data'!B36 -> 56349.91 | F29: ='Major US Stock Indices Data'!C36 -> -79.36 | G29: ='Major US Stock Indices Data'!D36 -> -0.0014 | H29: ='Major US Stock Indices Data'!E36 -> 16:48:30 | O29: Additional Refs
B30: Auto Parts Wholesale | D30: ='Major US Stock Indices Data'!A37 -> Sao Paulo Stock Exchange IBrX Index | E30: ='Major US Stock Indices Data'!B37 -> 22035.58 | F30: ='Major US Stock Indices Data'!C37 -> -145.38 | G30: ='Major US Stock Indices Data'!D37 -> -0.0066 | H30: ='Major US Stock Indices Data'!E37 -> 16:45:00 | O30: Additional Refs
B31: Basic Materials Wholesale | D31: ='Major US Stock Indices Data'!A38 -> 0 | E31: ='Major US Stock Indices Data'!B38 -> 0 | F31: ='Major US Stock Indices Data'!C38 -> 0 | G31: ='Major US Stock Indices Data'!D38 -> 0 | H31: ='Major US Stock Indices Data'!E38 -> 00:00:00 | O31: Additional Refs
B32: Beverages - Brewers | D32: ='Major US Stock Indices Data'!A39 -> Index Name | E32: ='Major US Stock Indices Data'!B39 -> Value | F32: ='Major US Stock Indices Data'!C39 -> Change | G32: ='Major US Stock Indices Data'!D39 -> % Change | H32: ='Major US Stock Indices Data'!E39 -> Time | O32: Additional Refs
B33: Beverages - Soft Drinks | D33: ='Major US Stock Indices Data'!A40 -> S&P/TSX Composite Index | E33: ='Major US Stock Indices Data'!B40 -> 12658.09 | F33: ='Major US Stock Indices Data'!C40 -> -94.41 | G33: ='Major US Stock Indices Data'!D40 -> -0.0074 | H33: ='Major US Stock Indices Data'!E40 -> 16:20:00 | O33: Additional Refs
B34: Beverages - Wineries & Distillers | D34: ='Major US Stock Indices Data'!A41 -> S&P/TSX 60 Index | E34: ='Major US Stock Indices Data'!B41 -> 726.23 | F34: ='Major US Stock Indices Data'!C41 -> -6.28 | G34: ='Major US Stock Indices Data'!D41 -> -0.0086 | H34: ='Major US Stock Indices Data'!E41 -> 16:20:00 | O34: Additional Refs
B35: Biotechnology | D35: ='Major US Stock Indices Data'!A42 -> 0 | E35: ='Major US Stock Indices Data'!B42 -> 0 | F35: ='Major US Stock Indices Data'!C42 -> 0 | G35: ='Major US Stock Indices Data'!D42 -> 0 | H35: ='Major US Stock Indices Data'!E42 -> 00:00:00 | O35: Additional Refs
B36: Broadcasting - Radio | D36: ='Major US Stock Indices Data'!A43 -> Index Name | E36: ='Major US Stock Indices Data'!B43 -> Value | F36: ='Major US Stock Indices Data'!C43 -> Change | G36: ='Major US Stock Indices Data'!D43 -> % Change | H36: ='Major US Stock Indices Data'!E43 -> Time | O36: Additional Refs
B37: Braodcasting - TV | D37: ='Major US Stock Indices Data'!A44 -> Santiago Stock Exchange IPSA Index | E37: ='Major US Stock Indices Data'!B44 -> 4237.04 | F37: ='Major US Stock Indices Data'!C44 -> -33.08 | G37: ='Major US Stock Indices Data'!D44 -> -0.0077 | H37: ='Major US Stock Indices Data'!E44 -> 16:18:31 | O37: Additional Refs
B38: Building Materials Wholesale | D38: ='Major US Stock Indices Data'!A45 -> Santiago Stock Exchange IGPA Index | E38: ='Major US Stock Indices Data'!B45 -> 20848.72 | F38: ='Major US Stock Indices Data'!C45 -> -129.81 | G38: ='Major US Stock Indices Data'!D45 -> -0.0062 | H38: ='Major US Stock Indices Data'!E45 -> 16:18:31 | O38: Additional Refs
B39: Business Equipment | D39: ='Major US Stock Indices Data'!A46 -> 0 | E39: ='Major US Stock Indices Data'!B46 -> 0 | F39: ='Major US Stock Indices Data'!C46 -> 0 | G39: ='Major US Stock Indices Data'!D46 -> 0 | H39: ='Major US Stock Indices Data'!E46 -> 00:00:00 | O39: Additional Refs
B40: Business Services | D40: ='Major US Stock Indices Data'!A47 -> Index Name | E40: ='Major US Stock Indices Data'!B47 -> Value | F40: ='Major US Stock Indices Data'!C47 -> Change | G40: ='Major US Stock Indices Data'!D47 -> % Change | H40: ='Major US Stock Indices Data'!E47 -> Time | O40: Additional Refs
B41: Business Software & Services | D41: ='Major US Stock Indices Data'!A48 -> Colombia COL20 Index | E41: ='Major US Stock Indices Data'!B48 -> 1262.3 | F41: ='Major US Stock Indices Data'!C48 -> 6.27 | G41: ='Major US Stock Indices Data'!D48 -> 0.005 | H41: ='Major US Stock Indices Data'!E48 -> 15:59:20 | O41: Additional Refs
B42: Catalog & Mail Order Houses | D42: ='Major US Stock Indices Data'!A49 -> Indice General de la Bolsa de Valores de Colombia | E42: ='Major US Stock Indices Data'!B49 -> 13405.94 | F42: ='Major US Stock Indices Data'!C49 -> 76.3 | G42: ='Major US Stock Indices Data'!D49 -> 0.0057 | H42: ='Major US Stock Indices Data'!E49 -> 15:59:20 | O42: Additional Refs
B43: CATV Systems | D43: ='Major US Stock Indices Data'!A50 -> 0 | E43: ='Major US Stock Indices Data'!B50 -> 0 | F43: ='Major US Stock Indices Data'!C50 -> 0 | G43: ='Major US Stock Indices Data'!D50 -> 0 | H43: ='Major US Stock Indices Data'!E50 -> 00:00:00 | O43: Additional Refs
B44: Cement | D44: ='Major US Stock Indices Data'!A51 -> Index Name | E44: ='Major US Stock Indices Data'!B51 -> Value | F44: ='Major US Stock Indices Data'!C51 -> Change | G44: ='Major US Stock Indices Data'!D51 -> % Change | H44: ='Major US Stock Indices Data'!E51 -> Time | O44: Additional Refs
B45: Chemicals - Major Diversified | D45: ='Major US Stock Indices Data'!A52 -> BCT Corp Costa Rica Stock Market Index | E45: ='Major US Stock Indices Data'!B52 -> 19976.33 | F45: ='Major US Stock Indices Data'!C52 -> 0 | G45: ='Major US Stock Indices Data'!D52 -> 0 | H45: ='Major US Stock Indices Data'!E52 -> 41416 | O45: Additional Refs
B46: Cigarettes | D46: ='Major US Stock Indices Data'!A53 -> 0 | E46: ='Major US Stock Indices Data'!B53 -> 0 | F46: ='Major US Stock Indices Data'!C53 -> 0 | G46: ='Major US Stock Indices Data'!D53 -> 0 | H46: ='Major US Stock Indices Data'!E53 -> 00:00:00 | O46: Additional Refs
B47: Cleaning Products | D47: ='Major US Stock Indices Data'!A54 -> Index Name | E47: ='Major US Stock Indices Data'!B54 -> Value | F47: ='Major US Stock Indices Data'!C54 -> Change | G47: ='Major US Stock Indices Data'!D54 -> % Change | H47: ='Major US Stock Indices Data'!E54 -> Time
B48: Closed-End Fund - Debt | D48: ='Major US Stock Indices Data'!A55 -> Jamaica Stock Exchange Market Index | E48: ='Major US Stock Indices Data'!B55 -> 86275.28 | F48: ='Major US Stock Indices Data'!C55 -> 582.03 | G48: ='Major US Stock Indices Data'!D55 -> 0.0068 | H48: ='Major US Stock Indices Data'!E55 -> 41416
B49: Closed-End Fund - Equity | D49: ='Major US Stock Indices Data'!A56 -> 0 | E49: ='Major US Stock Indices Data'!B56 -> 0 | F49: ='Major US Stock Indices Data'!C56 -> 0 | G49: ='Major US Stock Indices Data'!D56 -> 0 | H49: ='Major US Stock Indices Data'!E56 -> 00:00:00
B50: Closed-End Fund - Foreign | D50: ='Major US Stock Indices Data'!A57 -> Index Name | E50: ='Major US Stock Indices Data'!B57 -> Value | F50: ='Major US Stock Indices Data'!C57 -> Change | G50: ='Major US Stock Indices Data'!D57 -> % Change | H50: ='Major US Stock Indices Data'!E57 -> Time
B51: Communication Equipment | D51: ='Major US Stock Indices Data'!A58 -> Mexican Stock Exchange Mexican Bolsa IPC Index | E51: ='Major US Stock Indices Data'!B58 -> 40505.27 | F51: ='Major US Stock Indices Data'!C58 -> 386.25 | G51: ='Major US Stock Indices Data'!D58 -> 0.0096 | H51: ='Major US Stock Indices Data'!E58 -> 16:06:35
B52: Computer Based Systems | D52: ='Major US Stock Indices Data'!A59 -> Mexican Stock Exchange INMEX Index | E52: ='Major US Stock Indices Data'!B59 -> 2343.18 | F52: ='Major US Stock Indices Data'!C59 -> 27.01 | G52: ='Major US Stock Indices Data'!D59 -> 0.0117 | H52: ='Major US Stock Indices Data'!E59 -> 16:06:35
B53: Computer Peripherals | D53: ='Major US Stock Indices Data'!A60 -> 0 | E53: ='Major US Stock Indices Data'!B60 -> 0 | F53: ='Major US Stock Indices Data'!C60 -> 0 | G53: ='Major US Stock Indices Data'!D60 -> 0 | H53: ='Major US Stock Indices Data'!E60 -> 00:00:00
B54: Computers Wholesale | D54: ='Major US Stock Indices Data'!A61 -> Index Name | E54: ='Major US Stock Indices Data'!B61 -> Value | F54: ='Major US Stock Indices Data'!C61 -> Change | G54: ='Major US Stock Indices Data'!D61 -> % Change | H54: ='Major US Stock Indices Data'!E61 -> Time
B55: Confectioners | D55: ='Major US Stock Indices Data'!A62 -> Bolsa de Valores de Panama General Index | E55: ='Major US Stock Indices Data'!B62 -> 476.44 | F55: ='Major US Stock Indices Data'!C62 -> -0.32 | G55: ='Major US Stock Indices Data'!D62 -> -0.0007 | H55: ='Major US Stock Indices Data'!E62 -> 16:19:39
B56: Conglomerates | D56: ='Major US Stock Indices Data'!A63 -> 0 | E56: ='Major US Stock Indices Data'!B63 -> 0 | F56: ='Major US Stock Indices Data'!C63 -> 0 | G56: ='Major US Stock Indices Data'!D63 -> 0 | H56: ='Major US Stock Indices Data'!E63 -> 00:00:00
B57: Consumer Services
B58: Copper
B59: Credit Services
B60: Dairy Products
B61: Data Storage Devices
B62: Department Stores
B63: Diagnostic Substances
B64: Discount, Variety Stores
B65: Diversified Communication Services
B66: Diversified Computer Systems
B67: Diversified Electronics
B68: Diversified Investments
B69: Diversified Machinery
B70: Diversified Utilities
B71: Drug Delivery
B72: Drug Manufacturers - Major
B73: Drug Manufacturers - Other
B74: Drug Related Products
B75: Drug Stores
B76: Drugs - Generic
B77: Drugs Wholesale
B78: Education & Training Services
B79: Electric Utilities
B80: Electronic Equipment
B81: Electronics Stores
B82: Electronics Wholesale
B83: Entertainment - Diversified
B84: Farm & Construction Machinery
B85: Farm Products
B86: Food - Major Diversified
B87: Food Wholesale
B88: Foreign Money Center Banks
B89: Foreign Regional Banks
B90: Foreign Utilities
B91: Gaming Activities
B92: Gas Utilities
B93: General Building Materials
B94: General Contractors
B95: General Entertainment
B96: Gold
B97: Grocery Stores
B98: Health Care Plans
B99: Healcare Information Services
B100: Heavy Construction
B101: Home Furnishing Stores
B102: Home Furnishings & Fixtures
B103: Home Health Care
B104: Home Improvement Stores
B105: Hospitals
B106: Housewares & Accessories
B107: Independent Oil & Gas
B108: Industrial Electrical Equipment
B109: Industrial Equipment & Components
B110: Industrial Equipment Wholesale
B111: Industrial Metals & Minerals
B112: Information & Delivery Services
B113: Information Technology Services
B114: Insurance Brokers
B115: Internet Information Providers
B116: Internet Service Providers
B117: Internet Software & Services
B118: Investment Brokerage - National
B119: Invesment Brokerage - Regional
B120: Jewelry Stores
B121: Life Insurance
B122: Lodging
B123: Long Distance Carriers
B124: Long-Term Care Facilities
B125: Lumber, Wood Production
B126: Machine Tools & Accessories
B127: Major Airlines
B128: Major Integrated Oil & Gas
B129: Management Services
B130: Manufactured Housing
B131: Marketing Services
B132: Meat Products
B133: Medical Appliances & Equipment
B134: Medical Equipment Wholesale
B135: Medical Instruments & Supplies
B136: Medical Laboratories & Research
B137: Medical Practitioners
B138: Metal Fabrication
B139: Money Center Banks
B140: Mortgage Investment
B141: Movie Production, Theaters
B142: Multimedia & Graphics Software
B143: Music & Video Stores
B144: Networking & Communication Devices
B145: Nonmetallic Mineral Mining
B146: Office Supplies
B147: Oil & Gas Drilling & Exploration
B148: Oil & Gas Equipment & Services
B149: Oil & Gas Pipelines
B150: Oil & Gas Refining & Marketing
B151: Packaging & Containers
B152: Paper & Paper Products
B153: Personal Computers
B154: Personal Products
B155: Personal Services
B156: Photographic Equipment & Supplies
B157: Pollution & Treatment Controls
B158: Printed Circuit Boards
B159: Processed & Packaged Goods
B160: Processing Systems & Products
B161: Property & Casualty Insurance
B162: Property Management
B163: Publishing - Books
B164: Publishing - Newspapers
B165: Publishing - Periodicals
B166: Railroads
B167: Real Estate Development
B168: Recreational Goods, Other
B169: Recreational Vehicles
B170: Regional - Mid-Atlantic Banks
B171: Regional - Midwest Banks
B172: Regional - Northeast Banks
B173: Regional - Pacific Banks
B174: Regional - Southeast Banks
B175: Regional - Southwest Banks
B176: Regional Airlines
B177: REIT - Diversified
B178: REIT - Healthcare Facilities
B179: REIT - Hotel/Motel
B180: REIT - Industrial
B181: REIT - Office
B182: REIT - Residential
B183: REIT - Retail
B184: Rental & Leasing Services
B185: Research Services
B186: Residential Construction
B187: Resorts & Casinos
B188: Restaurants
B189: Rubber & Plastics
B190: Savings & Loans
B191: Scientific & Technical Instruments
B192: Security & Protection Services
B193: Security Software & Services
B194: Semiconductor - Broad Line
B195: Semiconductor - Integrated Circuits
B196: Semiconductor - Specialized
B197: Semiconductor Equipment & Materials
B198: Semicondutor - Memory Chips
B199: Shipping
B200: Silve
B201: Small Tools & Accessories
B202: Specialized Health Services
... 65 more rows

Sheet Major US Stock Indices Data
A1: Ticker | B1: Volume | C1: Price | D1: Price Delta
A2: DJIA | B2: 15294.5 | C2: -12.67 | D2: -0.0008
A3: S&P 500 | B3: 1650.51 | C3: -4.84 | D3: -0.0029
A4: Nasdaq | B4: 3459.42 | C4: -3.88 | D4: -0.0011
A6: Ticker | B6: Volume | C6: Price | D6: Price Delta
A7: STOXX 50 | B7: 2776.78 | C7: -58.23 | D7: -0.0205
A8: FTSE 100 | B8: 6696.79 | C8: -143.48 | D8: -0.021
A9: DAX | B9: 8351.98 | C9: -178.91 | D9: -0.021
A11: Ticker | B11: Volume | C11: Price | D11: Price Delta
A12: Nikkei | B12: 14484 | C12: -1143.28 | D12: -0.0732
A13: Hang Seng | B13: 22669.7 | C13: -591.4 | D13: -0.0254
A14: S&P/ASX 200 | B14: 5062.45 | C14: -102.92 | D14: -0.0199
A16: Index Name | B16: Value | C16: Change | D16: % Change | E16: Time
A17: Dow Jones Industrial Average | B17: 15294.5 | C17: -12.67 | D17: -0.0008 | E17: 16:53:57
A18: Dow Jones Transportation Average | B18: 6429.79 | C18: 13.53 | D18: 0.0021 | E18: 16:53:57
A19: Dow Jones Utilities Average | B19: 504.51 | C19: -2.95 | D19: -0.0058 | E19: 16:53:57
A20: S&P 500 Index | B20: 1650.51 | C20: -4.84 | D20: -0.0029 | E20: 16:19:56
A21: New York Stock Exchange Composite Index | B21: 9466.29 | C21: -41.76 | D21: -0.0044 | E21: 16:44:33
A22: NASDAQ Composite Index | B22: 3459.42 | C22: -3.88 | D22: -0.0011 | E22: 16:59:23
A23: Russell 1000 Index | B23: 915.08 | C23: -2.57 | D23: -0.0028 | E23: 17:00:49
A24: Russell 2000 Index | B24: 984.28 | C24: 2.02 | D24: 0.0021 | E24: 17:00:37
A25: Russell 3000 Index | B25: 980.52 | C25: -2.39 | D25: -0.0024 | E25: 17:00:47
A26: KBW Bank Index | B26: 60.68 | C26: -0.24 | D26: -0.0039 | E26: 16:58:03
A28: Index Name | B28: Value | C28: Change | D28: % Change | E28: Time
A29: Buenos Aires Stock Exchange Merval Index | B29: 3557.55 | C29: 9.81 | D29: 0.0028 | E29: 16:00:49
A30: Merval Argentina Index | B30: 2469.87 | C30: 5.29 | D30: 0.0021 | E30: 16:00:49
A32: Index Name | B32: Value | C32: Change | D32: % Change | E32: Time
A33: Bermuda Stock Exchange Index | B33: 1154.56 | C33: -22.73 | D33: -0.0193 | E33: 05:59:26
A35: Index Name | B35: Value | C35: Change | D35: % Change | E35: Time
A36: Ibovespa Brasil Sao Paulo Stock Exchange Index | B36: 56349.91 | C36: -79.36 | D36: -0.0014 | E36: 16:48:30
A37: Sao Paulo Stock Exchange IBrX Index | B37: 22035.58 | C37: -145.38 | D37: -0.0066 | E37: 16:45:00
A39: Index Name | B39: Value | C39: Change | D39: % Change | E39: Time
A40: S&P/TSX Composite Index | B40: 12658.09 | C40: -94.41 | D40: -0.0074 | E40: 16:20:00
A41: S&P/TSX 60 Index | B41: 726.23 | C41: -6.28 | D41: -0.0086 | E41: 16:20:00
A43: Index Name | B43: Value | C43: Change | D43: % Change | E43: Time
A44: Santiago Stock Exchange IPSA Index | B44: 4237.04 | C44: -33.08 | D44: -0.0077 | E44: 16:18:31
A45: Santiago Stock Exchange IGPA Index | B45: 20848.72 | C45: -129.81 | D45: -0.0062 | E45: 16:18:31
A47: Index Name | B47: Value | C47: Change | D47: % Change | E47: Time
A48: Colombia COL20 Index | B48: 1262.3 | C48: 6.27 | D48: 0.005 | E48: 15:59:20
A49: Indice General de la Bolsa de Valores de Colombia | B49: 13405.94 | C49: 76.3 | D49: 0.0057 | E49: 15:59:20
A51: Index Name | B51: Value | C51: Change | D51: % Change | E51: Time
A52: BCT Corp Costa Rica Stock Market Index | B52: 19976.33 | C52: 0 | D52: 0 | E52: 2013-05-22
A54: Index Name | B54: Value | C54: Change | D54: % Change | E54: Time
A55: Jamaica Stock Exchange Market Index | B55: 86275.28 | C55: 582.03 | D55: 0.0068 | E55: 2013-05-22
A57: Index Name | B57: Value | C57: Change | D57: % Change | E57: Time
A58: Mexican Stock Exchange Mexican Bolsa IPC Index | B58: 40505.27 | C58: 386.25 | D58: 0.0096 | E58: 16:06:35
A59: Mexican Stock Exchange INMEX Index | B59: 2343.18 | C59: 27.01 | D59: 0.0117 | E59: 16:06:35
A61: Index Name | B61: Value | C61: Change | D61: % Change | E61: Time
A62: Bolsa de Valores de Panama General Index | B62: 476.44 | C62: -0.32 | D62: -0.0007 | E62: 16:19:39
A64: Index Name | B64: Value | C64: Change | D64: % Change | E64: Time
A65: Bolsa de Valores de Lima General Sector Index | B65: 16610.8 | C65: -125.48 | D65: -0.0075 | E65: 16:10:09
A66: Bolsa de Valores de Lima Selective Sector Index | B66: 25574.7 | C66: -226.08 | D66: -0.0088 | E66: 16:10:09
A68: Index Name | B68: Value | C68: Change | D68: % Change | E68: Time
A69: Caracas Stock Exchange Stock Market Index | B69: 785367 | C69: 5965.44 | D69: 0.0077 | E69: 13:30:35

Sheet Stock - MSN Money Quote
A1: Stock Quotes Provided by MSN Money
A2: Click here to visit MSN Money
D3: Last | E3: Previous Close | F3: High | G3: Low | H3: Volume | I3: Change | J3: % Change | K3: 52 Wk High | L3: 52 Wk Low | M3: Market Cap | N3: EPS | O3: P/E Ratio | P3: # Shares Out
A4: Google Inc | B4: Chart | C4: News | D4: 882.79 | E4: 889.42 | F4: 889.96 | G4: 874 | H4: 2273578 | I4: -6.63 | J4: -0.0075 | K4: 920.6 | L4: 556.52 | M4: 292879788129 | N4: 33.5 | O4: 27 | P4: 331766100
A6: Symbol Lookup | C6: MSN Money Home | G6: Microsoft Office Tools on the Web
A7: Find stocks, mutual funds, options, indices, and currencies. | C7: Discover MSN Money's tools, columns, and more! | G7: Get the latest from Microsoft Office
A9: Terms of Use. © 2013 Microsoft Corporation and/or its suppliers. All rights reserved.
A10: DATA PROVIDERS
A12: Copyright © 2013 Microsoft. All rights reserved.
A14: Quotes are real-time for NASDAQ, NYSE and AMEX. See delay times for other exchanges.
A16: Fundamental company data and historical chart data provided by Thomson Reuters (click for restrictions). Real-time quotes provided by BATS Exchange. Real-time index quotes and delayed quotes supplied by Interactive Data Real-Time Services. Fund summary, fund performance and dividend data provided by Morningstar Inc. Analyst recommendations provided by Zacks Investment Research. StockScouter data provided by Verus Analytics. IPO data provided by Hoover's Inc. Index membership data provided by SIX Telekurs.
A18: Japanese stock price data provided by Nomura Research Institute Ltd.; quotes delayed 20 minutes. Canadian fund data provided by CANNEX Financial Exchanges Ltd.

Sheet Stock - Price Chart
A1: **Retrieve company's historical price chart using appropriate Yahoo Finance link, and paste chart in the box to the right (see column G) to fit to size. Then, place correctly sized chart in the indicated location on the "SPUSIF White Page Final" sheet.** | G1: PRICE CHART SIZING TOOL
B3: Copy + paste link into browser, replace ["TICKER"] with appropriate letters
A4: YAHOO 5y HISTORICAL PRICE CHART LINK: | B4: http://finance.yahoo.com/q/bc?s=["TICKER"]&t=5y&l=on&z=l&q=l&c= | C4: **Default** | D4: Example (VZ): | E4: http://finance.yahoo.com/q/bc?s=VZ&t=5y&l=on&z=l&q=l&c=
A7: YAHOO 2y HISTORICAL PRICE CHART LINK: | B7: http://finance.yahoo.com/q/bc?s=["TICKER"]&t=2y&l=on&z=l&q=l&c= | C7: **Jusify Choice on White Page Builder** | D7: Example (VZ): | E7: http://finance.yahoo.com/q/bc?s=VZ&t=2y&l=on&z=l&q=l&c=
A8: YAHOO 1y HISTORICAL PRICE CHART LINK: | B8: http://finance.yahoo.com/q/bc?s=["TICKER"]&t=1y&l=on&z=l&q=l&c= | C8: **Jusify Choice on White Page Builder** | D8: Example (VZ): | E8: http://finance.yahoo.com/q/bc?s=VZ&t=1y&l=on&z=l&q=l&c=
A9: YAHOO 6m HISTORICAL PRICE CHART LINK: | B9: http://finance.yahoo.com/q/bc?s=["TICKER"]&t=6m&l=on&z=l&q=l&c= | C9: **Jusify Choice on White Page Builder** | D9: Example (VZ): | E9: http://finance.yahoo.com/q/bc?s=VZ&t=6m&l=on&z=l&q=l&c=
A10: YAHOO 3m HISTORICAL PRICE CHART LINK: | B10: http://finance.yahoo.com/q/bc?s=["TICKER"]&t=3m&l=on&z=l&q=l&c= | C10: **Jusify Choice on White Page Builder** | D10: Example (VZ): | E10: http://finance.yahoo.com/q/bc?s=VZ&t=3m&l=on&z=l&q=l&c=
A11: YAHOO 1m HISTORICAL PRICE CHART LINK: | B11: http://finance.yahoo.com/q/bc?s=["TICKER"]&t=1m&l=on&z=l&q=l&c= | C11: **Jusify Choice on White Page Builder** | D11: Example (VZ): | E11: http://finance.yahoo.com/q/bc?s=VZ&t=1m&l=on&z=l&q=l&c=
A12: YAHOO 5d HISTORICAL PRICE CHART LINK: | B12: http://finance.yahoo.com/q/bc?s=["TICKER"]&t=5d&l=on&z=l&q=l&c= | C12: **Jusify Choice on White Page Builder** | D12: Example (VZ): | E12: http://finance.yahoo.com/q/bc?s=VZ&t=5d&l=on&z=l&q=l&c=
A13: YAHOO 1d HISTORICAL PRICE CHART LINK: | B13: http://finance.yahoo.com/q/bc?s=["TICKER"]&t=1d&l=on&z=l&q=l&c= | C13: **Jusify Choice on White Page Builder** | D13: Example (VZ): | E13: http://finance.yahoo.com/q/bc?s=VZ&t=1d&l=on&z=l&q=l&c=
A14: YAHOO max HISTORICAL PRICE CHART LINK: | B14: http://finance.yahoo.com/q/bc?s=["TICKER"]&t=my&l=on&z=l&q=l&c= | C14: **Jusify Choice on White Page Builder** | D14: Example (VZ): | E14: http://finance.yahoo.com/q/bc?s=VZ&t=my&l=on&z=l&q=l&c=
G18: =IF('White Page Builder'!B11="5y","Retrieve Company's 5y Price Chart Using Link 1",IF('White Page Builder'!B11="2y","Retrieve Company's 2y Price Chart Using Link 2",IF('White Page Builder'!B11="1y","Retrieve Company's 1y Price Chart Using Link 3",IF('White Page Builder'!B11="6m","Retrieve Company's 6m Price Chart Using Link 4",IF('White Page Builder'!B11="3m","Retrieve Company's 3m Price Chart Using Link 5",IF('White Page Builder'!B11="1m","Retrieve Company's 1m Price Chart Using Link 6",IF('White Page Builder'!B11="5d","Retrieve Company's 5d Price Chart Using Link 7",IF('White Page Builder'!B11="1d","Retrieve Company's 1d Price Chart Using Link 8",IF('White Page Builder'!B11="max","Retrieve Company's max Price Chart Using Link 9",IF('White Page Builder'!B11="custom","Retrieve Custom Price Chart for Company","**Price Chart Msg**")))))))))) -> **Price Chart Msg**
G19: =IF(G18="**Price Chart Msg**","N/A","Paste Price Chart in SPUSIF White Page Final Indicated Area") -> N/A

Sheet Stock - Key Metrics
A1: Search | B1: Search Web
A7: AdvertisementAdvertisement
A9: Key Statistics | C9: Get Key Statistics for: | H9: **Scroll down to A100 for Key Metrics Table**
A10: Data provided by Capital IQ, except where noted. | E10: Trading Information
A11: Valuation Measures | E11: Stock Price History
A12: Market Cap (intraday)5: | B12: 292.88B | E12: Beta: | F12: 1.16
A13: Enterprise Value (May 23, 2013)3: | B13: 258.91B | E13: 52-Week Change3: | F13: 0.4734
A14: Trailing P/E (ttm, intraday): | B14: 26.41 | E14: S&P500 52-Week Change3: | F14: 0.2551
A15: Forward P/E (fye Dec 31, 2014)1: | B15: 16.61 | E15: 52-Week High (May 20, 2013)3: | F15: 920.6
A16: PEG Ratio (5 yr expected)1: | B16: 1.32 | E16: 52-Week Low (Jun 14, 2012)3: | F16: 556.52
A17: Price/Sales (ttm): | B17: 5.52 | E17: 50-Day Moving Average3: | F17: 831.81
A18: Price/Book (mrq): | B18: 3.9 | E18: 200-Day Moving Average3: | F18: 766.66
A19: Enterprise Value/Revenue (ttm)3: | B19: 4.84 | E19: Share Statistics
A20: Enterprise Value/EBITDA (ttm)6: | B20: 15.4 | E20: Avg Vol (3 month)3: | F20: 2280380
A21: Financial Highlights | E21: Avg Vol (10 day)3: | F21: 2478950
A22: Fiscal Year | E22: Shares Outstanding5: | F22: 331.77M
A23: Fiscal Year Ends: | B23: 2013-12-30 | E23: Float: | F23: 270.81M
A24: Most Recent Quarter (mrq): | B24: 2013-03-31 | E24: % Held by Insiders1: | F24: 0.0033
A25: Profitability | E25: % Held by Institutions1: | F25: 0.856
A26: Profit Margin (ttm): | B26: 0.2092 | E26: Shares Short (as of Apr 30, 2013)3: | F26: 4.12M
A27: Operating Margin (ttm): | B27: 0.253 | E27: Short Ratio (as of Apr 30, 2013)3: | F27: 1.7
A28: Management Effectiveness | E28: Short % of Float (as of Apr 30, 2013)3: | F28: 0.015
A29: Return on Assets (ttm): | B29: 0.0973 | E29: Shares Short (prior month)3: | F29: 3.56M
A30: Return on Equity (ttm): | B30: 0.1636 | E30: Dividends & Splits
A31: Income Statement | E31: Forward Annual Dividend Rate4: | F31: N/A
A32: Revenue (ttm): | B32: 53.50B | E32: Forward Annual Dividend Yield4: | F32: N/A
A33: Revenue Per Share (ttm): | B33: 162.86 | E33: Trailing Annual Dividend Yield3: | F33: N/A
A34: Qtrly Revenue Growth (yoy): | B34: 0.312 | E34: Trailing Annual Dividend Yield3: | F34: N/A
A35: Gross Profit (ttm): | B35: 29.54B | E35: 5 Year Average Dividend Yield4: | F35: N/A
A36: EBITDA (ttm)6: | B36: 16.81B | E36: Payout Ratio4: | F36: N/A
A37: Net Income Avl to Common (ttm): | B37: 11.22B | E37: Dividend Date3: | F37: N/A
A38: Diluted EPS (ttm): | B38: 33.42 | E38: Ex-Dividend Date4: | F38: N/A
A39: Qtrly Earnings Growth (yoy): | B39: 0.158 | E39: Last Split Factor (new per old)2: | F39: N/A
A40: Balance Sheet | E40: Last Split Date3: | F40: N/A
A41: Total Cash (mrq): | B41: 50.10B
A42: Total Cash Per Share (mrq): | B42: 151
A43: Total Debt (mrq): | B43: 7.38B
A44: Total Debt/Equity (mrq): | B44: 9.77
A45: Current Ratio (mrq): | B45: 4.74
A46: Book Value Per Share (mrq): | B46: 228.01
A47: Cash Flow Statement
A48: Operating Cash Flow (ttm): | B48: 16.56B
A49: Levered Free Cash Flow (ttm): | B49: 10.99B
A51: View Financials
A52: Income Statement - Balance Sheet - Cash Flow
A53: See Key Statistics Help for definitions of terms used.
A54: Abbreviation Guide: K = Thousands; M = Millions; B = Billions
A55: mrq = Most Recent Quarter (as of Mar 31, 2013)
A56: ttm = Trailing Twelve Months (as of Mar 31, 2013)
A57: yoy = Year Over Year (as of Mar 31, 2013)
A58: lfy = Last Fiscal Year (as of Dec 31, 2012)
A59: fye = Fiscal Year Ending
A60: 1 Data provided by Thomson Reuters
A61: 2 Data provided by EDGAR Online
A62: 3 Data derived from multiple sources or calculated by Yahoo! Finance
A63: 4 Data provided by Morningstar, Inc.
A64: 5 Shares outstanding is taken from the most recently filed quarterly or annual report and Market Cap is calculated using shares outstanding.
A65: 6 EBITDA is calculated by Capital IQ using methodology that may differ from that used by a company in its reporting
A67: Currency in USD.
A69: Copyright © 2013 Yahoo! Inc. All rights reserved. Privacy Policy - About Our Ads - Terms of Service - Copyright/IP Policy - Send Feedback - Yahoo! - ABC News Network
A70: Quotes are real-time for NASDAQ, NYSE, and NYSE MKT. See also delay times for other exchanges. All information provided "as is" for informational purposes only, not intended for trading purposes or advice. Neither Yahoo! nor any of independent providers is liable for any informational errors, incompleteness, or delays, or for any actions taken in reliance on information contained herein. By accessing the Yahoo! site, you agree not to redistribute the information found therein. Real-Time continuous streaming quotes are available through our premium service. You may turn streaming quotes on or off.
A72: Fundamental company data provided by Capital IQ. Historical chart data and daily updates provided by Commodity Systems, Inc. (CSI). International historical chart data, daily updates, fund summary, fund performance, dividend data and Morningstar Index data provided by Morningstar, Inc. US Financials data provided by Edgar Online and all other Financials provided by Capital IQ. International historical chart data, daily updates, fundAnalyst estimates data provided by Thomson Financial Network. All data povided by Thomson Financial Network is based solely upon research information provided by third party analysts. Yahoo! has not reviewed, and in no way endorses the validity of such data. Yahoo! and ThomsonFN shall not be liable for any actions taken in reliance thereon.
A100: KEY METRICS TABLE (Cells A102:C112)
A102: Market Cap | C102: =VLOOKUP("Market Cap",'Stock - FinViz Profile'!A1:M31,3,FALSE) -> 292.88B
A103: P/E | C103: =VLOOKUP("P/E",'Stock - FinViz Profile'!D1:M31,2,FALSE) -> 26.28
A104: PEG | C104: =VLOOKUP("PEG",'Stock - FinViz Profile'!D1:M31,2,FALSE) -> 1.69
A105: P/B | C105: =VLOOKUP("P/B",'Stock - FinViz Profile'!D1:M31,2,FALSE) -> 3.87
A106: Dividend Yield | C106: =VLOOKUP("Dividend %",'Stock - FinViz Profile'!A1:M31,3,FALSE) -> -
A107: Payout Ratio | C107: =VLOOKUP("Payout",'Stock - FinViz Profile'!H1:M30,2,FALSE) -> 0
A108: EPS (ttm) | C108: =VLOOKUP("EPS (ttm)",'Stock - FinViz Profile'!F1:M31,2,FALSE) -> 33.59
A109: Return on Assets | C109: =VLOOKUP("ROA",'Stock - FinViz Profile'!H1:M32,2,FALSE) -> 0.1291
A110: Return on Equity | C110: =VLOOKUP("ROE",'Stock - FinViz Profile'!H1:M31,2,FALSE) -> 0.1636
A111: Return on Investment | C111: =VLOOKUP("ROI",'Stock - FinViz Profile'!H1:M31,2,FALSE) -> 0.1488
A112: Beta | C112: =VLOOKUP("Beta",'Stock - FinViz Profile'!L1:M31,2,FALSE) -> 0.95
A113: Operating Margin | C113: =VLOOKUP("Oper. Margin",'Stock - FinViz Profile'!H1:M31,2,FALSE) -> 0.2402
A114: Profit Margin | C114: =VLOOKUP("Profit Margin",'Stock - FinViz Profile'!H1:M32,2,FALSE) -> 0.2098
A115: Current Ratio | C115: =VLOOKUP("Current Ratio",'Stock - FinViz Profile'!D1:M31,2,FALSE) -> 4.74
A117: =IF('White Page Builder'!B16="YES - COMPLETE","Refresh Key Metrics Web Query to Finalize Key Metrics Table","Need More Key Metrics Data Before Proceeding with White Page") -> Need More Key Metrics Data Before Proceeding with White Page
A118: =IF(A117="Need More Key Metrics Data Before Proceeding with White Page","N/A","Verify Info in SPUSIF White Page Final Key Metrics Area") -> N/A

Sheet Stock - Competitors Data
A1: Search | B1: Search Web
B7: AdvertisementAdvertisement
A9: Competitors | G9: Get Competitors for:
A10: Direct Competitor Comparison | I10: AdChoices
B11: GOOG | C11: FB | D11: PVT1 | E11: YHOO | F11: Industry | I11: Click Here
A12: Market Cap: | B12: 292.88B | C12: 60.59B | D12: N/A | E12: 28.17B | F12: 2.07B
A13: Employees: | B13: 53891 | C13: 4900 | D13: N/A | E13: 11700 | F13: 20.88K
A14: Qtrly Rev Growth (yoy): | B14: 0.31 | C14: 0.38 | D14: N/A | E14: -0.07 | F14: 1.71
A15: Revenue (ttm): | B15: 53.50B | C15: 5.49B | D15: N/A | E15: 4.91B | F15: 420.42M
A16: Gross Margin (ttm): | B16: 0.58 | C16: 0.73 | D16: N/A | E16: 0.68 | F16: 0.72
A17: EBITDA (ttm): | B17: 16.81B | C17: 1.31B | D17: N/A | E17: 1.33B | F17: 32.31M
A18: Operating Margin (ttm): | B18: 0.25 | C18: 0.1 | D18: N/A | E18: 0.16 | F18: 0.19
A19: Net Income (ttm): | B19: 11.22B | C19: 112.00M | D19: N/A | E19: 4.05B | F19: N/A
A20: EPS (ttm): | B20: 33.42 | C20: 0.05 | D20: N/A | E20: 3.45 | F20: 0.37
A21: P/E (ttm): | B21: 26.41 | C21: 544.78 | D21: N/A | E21: 7.55 | F21: 21.79
A22: PEG (5 yr expected): | B22: 1.32 | C22: 1.57 | D22: N/A | E22: 1.46 | F22: 0.68
A23: P/S (ttm): | B23: 5.52 | C23: 11.08 | D23: N/A | E23: 5.86 | F23: 4.81
A25: FB = Facebook, Inc.
A26: Pvt1 = MSN (privately held)
A27: YHOO = Yahoo! Inc.
A28: Industry = Internet Information Providers
A31: Internet Content Providers Ranked by Sales
A32: Company | B32: Symbol | C32: Price | D32: Change | E32: Market Cap | F32: P/E
A33: Yahoo! Inc. | B33: YHOO | C33: 26.02 | D33: -0.02 | E33: 28.17B | F33: 7.55
A34: MSN | B34: Private - View Profile
A35: AOL Inc. | B35: AOL | C35: 36.54 | D35: 0.01 | E35: 2.83B | F35: 3.12
A36: Disney Online | B36: Private - View Profile
A37: Move, Inc. | B37: MOVE | C37: 10.88 | D37: 0.01 | E37: 433.80M | F37: 90.67
A38: Match.com, LLC | B38: Private - View Profile
A39: SINA Corporation | B39: SINA | C39: 57.31 | D39: -0.02 | E39: 3.82B | F39: 120.91
A40: Daum Communications Corp. | B40: Private - View Profile
A42: View Internet Information Providers Industry Center
A45: News on Direct Competitors
A49: YHOO
A50: Draw Something From This: Yahoo's Design Chief Tim Parsey To Depart at AllThingsD Thu 4:43pm
A54: YHOO
A55: Rue21 Board Under Inquiry and 2 More Heavily Traded Stocks to Follow at Wall St. Cheat Sheet Thu 4:13pm
A59: FB
A60: Facebook Faces Delays With Home App and 2 More Heavily Traded Stocks to Follow at Wall St. Cheat Sheet Thu 4:01pm
A64: YHOO
A65: Google Said to Face New Antitrust Probe Over Display Ads at Bloomberg Thu 3:59pm
A69: YHOO
A70: Hearst Taps Demand Media's Bradford and Yucaipa's Johnson "Redefine" the San Francisco Chronicle at AllThingsD Thu 3:49pm
A74: FB
A75: European Parliament Moves to Limit Scope of Eventual U.S. Trade Deal at New York Times Thu 3:34pm
A79: YHOO
A80: 3 Signs It Will Be Time To Buy This Well-Known Retailer StreetAuthority Network Thu 3:30pm
A84: FB
A85: Khosla Ventures hires Google veteran Ben Ling at Reuters Thu 3:10pm
A89: FB
A90: Kids: Facebook Means Hanging With Mom and Dad Big Data Download Thu 3:04pm
A94: FB
A95: Another Setback for Facebook Home at The Wall Street Journal Thu 2:56pm
A99: FB
A100: ChannelAdvisor soars in debut Reuters Thu 2:30pm
A102: All Headlines for these symbols...
A104: Currency in USD.
A106: Copyright © 2013 Yahoo! Inc. All rights reserved. Privacy Policy - About Our Ads - Terms of Service - Copyright/IP Policy - Send Feedback - Yahoo! - ABC News Network
A107: Quotes are real-time for NASDAQ, NYSE, and NYSE MKT. See also delay times for other exchanges. All information provided "as is" for informational purposes only, not intended for trading purposes or advice. Neither Yahoo! nor any of independent providers is liable for any informational errors, incompleteness, or delays, or for any actions taken in reliance on information contained herein. By accessing the Yahoo! site, you agree not to redistribute the information found therein. Real-Time continuous streaming quotes are available through our premium service. You may turn streaming quotes on or off.
A109: Fundamental company data provided by Capital IQ. Historical chart data and daily updates provided by Commodity Systems, Inc. (CSI). International historical chart data, daily updates, fund summary, fund performance, dividend data and Morningstar Index data provided by Morningstar, Inc. Competitors selected by Hoover's Inc.

Sheet Stock - Historical Financials
A1: **Values in Millions USD (except for per share items)** | B1: INCOME STATEMENT - ANNUAL DATA - 5 YEARS | I1: BALANCE SHEET - ANNUAL DATA - 5 YEARS | P1: STATEMENT OF CASH FLOWS - ANNUAL DATA - 5 YEARS
B3: Annual Interim | I3: Annual Interim | P3: Annual Interim
C5: 2012 | D5: 2011 | E5: 2010 | F5: 2009 | G5: 2008 | J5: 2012 | K5: 2011 | L5: 2010 | M5: 2009 | N5: 2008 | Q5: 2012 | R5: 2011 | S5: 2010 | T5: 2009 | U5: 2008
B6: Period End Date | C6: 2012-12-31 | D6: 2011-12-31 | E6: 2010-12-31 | F6: 2009-12-31 | G6: 2008-12-31 | I6: Period End Date | J6: 2012-12-31 | K6: 2011-12-31 | L6: 2010-12-31 | M6: 2009-12-31 | N6: 2008-12-31 | P6: Period End Date | Q6: 2012-12-31 | R6: 2011-12-31 | S6: 2010-12-31 | T6: 2009-12-31 | U6: 2008-12-31
B7: Period Length | C7: 12 Months | D7: 12 Months | E7: 12 Months | F7: 12 Months | G7: 12 Months | I7: Stmt Source | J7: 10-K | K7: 10-K | L7: 10-K | M7: 10-K | N7: 10-K | P7: Period Length | Q7: 12 Months | R7: 12 Months | S7: 12 Months | T7: 12 Months | U7: 12 Months
B8: Stmt Source | C8: 10-K | D8: 10-K | E8: 10-K | F8: 10-K | G8: 10-K | I8: Stmt Source Date | J8: 2013-01-29 | K8: 2013-01-29 | L8: 2011-02-11 | M8: 2010-02-12 | N8: 2009-02-13 | P8: Stmt Source | Q8: 10-K | R8: 10-K | S8: 10-K | T8: 10-K | U8: 10-K
B9: Stmt Source Date | C9: 2013-01-29 | D9: 2012-01-26 | E9: 2011-02-11 | F9: 2010-02-12 | G9: 2009-02-13 | I9: Stmt Update Type | J9: Updated | K9: Reclassified | L9: Updated | M9: Updated | N9: Updated | P9: Stmt Source Date | Q9: 2013-01-29 | R9: 2012-01-26 | S9: 2011-02-11 | T9: 2010-02-12 | U9: 2009-02-13
B10: Stmt Update Type | C10: Updated | D10: Updated | E10: Updated | F10: Updated | G10: Updated | P10: Stmt Update Type | Q10: Updated | R10: Updated | S10: Updated | T10: Updated | U10: Updated
I11: Assets
B12: Revenue | C12: 50175 | D12: 37905 | E12: 29321 | F12: 23650.56 | G12: 21795.55 | I12: Cash and Short Term Investments | J12: 48088 | K12: 44626 | L12: 34975 | M12: 24484.78 | N12: 15845.77 | P12: Net Income/Starting Line | Q12: 10737 | R12: 9737 | S12: 8505 | T12: 6520.45 | U12: 4226.86
B13: Other Revenue, Total | C13: 0 | D13: 0 | E13: 0 | F13: 0 | G13: 0 | I13: Cash | J13: 6712 | K13: 4712 | L13: 4652 | M13: 4302.58 | N13: 3330.66 | P13: Depreciation/Depletion | Q13: 1988 | R13: 1396 | S13: 1067 | T13: 1240.03 | U13: 1212.24
B14: Total Revenue | C14: 50175 | D14: 37905 | E14: 29321 | F14: 23650.56 | G14: 21795.55 | I14: Cash & Equivalents | J14: 8066 | K14: 5271 | L14: 8978 | M14: 5895.01 | N14: 5326.01 | P14: Amortization | Q14: 974 | R14: 455 | S14: 329 | T14: 284.28 | U14: 287.65
I15: Short Term Investments | J15: 33310 | K15: 34643 | L15: 21345 | M15: 14287.19 | N15: 7189.1 | P15: Deferred Taxes | Q15: -266 | R15: 343 | S15: 9 | T15: -268.06 | U15: -224.65
B16: Cost of Revenue, Total | C16: 20505 | D16: 13188 | E16: 10417 | F16: 8844.12 | G16: 8621.51 | I16: Total Receivables, Net | J16: 8585 | K16: 6172 | L16: 5002 | M16: 3201.72 | N16: 2642.19 | P16: Non-Cash Items | Q16: 2288 | R16: 2004 | S16: 1270 | T16: 1053.52 | U16: 2023.53
B17: Gross Profit | C17: 29670 | D17: 24717 | E17: 18904 | F17: 14806.45 | G17: 13174.04 | I17: Accounts Receivable -Trade, Net | J17: 7885 | K17: 5427 | L17: 4252 | M17: 3178.47 | N17: 2642.19 | P17: Accounting Change | Q17: 0 | R17: 0 | S17: 0 | T17: 0 | U17: 0
I18: Accounts Receivable - Trade, Gross | J18: 8466 | K18: 5560 | L18: 4353 | M18: 3257.36 | N18: 2722.28 | P18: Unusual Items | Q18: -188 | R18: 110 | S18: 0 | T18: 0 | U18: 1094.76
B19: Selling/General/Administrative Expenses, Total | C19: 9741 | D19: 7313 | E19: 4761 | F19: 3651.24 | G19: 3748.88 | I19: Provision for Doubtful Accounts | J19: -581 | K19: -133 | L19: -101 | M19: -78.88 | N19: -80.09 | P19: Other Non Cash Items | Q19: 2476 | R19: 1894 | S19: 1270 | T19: 1053.52 | U19: 928.77
B20: Research & Development | C20: 6593 | D20: 5162 | E20: 3762 | F20: 2843.03 | G20: 2793.19 | I20: Receivables - Other | J20: 700 | K20: 745 | L20: 750 | M20: 23.24 | N20: 0 | P20: Changes in Working Capital | Q20: 898 | R20: 630 | S20: -99 | T20: 485.99 | U20: 327.23
B21: Depreciation/Amortization | C21: 0 | D21: 0 | E21: 0 | F21: 0 | G21: 0 | I21: Total Inventory | J21: 505 | K21: 35 | L21: 0 | M21: 0 | N21: 0 | P21: Prepaid Expenses | Q21: -833 | R21: -262 | S21: -414 | T21: 262.04 | U21: -147.13
B22: Interest Expense (Income), Net Operating | C22: 0 | D22: 0 | E22: 0 | F22: 0 | G22: 0 | I22: Prepaid Expenses | J22: 2132 | K22: 1710 | L22: 1326 | M22: 836.06 | N22: 1404.11 | P22: Accrued Expenses | Q22: 1061 | R22: 1054 | S22: 959 | T22: 400.81 | U22: 352.91
B23: Unusual Expense (Income) | C23: 576 | D23: 610 | E23: 0 | F23: 0 | G23: 1094.76 | I23: Other Current Assets, Total | J23: 1144 | K23: 215 | L23: 259 | M23: 644.41 | N23: 286.11 | P23: Accounts Receivable | Q23: -787 | R23: -1156 | S23: -1129 | T23: -504.04 | U23: -334.46
B24: Other Operating Expenses, Total | C24: 0 | D24: 0 | E24: 0 | F24: 0 | G24: 0 | I24: Total Current Assets | J24: 60454 | K24: 52758 | L24: 41562 | M24: 29166.96 | N24: 20178.18 | P24: Inventories | Q24: 301 | R24: 0 | S24: 0 | T24: 0 | U24: 0
B25: Operating Income | C25: 12760 | D25: 11632 | E25: 10381 | F25: 8312.19 | G25: 5537.21 | P25: Payable/Accrued | Q25: 0 | R25: 0 | S25: 0 | T25: 0 | U25: 0
I26: Property/Plant/Equipment, Total - Net | J26: 11854 | K26: 9603 | L26: 7759 | M26: 4844.61 | N26: 5233.84 | P26: Taxes Payable | Q26: 1492 | R26: 731 | S26: 102 | T26: 217.48 | U26: 626.03
B27: Interest Income (Expense), Net Non-Operating | C27: 0 | D27: 0 | E27: 0 | F27: 0 | G27: 0 | I27: Goodwill, Net | J27: 10537 | K27: 7346 | L27: 6256 | M27: 4902.57 | N27: 4839.85 | P27: Accounts Payable | Q27: -499 | R27: 101 | S27: 272 | T27: 33.64 | U27: -211.54
B28: Gain (Loss) on Sale of Assets | C28: 188 | D28: 0 | E28: 0 | F28: 0 | G28: 0 | I28: Intangibles, Net | J28: 7473 | K28: 1578 | L28: 1044 | M28: 774.94 | N28: 996.69 | P28: Other Liabilities | Q28: 163 | R28: 162 | S28: 111 | T28: 76.07 | U28: 41.43
B29: Other, Net | C29: 58 | D29: 65 | E29: 11 | F29: 2.37 | G29: 4.52 | I29: Long Term Investments | J29: 1469 | K29: 790 | L29: 523 | M29: 128.98 | N29: 85.16 | P29: Cash from Operating Activities | Q29: 16619 | R29: 14565 | S29: 11081 | T29: 9316.2 | U29: 7852.86
B30: Income Before Tax | C30: 13386 | D30: 12326 | E30: 10796 | F30: 8381.19 | G30: 5853.6 | I30: Note Receivable - Long Term | J30: 0 | K30: 0 | L30: 0 | M30: 0 | N30: 0
I31: Other Long Term Assets, Total | J31: 2011 | K31: 499 | L31: 707 | M31: 678.73 | N31: 433.85 | P31: Capital Expenditures | Q31: -3273 | R31: -3438 | S31: -4018 | T31: -809.89 | U31: -2358.46
B32: Income Tax - Total | C32: 2598 | D32: 2589 | E32: 2291 | F32: 1860.74 | G32: 1626.74 | I32: Other Assets, Total | J32: 0 | K32: 0 | L32: 0 | M32: 0 | N32: 0 | P32: Purchase/Acquisition of Intangibles | Q32: 0 | R32: 0 | S32: 0 | T32: 0 | U32: 0
B33: Income After Tax | C33: 10788 | D33: 9737 | E33: 8505 | F33: 6520.45 | G33: 4226.86 | I33: Total Assets | J33: 93798 | K33: 72574 | L33: 57851 | M33: 40496.78 | N33: 31767.58 | P33: Purchase of Fixed Assets | Q33: -3273 | R33: -3438 | S33: -4018 | T33: -809.89 | U33: -2358.46
P34: Other Investing Cash Flow Items, Total | Q34: -9783 | R34: -15603 | S34: -6662 | T34: -7209.32 | U34: -2960.96
B35: Minority Interest | C35: 0 | D35: 0 | E35: 0 | F35: 0 | G35: 0 | I35: Liabilities and Shareholders' Equity | P35: Intangibles, Net | Q35: 0 | R35: 0 | S35: 0 | T35: 0 | U35: 0
B36: Equity In Affiliates | C36: 0 | D36: 0 | E36: 0 | F36: 0 | G36: 0 | I36: Accounts Payable | J36: 2012 | K36: 588 | L36: 483 | M36: 215.87 | N36: 178 | P36: Acquisition of Business | Q36: -10568 | R36: -1900 | S36: -1067 | T36: -108.02 | U36: -3320.3
B37: U.S. GAAP Adjustment | C37: 0 | D37: 0 | E37: 0 | F37: 0 | G37: 0 | I37: Payable/Accrued | J37: 0 | K37: 0 | L37: 0 | M37: 0 | N37: 0 | P37: Sale Maturity of Investment | Q37: 35180 | R37: 48746 | S37: 37099 | T37: 22102.87 | U37: 15762.8
B38: Net Income Before Extra. Items | C38: 10788 | D38: 9737 | E38: 8505 | F38: 6520.45 | G38: 4226.86 | I38: Accrued Expenses | J38: 6968 | K38: 4356 | L38: 3256 | M38: 2246.52 | N38: 1824.45 | P38: Investment, Net | Q38: 45 | R38: 5 | S38: -750 | T38: 0 | U38: 0
I39: Notes Payable/Short Term Debt | J39: 2549 | K39: 1218 | L39: 3465 | M39: 0 | N39: 0 | P39: Purchase of Investments | Q39: -34106 | R39: -62100 | S39: -44305 | T39: -29204.16 | U39: -15403.46
B40: Total Extraordinary Items | C40: -51 | D40: 0 | E40: 0 | F40: 0 | G40: 0 | I40: Current Port. of LT Debt/Capital Leases | J40: 0 | K40: 0 | L40: 0 | M40: 0 | N40: 0 | P40: Other Investing Cash Flow | Q40: -334 | R40: -354 | S40: 2361 | T40: 0 | U40: 0
B41: Accounting Change | C41: 0 | D41: 0 | E41: 0 | F41: 0 | G41: 0 | I41: Other Current Liabilities, Total | J41: 2808 | K41: 2751 | L41: 2792 | M41: 285.08 | N41: 299.63 | P41: Cash from Investing Activities | Q41: -13056 | R41: -19041 | S41: -10680 | T41: -8019.21 | U41: -5319.42
B42: Discontinued Operations | C42: -51 | D42: 0 | E42: 0 | F42: 0 | G42: 0 | I42: Total Current Liabilities | J42: 14337 | K42: 8913 | L42: 9996 | M42: 2747.47 | N42: 2302.09
B43: Net Income | C43: 10737 | D43: 9737 | E43: 8505 | F43: 6520.45 | G43: 4226.86 | P43: Financing Cash Flow Items | Q43: 188 | R43: 86 | S43: 94 | T43: 90.27 | U43: 159.09
I44: Total Long Term Debt | J44: 2988 | K44: 2986 | L44: 0 | M44: 0 | N44: 0 | P44: Other Financing CashFlow | Q44: 188 | R44: 86 | S44: 94 | T44: 90.27 | U44: 159.09
B45: Total Adjustments to Net Income | C45: 0 | D45: 0 | E45: 0 | F45: 0 | G45: 0 | I45: Long Term Debt | J45: 2988 | K45: 2986 | L45: 0 | M45: 0 | N45: 0 | P45: Total Cash Dividends Paid | Q45: 0 | R45: 0 | S45: 0 | T45: 0 | U45: 0
B46: Preferred Dividends | C46: 0 | D46: 0 | E46: 0 | F46: 0 | G46: 0 | I46: Capital Lease Obligations | J46: 0 | K46: 0 | L46: 0 | M46: 0 | N46: 0 | P46: Issuance (Retirement) of Stock, Net | Q46: -287 | R46: -5 | S46: -507 | T46: 143.14 | U46: -71.52
B47: General Partners Distributions | C47: 0 | D47: 0 | E47: 0 | F47: 0 | G47: 0 | I47: Deferred Income Tax | J47: 1872 | K47: 287 | L47: 0 | M47: 0 | N47: 12.52 | P47: Issuance (Retirement) of Debt, Net | Q47: 1328 | R47: 726 | S47: 3463 | T47: 0 | U47: 0
I48: Minority Interest | J48: 0 | K48: 0 | L48: 0 | M48: 0 | N48: 0 | P48: Cash from Financing Activities | Q48: 1229 | R48: 807 | S48: 3050 | T48: 233.41 | U48: 87.57
B49: Basic Weighted Average Shares | C49: 327.21 | D49: 322.78 | E49: 318.7 | F49: 316.22 | G49: 313.96 | I49: Other Liabilities, Total | J49: 2886 | K49: 2243 | L49: 1614 | M49: 1745.09 | N49: 1214.11
B50: Basic EPS Excluding Extraordinary Items | C50: 32.97 | D50: 30.17 | E50: 26.69 | F50: 20.62 | G50: 13.46 | I50: Total Liabilities | J50: 22083 | K50: 14429 | L50: 11610 | M50: 4492.55 | N50: 3528.71 | P50: Foreign Exchange Effects | Q50: 3 | R50: 22 | S50: -19 | T50: 10.51 | U50: -45.92
B51: Basic EPS Including Extraordinary Items | C51: 32.81 | D51: 30.17 | E51: 26.69 | F51: 20.62 | G51: 13.46 | P51: Net Change in Cash | Q51: 4795 | R51: -3647 | S51: 3432 | T51: 1540.92 | U51: 2575.08
I52: Redeemable Preferred Stock | J52: 0 | K52: 0 | L52: 0 | M52: 0 | N52: 0
B53: Diluted Weighted Average Shares | C53: 332.31 | D53: 327.21 | E53: 323.25 | F53: 319.42 | G53: 317.51 | I53: Preferred Stock - Non Redeemable, Net | J53: 0 | K53: 0 | L53: 0 | M53: 0 | N53: 0 | P53: Net Cash - Beginning Balance | Q53: 9983 | R53: 13630 | S53: 10198 | T53: 8656.67 | U53: 6081.59
B54: Diluted EPS Excluding Extrordinary Items | C54: 32.46 | D54: 29.76 | E54: 26.31 | F54: 20.41 | G54: 13.31 | I54: Common Stock | J54: 22835 | K54: 20264 | L54: 18235 | M54: 0.32 | N54: 0.32 | P54: Net Cash - Ending Balance | Q54: 14778 | R54: 9983 | S54: 13630 | T54: 10197.59 | U54: 8656.67
B55: Diluted EPS Including Extraordinary Items | C55: 32.31 | D55: 29.76 | E55: 26.31 | F55: 20.41 | G55: 13.31 | I55: Additional Paid-In Capital | J55: 0 | K55: 0 | L55: 0 | M55: 15816.74 | N55: 14450.34
I56: Retained Earnings (Accumulated Deficit) | J56: 48342 | K56: 37605 | L56: 27868 | M56: 20082.08 | N56: 13561.63
B57: Dividends per Share - Common Stock Primary Issue | C57: 0 | D57: 0 | E57: 0 | F57: 0 | G57: 0 | I57: Treasury Stock - Common | J57: 0 | K57: 0 | L57: 0 | M57: 0 | N57: 0
B58: Dividends per Share - Common Stock Issue 2 | C58: 0 | D58: 0 | E58: 0 | F58: 0 | G58: 0 | I58: ESOP Debt Guarantee | J58: 0 | K58: 0 | L58: 0 | M58: 0 | N58: 0
B59: Gross Dividends - Common Stock | C59: 0 | D59: 0 | E59: 0 | F59: 0 | G59: 0 | I59: Unrealized Gain (Loss) | J59: 604 | K59: 327 | L59: 94 | M59: 0 | N59: 0
B60: Interest Expense, Supplemental | C60: 84 | D60: 58 | E60: 5 | F60: 0 | G60: 0 | I60: Other Equity, Total | J60: -66 | K60: -51 | L60: 44 | M60: 105.09 | N60: 226.58
B61: Depreciation, Supplemental | C61: 1988 | D61: 1396 | E61: 1067 | F61: 1240.03 | G61: 1212.24 | I61: Total Equity | J61: 71715 | K61: 58145 | L61: 46241 | M61: 36004.22 | N61: 28238.86
B63: Normalized EBITDA | C63: 16208 | D63: 14079 | E63: 11762 | F63: 9818.22 | G63: 8123.91 | I63: Total Liabilities & Shareholders’ Equity | J63: 93798 | K63: 72574 | L63: 57851 | M63: 40496.78 | N63: 31767.58
B64: Normalized EBIT | C64: 13336 | D64: 12242 | E64: 10381 | F64: 8312.19 | G64: 6631.97
B65: Normalized Income Before Tax | C65: 13774 | D65: 12936 | E65: 10796 | F65: 8381.19 | G65: 6948.35 | I65: Total Common Shares Outstanding | J65: 329.98 | K65: 324.89 | L65: 321.3 | M65: 317.77 | N65: 315.11
B66: Normalized Income After Taxes | C66: 11100.7 | D66: 10218.87 | E66: 8505 | F66: 6520.45 | G66: 5017.38 | I66: Total Preferred Shares Outstanding | J66: 0 | K66: 0 | L66: 0 | M66: 0 | N66: 0
B67: Normalized Income Available to Common | C67: 11100.7 | D67: 10218.87 | E67: 8505 | F67: 6520.45 | G67: 5017.38
B69: Basic Normalized EPS | C69: 33.92 | D69: 31.66 | E69: 26.69 | F69: 20.62 | G69: 15.98
B70: Diluted Normalized EPS | C70: 33.41 | D70: 31.23 | E70: 26.31 | F70: 20.41 | G70: 15.8
B71: Amortization of Acquisition Cost | C71: 0 | D71: 0 | E71: 0 | F71: 0 | G71: 0
B72: Amortization of Intangibles | C72: 884 | D72: 441 | E72: 314 | F72: 266 | G72: 279.7

Sheet Stock - Sector and Industry
A1: Search | B1: Search Web
D7: AdvertisementAdvertisement
A9: Industry: Internet Information Providers | G9: Get Industry for:
A10: GOOG Sector / Industry Membership
A11: Sector: | B11: Technology
A12: Industry: | B12: Internet Information Providers
A14: Intraday Performance Summary
A15: Name | G15: Ticker | I15: Change | J15: Chart for Google Inc. (GOOG)
A16: Google Inc. | G16: GOOG | I16: Down0.75%
A17: Internet Information Providers | G17: ^YHOh908 | I17: Down0.43%
A18: View Internet Information Providers Industry Center
A19: Internet Information Providers Industry News
A21: Google faces new FTC antitrust probe: reportat MarketWatch (Thu 4:49PM EDT)
A22: Google Said to Face Display-Ad Antitrust Probeat Bloomberg (Thu 4:47PM EDT)
A23: 4 Tech Stock Stories For a Thursday Downloadat Wall St. Cheat Sheet (Thu 4:46PM EDT)
A24: Google faces new federal antitrust probe: sourceReuters (Thu 4:45PM EDT)
A25: Google faces new federal antitrust probe - sourceat Reuters (Thu 4:43PM EDT)
A27: More Industry News...
A30: Top Internet Information Providers Companies by Market Cap
A31: Company | B31: Symbol | C31: Price | D31: Change | E31: Market Cap | F31: P/E
A32: Tencent Holdings Ltd. | B32: 0700.HK | C32: 292.8 | D32: Down3.37% | E32: 541.97B | F32: 33.74
A33: Baidu, Inc. | B33: BIDUN.MX | C33: 1177 | D33: 0 | E33: 411.61B | F33: 243.38
A34: Yahoo! Inc. | B34: YHOO.MX | C34: 324.7 | D34: Down1.13% | E34: 351.53B | F34: 94.23
A35: Google Inc. | B35: GOOG | C35: 882.79 | D35: Down0.75% | E35: 292.88B | F35: 26.41
A36: Rightmove plc | B36: RMV.L | C36: 2031 | D36: Down3.47% | E36: 2.03B | F36: 3430.74
A37: Moneysupermarket.com Group PLC | B37: MONY.L | C37: 211.1 | D37: Down0.98% | E37: 1.13B | F37: 4491.49
A38: Showing 1 - 5 of 125 - View All
A41: More Top Companies: by Performance, by Valuation, by Growth, by Growth
A43: GOOG vs. Industry Leaders
A44: Statistic | B44: Industry Leader | D44: GOOG | E44: GOOG Rank
A45: Market Capitalization | B45: 0700.HK | C45: 541.97B | D45: 292.88B | E45: 4 / 125
A46: P/E Ratio (ttm) | B46: RMV.L | C46: 3430.74 | D46: 26.41 | E46: 31 / 125
A47: PEG Ratio (ttm, 5 yr expected) | B47: SFLY | C47: 9.36 | D47: 1.32 | E47: 23 / 125
A48: Revenue Growth (Qtrly YoY) | B48: 8071.HK | C48: -0.575 | D48: 0.312 | E48: 23 / 125
A49: EPS Growth (Qtrly YoY) | B49: 8006.HK | C49: N/A | D49: 0.135 | E49: 30 / 125
A50: Long-Term Growth Rate (5 yr) | B50: LNKD | C50: 0.5843 | D50: 0.1495 | E50: 37 / 125
A51: Return on Equity (ttm) | B51: RMV.L | C51: 3.8891 | D51: 0.1636 | E51: 28 / 125
A52: Long-Term Debt/Equity (mrq) | D52: 9.773 | E52: N/A
A53: Dividend Yield (annual) | B53: SFUN | C53: 0.077 | D53: N/A | E53: N/A
A55: View Leaders & Laggards
A57: More on Internet Information Providers
A59: • | B59: Industry Summary | G59: • | H59: Company List
A60: • | B60: News | G60: • | H60: Industry Calendar
A61: • | B61: Leaders & Laggards
A63: Related Industries
A65: • | B65: Business Software & Services | G65: • | H65: Internet Service Providers
A66: • | B66: Information & Delivery Services | G66: • | H66: Internet Software & Services
A67: • | B67: Information Technology Services | G67: • | H67: Security Software & Services
A69: Top Performing Industries | Complete Industry List
A71: Currency in USD.
A73: Copyright © 2013 Yahoo! Inc. All rights reserved. Privacy Policy - About Our Ads - Terms of Service - Copyright/IP Policy - Send Feedback - Yahoo! - ABC News Network
A74: Quotes are real-time for NASDAQ, NYSE, and NYSE MKT. See also delay times for other exchanges. All information provided "as is" for informational purposes only, not intended for trading purposes or advice. Neither Yahoo! nor any of independent providers is liable for any informational errors, incompleteness, or delays, or for any actions taken in reliance on information contained herein. By accessing the Yahoo! site, you agree not to redistribute the information found therein. Real-Time continuous streaming quotes are available through our premium service. You may turn streaming quotes on or off.
A76: Fundamental company data provided by Capital IQ. Historical chart data and daily updates provided by Commodity Systems, Inc. (CSI). International historical chart data, daily updates, fund summary, fund performance, dividend data and Morningstar Index data provided by Morningstar, Inc.

Sheet Stock - Yahoo Profile
A1: Skip to search.
A3: New User? Register
A4: Sign In
A5: Help
A7: Get new Yahoo! Mail apps
A10: Notifications Help
A12: Mail
A13: My Y!
A14: Yahoo!
A16: Yahoo! Finance
A18: Search | B18: Search Web
A20: Breaking News Visit Yahoo! News for the latest.
A22: ×Close this window
A26: HOME
A27: INVESTING
A29: Market Overview
A30: Market Stats
A31: Stocks
A32: Mutual Funds
A33: ETFs
A34: Bonds
A35: Options
A36: Industries
A37: Currencies
A38: Education
A39: Commodities
A40: NEWS
A42: Markets
A43: Investing Ideas
A44: Special Editions
A45: Company Finances
A46: RSS Feeds
A47: Video
A48: Photos & Interactives
A49: PERSONAL FINANCE
A51: Career & Education
A52: Insurance
A53: Lifestyle
A54: Loans
A55: Real Estate
A56: Retirement
A57: Saving & Spending
A58: Taxes
A59: Glossary
A60: Your Money 101
A61: MY PORTFOLIOS
A63: Sign in to access My Portfolios
A64: Free trial of Real-Time Quotes
A65: EXCLUSIVES
A67: Breakout
A68: The Daily Ticker
A69: The Exchange
A70: Unexpected Returns
A71: Financially Fit
A72: Just Explain It
A73: Hot Stock Minute
A74: Cost of Living
A75: CNBC
A77: Big Data Download
A78: Off the Cuff
A79: Talking Numbers
A80: Latest Headlines
A82: Search for share prices
A84: Search for share prices
A85: Finance Search
A87: Thu, May 23, 2013, 5:02PM EDT - U.S. Markets closed
A89: Dow Down0.08% Nasdaq Down0.11%
A92: More On GOOG
A94: Quotes
A96: Summary
A97: Order Book
A98: Options
A99: Historical Prices
A101: Charts
A103: Interactive
A104: Basic Chart
A105: Basic Tech. Analysis
A107: News & Info
A109: Headlines
A110: Press Releases
A111: Company Events
A112: Message Boards
A113: Market Pulse
A115: Company
A117: Profile
A118: Key Statistics
A119: SEC Filings
A120: Competitors
A121: Industry
A122: Components
A124: Analyst Coverage
A126: Analyst Opinion
A127: Analyst Estimates
A128: Research Reports
A130: Ownership
A132: Major Holders
A133: Insider Transactions
A134: Insider Roster
A136: Financials
A138: Income Statement
A139: Balance Sheet
A140: Cash Flow
B142: AdvertisementAdvertisement
A144: Google Inc. (GOOG)
A146: -NasdaqGS
A148: 882.79 Down6.63(0.75%) 4:00PM EDT|After Hours : 885.20 Up2.41 (0.27%) 5:00PM EDT - Nasdaq Real Time Price
A150: Add to Portfolio
A151: Profile | C151: Get Profile for:
A152: Google Inc. | E152: Corporate Governance
A153: 1600 Amphitheatre Parkway | E153: Google Inc.’s ISS Governance QuickScore as of May 1, 2013 is 8. The pillar scores are Audit: 1; Board: 8; Shareholder Rights: 10; Compensation: 5.
A154: Mountain View, CA 94043 | E154: Brought to you by Institutional Shareholder Services (ISS)
A155: United States - Map | E155: View Financials
A156: Phone: 650-253-0000
A157: Fax: 650-253-0001 | E157: Key Executives
A158: Website: http://www.google.com | F158: Pay | G158: Exercised
E159: Dr. Eric E. Schmidt Ph.D., 58 | F159: 7.59M | G159: 0
A160: Details | E160: Exec. Chairman, Chairman of Exec. Committee and Chairman of Acquisition Committee
A161: Index Membership: | B161: Nasdaq 100 | E161: Dr. Lawrence Page , 40 | F161: 0 | G161: 0
B162: AMEX Internet | E162: Co-Founder, Chief Exec. officer, Director, Member of Acquisition Committee and Member of Exec. Committee
A163: Sector: | B163: Technology | E163: Mr. Sergey Brin , 39 | F163: 0 | G163: 0
A164: Industry: | B164: Internet Information Providers | E164: Co-Founder, Assistant Sec., Director, Member of Acquisition Committee and Member of Exec. Committee
A165: Full Time Employees: | B165: 53891 | E165: Mr. Patrick Pichette , 50 | F165: 3.46M | G165: 8.64M
E166: Chief Financial Officer, Principal Accounting Officer and Sr. VP
A167: Business Summary | E167: Mr. David C. Drummond , 50 | F167: 3.96M | G167: 0
E168: Chief Legal Officer, Sr. VP of Corp. Devel. and Sec.
A169: Google Inc., a technology company, builds products and provides services to organize the information and make it universally accessible and useful. It provides Search, a service that delivers relevant search results in response to user queries; Product Listing Ads that offer product information; Search plus Your World; Google Now, a predictive search feature; and Google Knowledge Graph, which enhances Search service. The company also offers AdWords, an auction-based advertising program; AdSense, a program which enables Websites that are part of the Google Network to deliver ads; Google Display, a display advertising network; DoubleClick Ad Exchange, a marketplace for the trading display ad space; and YouTube that provides video, interactive, and other ad formats. In addition, it provides Google Mobile that extends its products and services to mobile device users; Google Local, which provides local information; Android, an open source mobile software platform; Google Chrome OS, an open source operating system; Google Chrome, a Web browser; Google+ for sharing various things online with different people; Google Play, a cloud-based digital entertainment destination; Google Drive, a place for users to create, share, collaborate, and keep their stuff; and Google Wallet, a virtual wallet for in-store contactless payments. Further, the company offers Google TV, a platform for consumers to use television and the Internet on a single screen; Google Apps, a cloud computing suite of message and collaboration tools; Search Appliance, a search technology for use within enterprises; Google Site Search, a custom search engine; Google Commerce Search for online retail enterprises; Google Maps Application Programming Interface; and Google Earth Enterprise, a software solution for imagery and data visualization. Additionally, it offers mobile wireless devices, and related products and services. Google Inc. was founded in 1998 and is headquartered in Mountain View, California.
E170: Amounts are as of Dec 30, 2012 and compensation values are for the last fiscal year ending on that date. Pay is salary, bonuses, etc.Exercised is the value of options exercised during the fiscal year.
A171: Key Statistics | E171: Currency in USD.
E172: View Insiders
A174: Company Websites
A175: Home Page
A176: Search Yahoo! for:
A177: More on Google Inc.
A180: Copyright © 2013 Yahoo! Inc. All rights reserved. Privacy Policy - About Our Ads - Terms of Service - Copyright/IP Policy - Send Feedback - Yahoo! - ABC News Network
A181: Quotes are real-time for NASDAQ, NYSE, and NYSE MKT. See also delay times for other exchanges. All information provided "as is" for informational purposes only, not intended for trading purposes or advice. Neither Yahoo! nor any of independent providers is liable for any informational errors, incompleteness, or delays, or for any actions taken in reliance on information contained herein. By accessing the Yahoo! site, you agree not to redistribute the information found therein. Real-Time continuous streaming quotes are available through our premium service. You may turn streaming quotes on or off.
A183: Fundamental company data provided by Capital IQ. Historical chart data and daily updates provided by Commodity Systems, Inc. (CSI). International historical chart data, daily updates, fund summary, fund performance, dividend data and Morningstar Index data provided by Morningstar, Inc.
A185: 95941563

Sheet Stock - FinViz Profile
D1: Welcome Guest! Login | Register | Help
B3: Home | D3: News | F3: Screener | H3: Maps | J3: Groups | L3: Portfolio | N3: Insider | P3: Futures | R3: Forex | T3: Collaborate | V3: Store | Y3: Elite
AB5: Ticker | AD5: Company | AF5: Profile
A9: publish chart | backtests Type: candle | line | advanced Timeframe: intraday | daily | weekly | monthly | C9: Settings
A12: GOOG [NASD]
A13: Google Inc.
A14: Technology | Internet Information Providers | USA
B15: financial highlights | statements
A16: Index | C16: S&P 500 | D16: P/E | E16: 26.28 | F16: EPS (ttm) | G16: 33.59 | H16: Insider Own | I16: 0.0007 | J16: Shs Outstand | K16: 331.77M | L16: Perf Week | M16: -0.0233
A17: Market Cap | C17: 292.88B | D17: Forward P/E | E17: 16.61 | F17: EPS next Y | G17: 53.16 | H17: Insider Trans | I17: -0.3924 | J17: Shs Float | K17: 270.52M | L17: Perf Month | M17: 0.0852
A18: Income | C18: 11.22B | D18: PEG | E18: 1.69 | F18: EPS next Q | G18: 10.8 | H18: Inst Own | I18: 0.8666 | J18: Short Float | K18: 0.0152 | L18: Perf Quarter | M18: 0.1039
A19: Sales | C19: 53.50B | D19: P/S | E19: 5.47 | F19: EPS this Y | G19: 0.091 | H19: Inst Trans | I19: 0.0196 | J19: Short Ratio | K19: 1.81 | L19: Perf Half Y | M19: 0.3177
A20: Book/sh | C20: 228 | D20: P/B | E20: 3.87 | F20: EPS next Y | G20: 0.1604 | H20: ROA | I20: 0.1291 | J20: Target Price | K20: 918.27 | L20: Perf Year | M20: 0.4375
A21: Cash/sh | C21: 151 | D21: P/C | E21: 5.85 | F21: EPS next 5Y | G21: 0.1554 | H21: ROE | I21: 0.1636 | J21: 52W Range | K21: 556.52 - 920.60 | L21: Perf YTD | M21: 0.248
A22: Dividend | C22: - | D22: P/FCF | E22: 23.08 | F22: EPS past 5Y | G22: 0.1955 | H22: ROI | I22: 0.1488 | J22: 52W High | K22: -0.0411 | L22: Beta | M22: 0.95
A23: Dividend % | C23: - | D23: Quick Ratio | E23: 4.69 | F23: Sales past 5Y | G23: 0.2477 | H23: Gross Margin | I23: 0.574 | J23: 52W Low | K23: 0.5863 | L23: ATR | M23: 16.37
A24: Employees | C24: 53861 | D24: Current Ratio | E24: 4.74 | F24: Sales Q/Q | G24: 0.3123 | H24: Oper. Margin | I24: 0.2402 | J24: RSI (14) | K24: 58.09 | L24: Volatility | M24: 1.82% 1.63%
A25: Optionable | C25: Yes | D25: Debt/Eq | E25: 0.07 | F25: EPS Q/Q | G25: 0.1279 | H25: Profit Margin | I25: 0.2098 | J25: Rel Volume | K25: 1 | L25: Prev Close | M25: 889.42
A26: Shortable | C26: Yes | D26: LT Debt/Eq | E26: 0.04 | F26: Earnings | G26: Apr 18 AMC | H26: Payout | I26: 0 | J26: Avg Volume | K26: 2.28M | L26: Price | M26: 882.79
A27: Recom | C27: 2.1 | D27: SMA20 | E27: 0.021 | F27: SMA50 | G27: 0.0689 | H27: SMA200 | I27: 0.1827 | J27: Volume | K27: 2273578 | L27: Change | M27: -0.0075
A29: 2013-05-20 | B29: Reiterated | C29: Barclays | D29: Overweight | E29: $875 → $1000
A30: 2013-04-19 | B30: Reiterated | C30: Oppenheimer | D30: Perform | E30: $765 → $820
A31: 2013-04-19 | B31: Reiterated | C31: Needham | D31: Buy | E31: $850 → $900
A32: 2013-04-19 | B32: Reiterated | C32: Deutsche Bank | D32: Buy | E32: $935 → $930
A33: 2013-04-19 | B33: Reiterated | C33: Canaccord Genuity | D33: Buy | E33: $830 → $890
A34: 2013-04-19 | B34: Reiterated | C34: Barclays | D34: Overweight | E34: $850 → $875
A35: 2013-04-02 | B35: Initiated | C35: UBS | D35: Buy | E35: 945
A36: 2013-03-11 | B36: Reiterated | C36: RBC Capital Mkts | D36: Outperform | E36: $840 → $950
A37: 2013-02-21 | B37: Reiterated | C37: Deutsche Bank | D37: Buy | E37: $850 → $935
A38: 2013-01-23 | B38: Reiterated | C38: Cantor Fitzgerald | D38: Buy | E38: $820 → $900
A39: 2013-01-23 | B39: Reiterated | C39: Barclays | D39: Overweight | E39: $800 → $850
A40: 2013-01-02 | B40: Reiterated | C40: Oppenheimer | D40: Perform | E40: $765 → $715
A41: 2012-11-30 | B41: Reiterated | C41: Barclays | D41: Overweight | E41: $780 → $800
A42: 2012-10-19 | B42: Reiterated | C42: Cantor Fitzgerald | D42: Buy | E42: $830 → $820
A43: 2012-10-19 | B43: Downgrade | C43: Oppenheimer | D43: Outperform → Perform | E43: $800 → $765
A44: 2012-10-15 | B44: Reiterated | C44: Oppenheimer | D44: Outperform | E44: $752 → $800
A45: 2012-09-27 | B45: Reiterated | C45: Argus | D45: Buy | E45: $730 → $875
A46: 2012-09-26 | B46: Reiterated | C46: Canaccord Genuity | D46: Buy | E46: $700 → $850
A47: 2012-09-25 | B47: Reiterated | C47: Capstone Investments | D47: Buy | E47: $830 → $910
A48: 2012-09-21 | B48: Initiated | C48: Cantor Fitzgerald | D48: Buy | E48: 830
A50: 23-May-13 04:50PM | F50: Apartment Guide App for Kindle Fire HD Zacks
A51: 04:49PM | F51: Google faces new FTC antitrust probe: report at MarketWatch
A52: 04:47PM | F52: Google Said to Face Display-Ad Antitrust Probe at Bloomberg
A53: 04:46PM | F53: 4 Tech Stock Stories For a Thursday Download at Wall St. Cheat Sheet
A54: 04:45PM | F54: Google faces new federal antitrust probe: source Reuters
A55: 04:43PM | F55: Google faces new federal antitrust probe - source at Reuters
A56: 04:41PM | F56: Xbox One might not be the game changer Microsoft claims at Investor's Business Daily
A57: 04:40PM | F57: Deconstructing Google's Strategy: Will Google Eat Your Business Next? at Forbes
A58: 04:30PM | F58: Tax Protest in Britain Focuses on Google at New York Times
A59: 04:28PM | F59: Pandora Quarterly Loss Widens as Costs Outpace Ad Sales at Bloomberg
A60: 04:07PM | F60: The FTC Is Probing Whether Google Hurts Competitors In Web Display Advertising Business Insider
A61: 04:00PM | F61: Don't Invest in Apple Before You Read This at Motley Fool
A62: 03:53PM | F62: Hewlett-Packard: Successful Turnarounds 101 at Seeking Alpha
A63: 03:50PM | F63: Google and NASA Make Quantum Leap With New Computer at Minyanville
A64: 03:34PM | F64: European Parliament Moves to Limit Scope of Eventual U.S. Trade Deal at New York Times
A65: 03:30PM | F65: Can This Company Keep Growing and Growing? at Motley Fool
A66: 03:13PM | F66: 3 Tech Titans Making Noise: Apples Bondholders Lose Value, Google Saves HP, and Ciscos Leverage at Wall St. Cheat Sheet
A67: 03:10PM | F67: Khosla Ventures hires Google veteran Ben Ling at Reuters
A68: 03:04PM | F68: Apple, Android and a truckload of watermelons at Fortune
A69: 02:35PM | F69: Baidu: Is China's Search Giant Transitioning To A Slower Growth Period? at Seeking Alpha
A70: 02:30PM | F70: ChannelAdvisor soars in debut Reuters
A71: 02:28PM | F71: Stick With Microsoft, It Will Pay at Motley Fool
A72: 02:12PM | F72: Deconstructing Google's Strategy: Will Google Eat Your Business Next? at Forbes
A73: 02:11PM | F73: Former Google, Facebook Executive Joins Khosla Ventures at The Wall Street Journal
A74: 02:10PM | F74: The 5 Most Important Company Perks at Motley Fool
A75: 02:06PM | F75: Aptly-Named Contrarius Investment Making Some Contrarian Moves at Motley Fool
A76: 02:06PM | F76: How Google Didn't `Screw Up' YouTube at Bloomberg
A77: 02:00PM | F77: Another VC Is Born: Longtime Internet Exec Ben Ling Joins Khosla Ventures at AllThingsD
A78: 02:00PM | F78: Kass: Apple Is Ripe for a Buy at TheStreet
A79: 01:57PM | F79: Is Amazon A Good Short? Talking Numbers
A80: 01:57PM | F80: Is Amazon a good short? Talking Numbers
A81: 01:25PM | F81: Google Revamps Adsense Tool for Publishers at Motley Fool
A82: 01:23PM | F82: Google to add Galapagos Islands to Street View AP
A83: 01:20PM | F83: Which Advertisement Giant Will Win in Mobile? at Motley Fool
A84: 01:18PM | F84: How much lower for the Google tell? at MarketWatch
A85: 01:15PM | F85: Windows Ad Turns The Table On Apple at TheStreet
A86: 12:44PM | F86: Google Names Another City: Raytown, Mo. at Motley Fool
A87: 12:44PM | F87: Mailbox comes to the iPad at Fortune
A88: 12:43PM | F88: Microsoft Pushes Windows Azure In Japan and 2 Other Hot Stocks to Watch at Wall St. Cheat Sheet
A89: 12:40PM | F89: Review: Google music plan solid, serendipitous AP
A90: 12:32PM | F90: E-commerce software maker ChannelAdvisor soars in debut Reuters
A91: 12:23PM | F91: Is Yahoo! Set to Take a Tumble? at Motley Fool
A92: 12:20PM | F92: What I learned working for Martha Stewart at Fortune
A93: 12:19PM | F93: Google to add Galapagos Islands to Street View AP
A94: 12:15PM | F94: Amazon's Cloud Drive Now in Canada Zacks
A95: 12:04PM | F95: Microsoft: Wheres the Mojo? at Motley Fool
A96: 12:01PM | F96: Updates, advisories and surprises at MarketWatch
A97: 11:58AM | F97: Like That TV Ad You Just Saw? Twitter Wants to Show You Another One at AllThingsD
A98: 11:58AM | F98: Like That TV Ad You Just Saw? Twitter Wants to Show You Another One. at AllThingsD
A99: 11:50AM | F99: [video] Songza Takes on Music Streaming Titans at CNBC
A100: 11:30AM | F100: Investment News Flash: California Teen Invents Super-Battery at Motley Fool
A101: 11:30AM | F101: HP rallies 14%, trouncing broader sell-off at CNNMoney.com
A102: 11:28AM | F102: [video] From Google to FedEx: Less Offshore Holdings? Maybe Not at MarketWatch
A103: 11:27AM | F103: [video] From Google to FedEx: Less Offshore Holdings? Maybe Not at MarketWatch
A104: 11:11AM | F104: AAPL, BBRY, NOK To Suffer Android Smartphone Surge, Says Nomura at Barrons.com
A105: 11:06AM | F105: Billionaire Kerr Neilson's Top Stock Picks at Seeking Alpha
A106: 11:06AM | F106: A Professional Viewpoint on Apple Versus Google at Motley Fool
A107: 10:57AM | F107: Who Will Own the Future? at Forbes
A108: 10:22AM | F108: Google Saves HPs Quarter and 3 More Hot Stocks at Wall St. Cheat Sheet
A109: 10:08AM | F109: What Is Google? at Forbes
A110: 10:00AM | F110: Q&A: "The Internship" Director Shawn Levy on Making a Feel-Good Movie About Google at AllThingsD
A111: 09:57AM | F111: This stock is a threat to Apple, Google, & Sirius (And, Justin Bieber) Talking Numbers
A112: 09:57AM | F112: This stock is a threat to Apple, Google, & Sirius (And, Justin Bieber)
A113: 09:56AM | F113: Why I Still Buy Apple at Forbes
A114: 09:50AM | F114: Can Baidu Get Rich the Youku Way? at Motley Fool
A115: 09:39AM | F115: The Corporate Cash Hoarding Syndrome at Seeking Alpha
A116: 09:38AM | F116: H-P a rare gainer as most tech stocks slump early at MarketWatch
A117: 09:33AM | F117: Mother of All Fed Cha Cha Days or Last Tango on Wall Street? at Minyanville
A118: 09:30AM | F118: Not One, But Two Perfect Storms Could Be Brewing at CNBC
A119: 08:50AM | F119: Google Acquires Makani Power Zacks
A120: 08:37AM | F120: Minn. teen whose farewell song became web hit dies AP
A121: 08:34AM | F121: Tech Titans Are the New Masters of the Universe, Be Afraid: Kotkin The Daily Ticker
A122: 08:30AM | F122: Workday's Loss Narrows in 1Q Zacks
A123: 08:15AM | F123: EU Seeks Country-by-Country Tax Disclosure for Large Companies at Bloomberg
A124: 08:10AM | F124: Google's Schmidt defends taxes in U.K., FT reports theflyonthewall.com
A125: 08:07AM | F125: EU eyes bank secrecy in tax evasion push at MarketWatch
A126: 08:03AM | F126: The Zacks Analyst Blog Highlights: j2 Global, Google, Apple, News Corp. and Safeway Zacks
A127: 08:00AM | F127: Pandora expected to report sales gains at MarketWatch
A128: 07:51AM | F128: Google's Long List of Subsidiaries Gets Much Shorter at The Wall Street Journal
A129: 07:37AM | F129: The War for Online Video Is Heating Up at Motley Fool
A130: 07:07AM | F130: Shazam launches completely overhauled iPad and iPhone app at CNNMoney.com
A131: 02:17AM | F131: Review: Google music plan solid, serendipitous AP
A132: 01:11AM | F132: Samsung Galaxy S4 Sales Hit 10 Million in Half the Time of S3 at Bloomberg
A133: 12:22AM | F133: Apple Thinks Google Now Is Guilty at Motley Fool
A134: 12:18AM | F134: Review: Google music plan solid, serendipitous AP
A135: 12:01AM | F135: Wall Street, Power Women Meet on Fifth Avenue for Water at Bloomberg
A136: 22-May-13 11:59PM | F136: Heres Why Apple and Google Love Irish Tax Laws at Wall St. Cheat Sheet
A137: 11:07PM | F137: Google Voice Can Prevent Twitter's New Security System From Locking You Out at Forbes
A138: 09:02PM | F138: What Does Intel Have Up Its Sleeve? at Motley Fool
A139: 08:41PM | F139: Q&A With HP CEO Meg Whitman and CFO Cathie Lesjak: The Turnaround Is on Schedule at AllThingsD
A140: 08:18PM | F140: Yahoo! Stock Is Hitting New Highs at Motley Fool
A141: 08:02PM | F141: Did Intel Just Score a Big Mobile Win? at Motley Fool
A142: 07:48PM | F142: Ireland says will not be U.S. 'whipping boy' on tax Reuters
A143: 07:09PM | F143: HP's 2Q offers hope even as revenue slump deepens AP
A144: 06:43PM | F144: [video] Oklahoma Tornado Disaster: As It Happened at MarketWatch
A145: 06:30PM | F145: Inside Google's Top-Secret Research Lab at Bloomberg
A146: 06:00PM | F146: Pandora and Spotify Respond to Google at Motley Fool
A147: 06:00PM | F147: Google to Acquire Airborne Wind Turbine Maker Makani Power at Motley Fool
A148: 05:45PM | F148: Twitter beefs up security after hacking spree on media Reuters
A149: 05:40PM | F149: Apple Tops Customer Satisfaction Again, Samsung Gains at Motley Fool
A151: Google Inc., a technology company, builds products and provides services to organize the information and make it universally accessible and useful. It provides Search, a service that delivers relevant search results in response to user queries; Product Listing Ads that offer product information; Search plus Your World; Google Now, a predictive search feature; and Google Knowledge Graph, which enhances Search service. The company also offers AdWords, an auction-based advertising program; AdSense, a program which enables Websites that are part of the Google Network to deliver ads; Google Display, a display advertising network; DoubleClick Ad Exchange, a marketplace for the trading display ad space; and YouTube that provides video, interactive, and other ad formats. In addition, it provides Google Mobile that extends its products and services to mobile device users; Google Local, which provides local information; Android, an open source mobile software platform; Google Chrome OS, an open source operating system; Google Chrome, a Web browser; Google+ for sharing various things online with different people; Google Play, a cloud-based digital entertainment destination; Google Drive, a place for users to create, share, collaborate, and keep their stuff; and Google Wallet, a virtual wallet for in-store contactless payments. Further, the company offers Google TV, a platform for consumers to use television and the Internet on a single screen; Google Apps, a cloud computing suite of message and collaboration tools; Search Appliance, a search technology for use within enterprises; Google Site Search, a custom search engine; Google Commerce Search for online retail enterprises; Google Maps Application Programming Interface; and Google Earth Enterprise, a software solution for imagery and data visualization. Additionally, it offers mobile wireless devices, and related products and services. Google Inc. was founded in 1998 and is headquartered in Mountain View, California.
A153: Insider Trading | F153: Relationship | G153: Date | H153: Transaction | I153: Cost | J153: #Shares | K153: Value ($) | L153: #Shares Total | M153: SEC Form 4
A154: Page Lawrence | F154: Chief Executive Officer | G154: 2013-05-16 | H154: Sale | I154: 908.07 | J154: 20835 | K154: 18919564 | L154: 10000 | M154: 2013-05-16T19:28:00
A155: DOERR L JOHN | F155: Director | G155: 2013-05-15 | H155: Sale | I155: 905.52 | J155: 4602 | K155: 4167190 | L155: 0 | M155: 2013-05-15T18:48:00
A156: Page Lawrence | F156: Chief Executive Officer | G156: 2013-05-15 | H156: Sale | I156: 906.7 | J156: 20833 | K156: 18889271 | L156: 10000 | M156: 2013-05-16T11:57:00
A157: Page Lawrence | F157: Chief Executive Officer | G157: 2013-05-14 | H157: Sale | I157: 885.17 | J157: 20833 | K157: 18440708 | L157: 10000 | M157: 2013-05-14T17:03:00
A158: PICHETTE PATRICK | F158: SVP & Chief Financial Officer | G158: 2013-05-13 | H158: Sale | I158: 878.89 | J158: 145 | K158: 127439 | L158: 3906 | M158: 2013-05-13T16:41:00
A159: Page Lawrence | F159: Chief Executive Officer | G159: 2013-05-13 | H159: Sale | I159: 878.92 | J159: 20833 | K159: 18310503 | L159: 10000 | M159: 2013-05-14T17:03:00
A160: Brin Sergey | F160: Co-Founder | G160: 2013-05-07 | H160: Sale | I160: 857.07 | J160: 83334 | K160: 71423289 | L160: 83420 | M160: 2013-05-09T12:34:00
A161: HENNESSY JOHN L | F161: Director | G161: 2013-05-02 | H161: Sale | I161: 825 | J161: 200 | K161: 165000 | L161: 2308 | M161: 2013-05-02T19:09:00
A162: Drummond David C | F162: SVP, Corporate Development | G162: 2013-05-01 | H162: Sale | I162: 823.26 | J162: 55 | K162: 45279 | L162: 4221 | M162: 2013-05-01T12:56:00
A163: HENNESSY JOHN L | F163: Director | G163: 2013-04-30 | H163: Sale | I163: 825 | J163: 200 | K163: 165000 | L163: 3308 | M163: 2013-04-30T17:22:00
A164: SCHMIDT ERIC E | F164: Executive Chairman of Board | G164: 2013-04-26 | H164: Sale | I164: 801.53 | J164: 89963 | K164: 72107825 | L164: 0 | M164: 2013-04-29T16:49:00
A165: SCHMIDT ERIC E | F165: Executive Chairman of Board | G165: 2013-04-26 | H165: Sale | I165: 801.82 | J165: 15286 | K165: 12256553 | L165: 0 | M165: 2013-04-29T16:53:00
A166: SCHMIDT ERIC E | F166: Executive Chairman of Board | G166: 2013-04-25 | H166: Sale | I166: 811.56 | J166: 68550 | K166: 55632565 | L166: 0 | M166: 2013-04-26T20:10:00
A167: SCHMIDT ERIC E | F167: Executive Chairman of Board | G167: 2013-04-24 | H167: Sale | I167: 815.18 | J167: 83700 | K167: 68230951 | L167: 0 | M167: 2013-04-24T18:06:00
A168: HENNESSY JOHN L | F168: Director | G168: 2013-04-22 | H168: Sale | I168: 796.33 | J168: 800 | K168: 637061 | L168: 3508 | M168: 2013-04-22T19:57:00
A169: Arora Nikesh | F169: SVP and Chief Business Officer | G169: 2013-04-22 | H169: Sale | I169: 800.6 | J169: 805 | K169: 644483 | L169: 194 | M169: 2013-04-22T15:49:00
A170: DOERR L JOHN | F170: Director | G170: 2013-04-15 | H170: Sale | I170: 785.57 | J170: 5305 | K170: 4167437 | L170: 0 | M170: 2013-04-16T15:02:00
A171: PICHETTE PATRICK | F171: SVP & Chief Financial Officer | G171: 2013-04-12 | H171: Sale | I171: 789.27 | J171: 145 | K171: 114444 | L171: 3906 | M171: 2013-04-12T13:13:00
A172: Page Lawrence | F172: Chief Executive Officer | G172: 2013-04-11 | H172: Sale | I172: 788.22 | J172: 20835 | K172: 16422640 | L172: 85000 | M172: 2013-04-12T12:49:00
A173: Page Lawrence | F173: Chief Executive Officer | G173: 2013-04-10 | H173: Sale | I173: 787.65 | J173: 20833 | K173: 16409097 | L173: 85000 | M173: 2013-04-12T12:49:00
A174: Page Lawrence | F174: Chief Executive Officer | G174: 2013-04-09 | H174: Sale | I174: 780 | J174: 20833 | K174: 16249718 | L174: 85000 | M174: 2013-04-10T13:09:00
A175: Page Lawrence | F175: Chief Executive Officer | G175: 2013-04-08 | H175: Sale | I175: 772.27 | J175: 20833 | K175: 16088767 | L175: 85000 | M175: 2013-04-08T18:54:00
A176: Brin Sergey | F176: Co-Founder | G176: 2013-04-02 | H176: Sale | I176: 809.99 | J176: 83334 | K176: 67499575 | L176: 8420 | M176: 2013-04-03T16:52:00
A177: Drummond David C | F177: SVP, Corporate Development | G177: 2013-04-01 | H177: Sale | I177: 795.01 | J177: 55 | K177: 43726 | L177: 4131 | M177: 2013-04-01T17:06:00
A178: SCHMIDT ERIC E | F178: Executive Chairman of Board | G178: 2013-03-26 | H178: Sale | I178: 811.21 | J178: 18619 | K178: 15103890 | L178: 0 | M178: 2013-03-26T20:14:00
A179: SCHMIDT ERIC E | F179: Executive Chairman of Board | G179: 2013-03-26 | H179: Sale | I179: 811.04 | J179: 90330 | K179: 73261577 | L179: 0 | M179: 2013-03-26T19:51:00
A180: SCHMIDT ERIC E | F180: Executive Chairman of Board | G180: 2013-03-25 | H180: Sale | I180: 811.95 | J180: 65118 | K180: 52872421 | L180: 0 | M180: 2013-03-26T13:15:00
A181: SCHMIDT ERIC E | F181: Executive Chairman of Board | G181: 2013-03-25 | H181: Sale | I181: 815.46 | J181: 6132 | K181: 5000374 | L181: 0 | M181: 2013-03-26T13:30:00
A182: SCHMIDT ERIC E | F182: Executive Chairman of Board | G182: 2013-03-25 | H182: Sale | I182: 812.25 | J182: 3750 | K182: 3045943 | L182: 154695 | M182: 2013-03-26T16:10:00
A183: DOERR L JOHN | F183: Director | G183: 2013-03-15 | H183: Sale | I183: 816.11 | J183: 5106 | K183: 4167075 | L183: 0 | M183: 2013-03-15T20:20:00
A184: Page Lawrence | F184: Chief Executive Officer | G184: 2013-03-14 | H184: Sale | I184: 821.42 | J184: 20835 | K184: 17114347 | L184: 85000 | M184: 2013-03-14T18:12:00
A185: Page Lawrence | F185: Chief Executive Officer | G185: 2013-03-13 | H185: Sale | I185: 824.43 | J185: 20833 | K185: 17175377 | L185: 85000 | M185: 2013-03-13T18:34:00
A186: PICHETTE PATRICK | F186: SVP & Chief Financial Officer | G186: 2013-03-12 | H186: Sale | I186: 828.47 | J186: 145 | K186: 120128 | L186: 3906 | M186: 2013-03-12T11:56:00
A187: Page Lawrence | F187: Chief Executive Officer | G187: 2013-03-12 | H187: Sale | I187: 826.37 | J187: 20833 | K187: 17215840 | L187: 85000 | M187: 2013-03-13T13:15:00
A188: Page Lawrence | F188: Chief Executive Officer | G188: 2013-03-11 | H188: Sale | I188: 835.64 | J188: 20833 | K188: 17408876 | L188: 85000 | M188: 2013-03-12T12:21:00
A189: Arora Nikesh | F189: SVP and Chief Business Officer | G189: 2013-03-11 | H189: Sale | I189: 836.37 | J189: 1735 | K189: 1451094 | L189: 0 | M189: 2013-03-11T14:45:00
A190: Drummond David C | F190: SVP, Corporate Development | G190: 2013-03-01 | H190: Sale | I190: 797.8 | J190: 56 | K190: 44677 | L190: 3285 | M190: 2013-03-01T12:54:00
A191: MATHER ANN | F191: Director | G191: 2013-02-27 | H191: Sale | I191: 800 | J191: 300 | K191: 240000 | L191: 385 | M191: 2013-02-27T13:32:00
A192: SCHMIDT ERIC E | F192: Executive Chairman of Board | G192: 2013-02-26 | H192: Sale | I192: 790.65 | J192: 68823 | K192: 54415179 | L192: 0 | M192: 2013-02-26T21:26:00
A193: SCHMIDT ERIC E | F193: Executive Chairman of Board | G193: 2013-02-26 | H193: Sale | I193: 790.88 | J193: 25367 | K193: 20062303 | L193: 0 | M193: 2013-02-26T21:47:00
A194: SCHMIDT ERIC E | F194: Executive Chairman of Board | G194: 2013-02-25 | H194: Sale | I194: 801.18 | J194: 59246 | K194: 47466484 | L194: 0 | M194: 2013-02-25T20:26:00
A195: SCHMIDT ERIC E | F195: Executive Chairman of Board | G195: 2013-02-25 | H195: Sale | I195: 802.56 | J195: 16685 | K195: 13390677 | L195: 0 | M195: 2013-02-25T20:37:00
A196: SCHMIDT ERIC E | F196: Executive Chairman of Board | G196: 2013-02-25 | H196: Sale | I196: 802.9 | J196: 4309 | K196: 3459707 | L196: 0 | M196: 2013-02-25T20:44:00
A197: SCHMIDT ERIC E | F197: Executive Chairman of Board | G197: 2013-02-22 | H197: Sale | I197: 798.9 | J197: 86296 | K197: 68942220 | L197: 0 | M197: 2013-02-22T19:02:00
A198: SCHMIDT ERIC E | F198: Executive Chairman of Board | G198: 2013-02-22 | H198: Sale | I198: 798.9 | J198: 3223 | K198: 2574867 | L198: 0 | M198: 2013-02-22T19:12:00
A199: Shriram Kavitark Ram | F199: Director | G199: 2013-02-15 | H199: Sale | I199: 790 | J199: 12000 | K199: 9480000 | L199: 61725 | M199: 2013-02-15T16:33:00
A200: Shriram Kavitark Ram | F200: Director | G200: 2013-02-15 | H200: Sale | I200: 790 | J200: 12000 | K200: 9480000 | L200: 63041 | M200: 2013-02-15T16:33:00
A201: DOERR L JOHN | F201: Director | G201: 2013-02-15 | H201: Sale | I201: 790.41 | J201: 5272 | K201: 4167031 | L201: 0 | M201: 2013-02-15T16:55:00
A202: Page Lawrence | F202: Chief Executive Officer | G202: 2013-02-14 | H202: Sale | I202: 784.33 | J202: 20835 | K202: 16341570 | L202: 10000 | M202: 2013-02-14T17:23:00
A203: Page Lawrence | F203: Chief Executive Officer | G203: 2013-02-13 | H203: Sale | I203: 782.32 | J203: 20833 | K203: 16298054 | L203: 10000 | M203: 2013-02-13T19:06:00
A204: Page Lawrence | F204: Chief Executive Officer | G204: 2013-02-12 | H204: Sale | I204: 783.43 | J204: 20833 | K204: 16321239 | L204: 10000 | M204: 2013-02-13T14:05:00
A205: PICHETTE PATRICK | F205: SVP & Chief Financial Officer | G205: 2013-02-12 | H205: Sale | I205: 781.16 | J205: 145 | K205: 113268 | L205: 2289 | M205: 2013-02-12T14:24:00
A206: Page Lawrence | F206: Chief Executive Officer | G206: 2013-02-11 | H206: Sale | I206: 778.76 | J206: 20833 | K206: 16223992 | L206: 10000 | M206: 2013-02-12T15:22:00
A207: Tilghman Shirley M | F207: Director | G207: 2013-02-08 | H207: Option Exercise | I207: 0 | J207: 2500 | K207: 0 | L207: 7490 | M207: 2013-02-08T17:24:00
A208: Tilghman Shirley M | F208: Director | G208: 2013-02-08 | H208: Sale | I208: 782.84 | J208: 2500 | K208: 1957108 | L208: 4990 | M208: 2013-02-08T17:24:00
A209: Brin Sergey | F209: Co-Founder | G209: 2013-02-05 | H209: Sale | I209: 767.43 | J209: 83334 | K209: 63952688 | L209: 8420 | M209: 2013-02-06T11:28:00
A210: Drummond David C | F210: SVP, Corporate Development | G210: 2013-02-01 | H210: Sale | I210: 758.2 | J210: 190 | K210: 144058 | L210: 3151 | M210: 2013-02-01T12:19:00
A211: Arora Nikesh | F211: SVP and Chief Business Officer | G211: 2013-02-01 | H211: Sale | I211: 758.2 | J211: 1300 | K211: 985660 | L211: 248 | M211: 2013-02-01T13:33:00
... 44 more rows
